Workbook

Sheet Cover
A23: FS720
A25: Fire detection system
A27: FX7210 - Cerberus Quantities Tool
A29: IP8 - Version 1.6
D56: Building Technologies
C396: 0
C397: 0

Sheet Instructions
A1: General information:
A2: For correct document use, macros must be enabled (automatic during startup or manually)
A3: - Automatic: Security warning during document startup -> Press button to enable
A4: - Manually: At task bar "File/Info" -> Press corresponding button to enable macros
A5: The project planning of a FS720 fire panel can be performed as follows:
A6: - completely with this tool
A7: - with the instructions provided in the document A6V10210362 "Planning"
A8: It must be taken into account that the system limitations are not included in this tool. They must be taken from the document A6V10210362 "Planning"
A10: Purpose:
A11: With the project planning of the fire panel the load of the line card is verified, as well as the load of the fire panel and the necessary batteries are verified. This results in the definite ordering
A13: Procedure:
A14: 1. Define operation units (see document A6V10210362)
A15: 1.1 Define the places in the building where panels (control units, terminals) are desired or required
A16: 1.2 Define visibility for operation units
A17: 1.3 Define type for operation units (panels, indications, visualizer, floor repeater panels, …)
A18: 1.4 Define supply (external, internal) of operation units
A20: 2. Planning of stations (see document A6V10210362)
A21: 2.1 Define type of station, dependent of # of detectors and PMI requirements
A22: --> Additional sheets are generated
A23: 2.2 Define line cards on card cage if available (depends on station type)
A24: --> Additional sheets are generated
A26: 3. Planning of detector lines (see document A6V10210362)
A27: 3.1 Define type and position of the detector line devices in the building
A28: 3.2 Define line topology, line card assignment and cabling for all necessary line cards
A29: --> Calculate every line card with additional sheets
A30: --> All line card configurations must be valid ("Green Calculation Button") before continuing
A32: 4. Planning standby-time
A33: 4.1 Enter other loads from outputs and options on "Fx72x_Panel" sheets if available
A34: 4.2 Enter required standby- and alarm-time
A35: 4.3. Push "Calculation Button" for updating values from additional sheets and calculate correct values
A36: --> If the panel configuration is not valid "Red/Orange Calculation Button" check
A37: … power supply and batteries, change with button if possible (depends on used station, power supply, …)
A38: … that all panel status information is ok
A39: --> With column "Try other settings" it's possible to check if actual config is possible with other housing
A40: … result has no impact to general configuration
A41: --> Calculate every station in the spread-sheet "Fx72x_Panel"
A42: --> The panel configuration must be valid "Green Calculation Button" before continuing
A44: Please consider:
A45: It is not possible to check all interactions of all options with each other. Restrictions in the use of options together are noted in the document A6V10210362 "Planning" and A6V10210390 "Installation".
A46: This excel spreadsheets does not contain any overwrite protection for cells and formulas. This is, that you can create your own specific template.

Sheet RevisionNotes (hidden)
A1: Current Version:
A3: FX7210-CerberusQuantitiesTool_IP8.xlsm (09. November 2021)
A5: Martin Luethi <martin.luethi@siemens.com>
A6: - changelog V1.6:
A7: - Add FDS226 and FDSB226 to Alarm devices - Sound
A8: - Remove FDS226 from Alarm devices - Sound and Voice
A9: - New RK(15) and MK(15) values for FDL242 on FDnet line
A10: - Add 1xLED module for FC722-XA and FC722-XA(P) at "Panel_values" sheet
A12: Martin Luethi <martin.luethi@siemens.com>
A13: - changelog V1.5:
A14: - Change FDCL221_EX limitation back to old value (is actual limited to 20 devices, old limit is 19V line voltage)
A15: - Improve FDCL221_EX failure handling in case of sheet activation switching
A16: - Double FDnet loads for two chamber aspiration smoke detectors
A17: - Reorder/change naming for Aspiration, FDS226, FDSB226, FDS227 and FDSB227
A19: Martin Luethi <martin.luethi@siemens.com>
A20: - changelog V1.4:
A21: - add max amount FDCIO/FT2001/FRT&FRD warning (929748)
A22: - remove failure at FDnet rest cable length calculation
A23: - add naming change from FCI2022(wrong name) to FCI2023 2-loop PowerBus Periboard
A24: - add naming change for PowerBus devcies: "FC20x0-xx (P)" and "Line card (FDnet, P) FCL2008-A1" (848211)
A25: - add new FDL242 linear smoke detector (931471)
A26: - add new FDA222, FDA242 (one chamber) and FDA261, FDA262 (two chamber) ASD (931467)
A27: - add new FDnet DC/DC converter table
A28: - correct current value for FCI2023 and FCI2024
A29: - add point detectors with new FET
A30: - add energy efficency calculation for power bus cards if possible (985353)
A32: Martin Luethi <martin.luethi@siemens.com>
A33: - changelog V1.3:
A34: - set correct battery min value for alternative case
A35: - activate power supply for FT724 at "Panel_values"
A36: - set correct "EndUser" view for FT724 with power supply
A37: - change "Only HCS12 is…" through "Internal CPU is …" at CC5
A39: Martin Luethi <martin.luethi@siemens.com>
A40: - changelog V1.2:
A41: - Power Supply 1&2
A42: - required load power: add decision for higher value of quiet or alarm power
A43: - required charge power: correct calculation
A44: - nominal load Power: hide this line to prevent conclusion, add explanation text at max. load&charge power line
A45: - Add information at Instruction site that macros must be enabled during startup
A46: - Change naming to minimise confusion during development and relasing
A48: Martin Luethi <martin.luethi@siemens.com>
A49: - changelog V1.1:
A50: - add FDSB227 to same lines as FDS226, FDS227 as Sounders used without beacon functionality
A52: Martin Luethi <martin.luethi@siemens.com>
A53: - changelog V1.0:
A54: - add PowerBus functionallity:
A55: - FDnet sheet can be set up with 0.5A or 1.5A
A56: - Add FDnet PowerBus Linecard to CPUCC, CC2 and CC5
A57: - Add new PowerBus Periboards FCI2022 and FCI2024
A58: - Add new Station Typs with PowerBus Periboards
A59: - Add function to switch FDnet sheets if switching between PowerBus and Normal station type
A60: - Add additional Power supply 1 consumer rows (from 3 to 11)
A61: - Change additional Power supply 1&2 consumer rows from W input to A input with additional amount
A62: - Change station type "pop-up" text
A64: A6V10211118_p_en_--_FX7210-QuantitiesTool.xls (23. November 2018)
A66: Martin Luethi <martin.luethi@siemens.com>
A67: - changelog V1.4:
A68: - correct modulebus 1&2 check:
A69: - modulebus 1: Max. 4 CC5 and 22 Linecard without Ext., with Ext. Max. 2 CC5 and 12 Linecards
A70: - modulebus 2: Max. 4 CC5 and 20 Linecard without Ext., with Ext. Max. 2 CC5 and 10 Linecards
A71: - Change name of “NetworkCommAddOn_ChangePowerSupply” to “NetworkCommAddOn_ChangePS”
A72: - Change name of “PS1ChangePowerSupplyOtherSettings” to “PS1ChangePSotherSettings”
A73: - Change name of “PS2ChangePowerSupplyOtherSettings” to “PS2ChangePSotherSettings”
A74: Names are too long for correct view and changes into other formats
A75: - Limit max. HelpStatusInformationUserTextMark row hight if too many comments
A76: - Activate created FDnet sheet direct after generation, correct active sheet during _change function calling
A77: - Activate created FDnet sheet direct after generation, correct active sheet during _change function calling
A78: - Add text information for "Try other settings"
A79: - Correct switch to FT724 with supply failure
A80: - Change format from .xls to .xlsm
A82: Martin Luethi <martin.luethi@siemens.com>
A83: - changelog V1.3:
A84: - correct some power supply constants at "GetPowerSupplyData" function
A85: - correct some housing constants at "GetHousingData" function
A87: - changelog V1.2:
A88: - add some small correction (naming, …)
A89: - for FC721, make Networkt at "Networking&CommunicationPMI" not visible
A90: - Limit for FDnet stub is set to 64 (instead of 32)
A92: Martin Luethi <martin.luethi@siemens.com>
A93: - changelog V1.1:
A94: - activate always actual open sheet (Worksheet_Active function must be added to all sheets
A95: - update Fdnet sheet (VBA and excel itself) from
A96: 049_FX2010_009716_w_en_--_FX2010-SintesoQuantitiesTool.xls V1.4
A97: - change FT2040/FT2080 comments to FT724
A98: - set battery time to 30h intstead of 24h
A101: Martin Luethi <martin.luethi@siemens.com>
A102: - changelog V1.0:
A103: - change all necessary data from Sinteso to Cerberus Tool (Excel Sheets and VB)
A104: - improve C-NET handling with all possible configruation
A108: History
A110: Tool generated out of 049_FX2010_009716_w_en_--_FX2010-SintesoQuantitiesTool.xls (3.August 2018) V1.1
C474: 0
C475: 0

Sheet Fx72x_Panel
B1: Planning of a FC720 Cerberus station (one fire panel or terminal)
B3: Purpose:
B4: With the project planning of the fire panel the load of the fire panel and the necessary batteries are verified. This results in the definite:
B5: - type of station (fire panel / -terminal)
B6: - type of batteries and power supply
B7: Procedure:
B8: 1) Define type of station, dependent of # of detectors and PMI requirements
B9: 2) Fill out all additional sheets
B10: 3) Enter other loads from outputs and options
B11: 4) Enter required standby- and alarm time
B12: 5) Push "Calculation Button" for updating values
B13: --> If the panel configuration is not valid "Red/Orange Calculation Button" check
B14: … power supply and batteries, change with button if possible (depends on used station, power supply, …)
B15: … that all panel status information is ok
B16: --> With column "Try other settings" it's possible to check if actual config is possible with other housing
B17: … result has no impact to general configuration
B18: --> The panel configuration must be valid "Green Calculation Button" before continuing
B19: Please consider:
B20: It is not possible to check all interactions of all options with each other. Restrictions in the use of options together are noted in the document A6V10210362 "Planning" and A6V10210390 "Installation".
B23: yellow fields | C23: Must be filled in by the user
B24: orange fields | C24: Shows an input data error. These fields must be filled in by the user
B26: green fields | C26: Calculated value, configuration valid. Field must not be changed by the user.
B27: red fields | C27: Calculated value, configuration invalid. Field must not be changed by the user.
B28: light green fields | C28: Calculated value, additional information for the user. Field must not be changed by the user.
A30: Panel selection
B31: Help values
C33: Selection Panel Type | F33: Panel Information
C34: 6 | F34: Panel order number | H34: S54400-C31-A2
C35: FT724 | F35: Panel description | H35: International
C36: Actual Station Type | F36: Main CPU | H36: FCM2027
C37: 6 | F37: PMI Button | H37: --
C38: FT724 | F38: Panel Periphery | H38: FTI2001
F39: Panel Extra Equipment | H39: --
C40: Selection Panel Variant | F40: Operation Add-on
C41: 1 | F41: Network&Communication PMI | H41: show
C42: FT724-ZZ | F42: Network&Communication Add-on | H42: show
F43: Card cages | H43: --
F44: CC5 Button | H44: --
F45: Extinguishing | H45: --
F46: PS1: Panel Supply Equip.. | H46: 70
C47: Panel variants | F47: PS1: Panels Housings | H47: eco
C48: FT724-ZZ | F48: PS1: Max. fitting supply | H48: 70
C49: FT724-HZ | F49: PS1: Max. fitting battery | H49: 7
C50: -- | F50: PS2: Panel Supply Equip.. | H50: 0
C51: -- | F51: PS2: Panels Housings | H51: --
C52: -- | F52: PS2: Max. fitting supply | H52: 0
C53: -- | F53: PS2: Max. fitting battery | H53: --
C54: --
C55: --
C56: --
C57: -- | F57: Fix I2C amount panel
C58: -- | F58: fix I2C devices panel | H58: 1
C59: --
C60: --
C61: -- | F61: Card cage status information
C62: -- | F62: Amount Card Cage CPU | H62: 0
C63: -- | F63: Amount CardCage2 | H63: 0
C64: -- | F64: Amount CardCage5 | H64: 0
C65: -- | F65: All CCx config ok | H65: TRUE
C66: --
C67: --
C68: -- | F68: FDnet status information
C69: -- | F69: Amount of FDnet field devices | H69: 0
C70: -- | F70: All FDnet config ok | H70: TRUE
C71: -- | F71: Some FDnet calculation must be updated | H71: FALSE
C72: -- | F72: Amount of FDnet FT2001 devices | H72: 0
C73: -- | F73: Amount of FDnet FRT/FRD devices | H73: 0
B78: Panel selection
B81: Panel characteristics:
B82: Panel type: | C82: FT724-ZZ
B83: Variant: | C83: International
B84: Order number: | C84: S54400-C31-A2
B85: PMI type: | C85: FCM2027
B86: Peripheral board: | C86: FTI2001
B87: Housing type: | C87: eco
B88: Supply type: | C88: FP2015-A1 | D88: 70 | E88: W
B89: Max. fitting batteries: | C89: FA2003-A1 | D89: 7 | E89: Ah
B90: Max. fitting supply: | C90: FP2015-A1 | D90: 70 | E90: W
B95: Add / Remove FT20x0 Terminal
B99: Add / Remove Extinguishing Sectors
B103: Add / Remove Card cage 5
A107: Field devices
B109: C-NET Module2 | F109: quiescent current | H109: alarm current | J109: remarks | M109: Active | O109: Supply
B110: Current consumption (at panel by 24V) | F110: 0.039 | G110: A | H110: 0.039 | I110: A | J110: Values from "C-NET_Module2" | M110: FALSE | O110: 1
B112: C-NET Module3 | F112: quiescent current | H112: alarm current | J112: remarks | M112: Active | O112: Supply
B113: Current consumption (at panel by 24V) | F113: 0.039 | G113: A | H113: 0.039 | I113: A | J113: Values from "C-NET_Module3" | M113: FALSE | O113: 1
B125: General Input Check Extinguishing | C125: TRUE
F126: quiescent power | H126: alarm power
B127: Summarized power supply 1 | F127: 0.00 | G127: W | H127: 0.00 | I127: W
A132: Outputs of peripheral board | M132: Active | O132: Supply
M133: FALSE | O133: 1
B134: Sounder Lines | H134: alarm current | J134: remarks
B135: Sounder line 1 (SOUND1) | H135: 0.000 | I135: A | M135: Active | O135: Supply
B136: Sounder line 2 (SOUND2) | H136: 0.000 | I136: A | M136: FALSE | O136: 1
B138: Alarm & Fault Outputs | F138: quiescent current | H138: alarm current | J138: remarks
B139: Load on "Output Alarm supervised" (AL_OUT) | H139: 0.000 | I139: A
B140: Load on "Output Fault supervised" (FAU_OUT) | F140: 0.010 | G140: A | H140: 0.000 | I140: A
B142: External supply output 1 (VSYS_01) | F142: quiescent current | H142: alarm current | J142: remarks
B143: External supply output 1 (VSYS_01) | F143: 0.000 | G143: A | H143: 0.000 | I143: A | J143: Enter either all external loads at VSYS_01 pin in top row or single values below (ext. supply, activated IO outputs, ...). Enter average values.
B144: Load on "Configurable I/Os" (I/Ox) | F144: 0.000 | G144: A | H144: 0.000 | I144: A
B145: Load for connected Sounder Modules | C145: FCA2005-A1 | F145: 0.000 | G145: A | H145: 0.000 | I145: A
B146: Load for connected FDCIO223 | C146: FDCIO223 | F146: 0.000 | G146: A | H146: 0.000 | I146: A
B147: Load for connected FT724 Terminals | C147: FT724 | F147: 0.000 | G147: A | H147: 0.000 | I147: A
B148: Load for Scalance Ethernet Switch | C148: X204-2 / S612 | F148: 0.000 | G148: A | H148: 0.000 | I148: A
B150: External supply output 2 (VSYS_02) | F150: quiescent current | H150: alarm current | J150: remarks | M150: Active | O150: Supply
B151: External supply output 2 (VSYS_02) | F151: 0.000 | G151: A | H151: 0.000 | I151: A | J151: Enter either all external loads at VSYS_02 pin in top row or single values below (ext. supply, activated IO outputs, ...). Enter average values. | M151: FALSE | O151: 1
B152: Load on "Configurable I/Os" (I/Ox) | F152: 0.000 | G152: A | H152: 0.000 | I152: A
B153: Load for connected Sounder Modules | C153: FCA2005-A1 | F153: 0.000 | G153: A | H153: 0.000 | I153: A
B154: Load for connected FDCIO223 | C154: FDCIO223 | F154: 0.000 | G154: A | H154: 0.000 | I154: A
B155: Load for connected FT724 Terminals | C155: FT724 | F155: 0.000 | G155: A | H155: 0.000 | I155: A
B156: Load for Scalance Ethernet Switch | C156: X204-2 / S612 | F156: 0.000 | G156: A | H156: 0.000 | I156: A
B168: General Input Check Extinguishing | C168: TRUE
F169: quiescent power | H169: alarm power
B170: Summarized power supply 1 | F170: 0.00 | G170: W | H170: 0.00 | I170: W
A175: Operation add-on | M175: Active | O175: Supply
M176: TRUE | O176: 1
B177: Fire department periphery module | D177: Quantity | F177: quiescent power | H177: alarm power | J177: remarks
B178: Fire department periphery module | C178: FCI2001-D1 | D178: 0 | E178: pcs
B179: FBF | F179: 0.000 | H179: 0.000
B180: UeE | F180: 0.000 | H180: 0.000
B181: FSD | F181: 0.000 | H181: 0.000
B182: Kennleuchte | F182: 0.000 | H182: 0.000
B183: FSE | F183: 0.000 | H183: 0.000
B184: FAT | F184: 0.000 | H184: 0.000
B185: OeA | F185: 0.000 | H185: 0.000
B187: Operation add-on | D187: Quantity | F187: quiescent power | H187: alarm power | J187: remarks
B188: Operation add-on with 2x24 LED indicators | C188: FCM7213-Y3 | D188: 0 | E188: pcs | F188: 0.00 | G188: W | H188: 0.00 | I188: W | J188: Every 24-LED block not included in standard panel variant
B189: Operation add-on with 4x24 LED indicators | C189: FCM7214-Y3 | D189: 0 | E189: pcs | F189: 0.00 | G189: W | H189: 0.00 | I189: W | J189: Every 24-LED block not included in standard panel variant
B190: Operating add-on with 20-zone EVAC indicator | C190: FCM7221-H3 | D190: 0 | E190: pcs | F190: 0.00 | G190: W | H190: 0.00 | I190: W | J190: 20-zone EVAC indicator add-on
B202: General Input Check Extinguishing | C202: TRUE
F203: quiescent power | H203: alarm power
B204: Summarized power supply 1 | F204: 0.00 | G204: W | H204: 0.00 | I204: W
A209: Networking & Communication PMI | M209: Active | O209: Supply
M210: TRUE | O210: 1
B211: Networking | D211: Quantity | F211: quiescent power | H211: alarm power | J211: remarks | M211: Active | O211: Supply
B212: Ethernet connection | D212: 0 | E212: pcs | F212: 0.00 | G212: W | H212: 0.00 | I212: W | J212: Only if used in operational mode of panel | M212: TRUE | O212: 1
B213: Networking module (SAFEDLINK) | C213: FN2001-A1 | D213: 0 | E213: pcs | F213: 0.00 | G213: W | H213: 0.00 | I213: W
B215: Communication | D215: Quantity | F215: quiescent power | H215: alarm power | J215: remarks
B216: RS232 module (isolated) | C216: FCA2001-A1 | D216: 0 | E216: pcs | F216: 0.00 | G216: W | H216: 0.00 | I216: W
B217: RS485 module (isolated) | C217: FCA2002-A1 | D217: 0 | E217: pcs | F217: 0.00 | G217: W | H217: 0.00 | I217: W
B230: General Input Check Extinguishing | C230: TRUE
F231: quiescent power | H231: alarm power
B232: Summarized power supply 1 | F232: 0.00 | G232: W | H232: 0.00 | I232: W
A237: Networking & Communication Add-on | M237: Active | O237: Supply
M238: TRUE | O238: 1
B241: Networking | D241: Quantity | F241: quiescent power | H241: alarm power | J241: remarks
B242: Ethernet switch (MM) | C242: FN2008-A1 | D242: 0 | E242: pcs | F242: 0.00 | G242: W | H242: 0.00 | I242: W
B243: Security module (firewall) | C243: FN2009-A1 | D243: 0 | E243: pcs | F243: 0.00 | G243: W | H243: 0.00 | I243: W
B244: Fiber optic cable network module (SM/MM) | C244: FN2006/7-A1 | D244: 0 | E244: pcs | F244: 0.00 | G244: W | H244: 0.00 | I244: W
B245: Ethernet switch (modular) - SM/MM | C245: FN2012-A1 | D245: 0 | E245: pcs | F245: 0.00 | G245: W | H245: 0.00 | I245: W
B246: Repeater (SAFEDLINK) | C246: FN2002 | D246: 0 | E246: pcs | F246: 0.00 | G246: W | H246: 0.00 | I246: W
B247: Interface module | C247: DL485/13-xx-ST-SBT | D247: 0 | E247: pcs | F247: 0.00 | G247: W | H247: 0.00 | I247: W
B249: Printer | D249: Quantity | F249: quiescent power | H249: alarm power | J249: remarks | M249: Active
B250: Event printer | C250: FTO2001-A1 | D250: 0 | E250: pcs | F250: 0.000 | H250: 0.000 | J250: If used: current= 50…100mA, depending on printing frequency. | M250: FALSE
J251: 1 RS232 Module required additionally
B253: Detached-Options (supply from FS20 station) | D253: Quantity | F253: quiescent power | H253: alarm power | J253: remarks
B254: Remote EVAC 20-zone | C254: FCM2008-N1, 2xFTI2002-N1 | D254: 0 | E254: pcs | F254: 0.00 | G254: W | H254: 0.00 | I254: W | J254: One RS485 Module required additionally
B255: Mimic display driver EVAC 10-zone | C255: FT2003-N1 | D255: 0 | E255: pcs | F255: 0.00 | G255: W | H255: 0.00 | I255: W | J255: One RS485 Module required additionally
B266: General Input Check Extinguishing | C266: TRUE
F267: quiescent power | H267: alarm power
B268: Summarized power supply 1 | F268: 0.00 | G268: W | H268: 0.00 | I268: W
B269: Summarized power supply 2 | F269: 0.00 | G269: W | H269: 0.00 | I269: W
B270: Summarized power supply 3 | F270: 0.00 | G270: W | H270: 0.00 | I270: W
A273: Extinguishing
B289: Chosen | C289: Number | D289: Active | E289: Single
B290: 1 Extinguishing Card | C290: 1 | D290: FALSE | E290: 0
E291: always supply1 with single sector
B293: Sector 1 | D293: Quantity | F293: quiescent power | H293: extinguishing power | J293: remarks | M293: Active | N293: Check | O293: Supply | P293: ModBus
B294: Extinguishing card loads at Outputs | C294: XCI2005-A1, FCA2046-A1 | F294: 0.000 | G294: A | H294: 0.000 | I294: A | J294: Actuator, Valves, Illum. Panels, Driver …. Max. 4A per card | M294: TRUE | N294: TRUE | O294: 1 | P294: module bus 1
B295: Extinguishing terminal | C295: XCM7202-Z3, XT2001-A2 | D295: 1 | E295: pcs | F295: 0.58 | G295: W | H295: 1.10 | I295: W | J295: Min. 1, max. 6 Terminal
B296: Total power consumption | D296: Supply | E296: 1 | F296: 2.69 | G296: W | H296: 3.22 | I296: W | J296: Total power consumption
B299: Sector 2 | D299: Quantity | F299: quiescent power | H299: extinguishing power | J299: remarks | M299: Active | N299: Check | O299: Supply | P299: ModBus
B300: Extinguishing card loads at Outputs (XCI2005-A1, FCA2046-A1) | F300: 0.000 | G300: A | H300: 0.000 | I300: A | J300: Actuator, Valves, Illum. Panels, Driver …. Max. 4A per card | M300: FALSE | N300: TRUE | O300: 1 | P300: module bus 1
B301: Extinguishing terminal (XCM2002-A2, XCM2003-A2, XT2001-A2) | D301: 1 | E301: pcs | F301: 0.00 | G301: W | H301: 0.00 | I301: W | J301: Min. 1, max. 6 Terminal
B302: Total power consumption | D302: Supply | E302: 1 | F302: 0.00 | G302: W | H302: 0.00 | I302: W | J302: Total power consumption
B305: Sector 3 | D305: Quantity | F305: quiescent power | H305: extinguishing power | J305: remarks | M305: Active | N305: Check | O305: Supply | P305: ModBus
B306: Extinguishing card loads at Outputs (XCI2005-A1, FCA2046-A1) | F306: 0.000 | G306: A | H306: 0.000 | I306: A | J306: Actuator, Valves, Illum. Panels, Driver …. Max. 4A per card | M306: FALSE | N306: TRUE | O306: 1 | P306: module bus 1
B307: Extinguishing terminal (XCM2002-A2, XCM2003-A2, XT2001-A2) | D307: 1 | E307: pcs | F307: 0.00 | G307: W | H307: 0.00 | I307: W | J307: Min. 1, max. 6 Terminal
B308: Total power consumption | D308: Supply | E308: 1 | F308: 0.00 | G308: W | H308: 0.00 | I308: W | J308: Total power consumption
B311: Sector 4 | D311: Quantity | F311: quiescent power | H311: extinguishing power | J311: remarks | M311: Active | N311: Check | O311: Supply | P311: ModBus
B312: Extinguishing card loads at Outputs (XCI2005-A1, FCA2046-A1) | F312: 0.000 | G312: A | H312: 0.000 | I312: A | J312: Actuator, Valves, Illum. Panels, Driver …. Max. 4A per card | M312: FALSE | N312: TRUE | O312: 1 | P312: module bus 1
B313: Extinguishing terminal (XCM2002-A2, XCM2003-A2, XT2001-A2) | D313: 1 | E313: pcs | F313: 0.00 | G313: W | H313: 0.00 | I313: W | J313: Min. 1, max. 6 Terminal
B314: Total power consumption | D314: Supply | E314: 1 | F314: 0.00 | G314: W | H314: 0.00 | I314: W | J314: Total power consumption
B317: Sector 5 | D317: Quantity | F317: quiescent power | H317: extinguishing power | J317: remarks | M317: Active | N317: Check | O317: Supply | P317: ModBus
B318: Extinguishing card loads at Outputs (XCI2005-A1, FCA2046-A1) | F318: 0.000 | G318: A | H318: 0.000 | I318: A | J318: Actuator, Valves, Illum. Panels, Driver …. Max. 4A per card | M318: FALSE | N318: TRUE | O318: 1 | P318: module bus 1
B319: Extinguishing terminal (XCM2002-A2, XCM2003-A2, XT2001-A2) | D319: 1 | E319: pcs | F319: 0.00 | G319: W | H319: 0.00 | I319: W | J319: Min. 1, max. 6 Terminal
B320: Total power consumption | D320: Supply | E320: 1 | F320: 0.00 | G320: W | H320: 0.00 | I320: W | J320: Total power consumption
B323: Sector 6 | D323: Quantity | F323: quiescent power | H323: extinguishing power | J323: remarks | M323: Active | N323: Check | O323: Supply | P323: ModBus
B324: Extinguishing card loads at Outputs (XCI2005-A1, FCA2046-A1) | F324: 0.000 | G324: A | H324: 0.000 | I324: A | J324: Actuator, Valves, Illum. Panels, Driver …. Max. 4A per card | M324: FALSE | N324: TRUE | O324: 1 | P324: module bus 1
B325: Extinguishing terminal (XCM2002-A2, XCM2003-A2, XT2001-A2) | D325: 1 | E325: pcs | F325: 0.00 | G325: W | H325: 0.00 | I325: W | J325: Min. 1, max. 6 Terminal
B326: Total power consumption | D326: Supply | E326: 1 | F326: 0.00 | G326: W | H326: 0.00 | I326: W | J326: Total power consumption
B329: Sector 7 | D329: Quantity | F329: quiescent power | H329: extinguishing power | J329: remarks | M329: Active | N329: Check | O329: Supply | P329: ModBus
B330: Extinguishing card loads at Outputs (XCI2005-A1, FCA2046-A1) | F330: 0.000 | G330: A | H330: 0.000 | I330: A | J330: Actuator, Valves, Illum. Panels, Driver …. Max. 4A per card | M330: FALSE | N330: TRUE | O330: 1 | P330: module bus 1
B331: Extinguishing terminal (XCM2002-A2, XCM2003-A2, XT2001-A2) | D331: 1 | E331: pcs | F331: 0.00 | G331: W | H331: 0.00 | I331: W | J331: Min. 1, max. 6 Terminal
B332: Total power consumption | D332: Supply | E332: 1 | F332: 0.00 | G332: W | H332: 0.00 | I332: W | J332: Total power consumption
B335: Sector 8 | D335: Quantity | F335: quiescent power | H335: extinguishing power | J335: remarks | M335: Active | N335: Check | O335: Supply | P335: ModBus
B336: Extinguishing card loads at Outputs (XCI2005-A1, FCA2046-A1) | F336: 0.000 | G336: A | H336: 0.000 | I336: A | J336: Actuator, Valves, Illum. Panels, Driver …. Max. 4A per card | M336: FALSE | N336: TRUE | O336: 1 | P336: module bus 1
B337: Extinguishing terminal (XCM2002-A2, XCM2003-A2, XT2001-A2) | D337: 1 | E337: pcs | F337: 0.00 | G337: W | H337: 0.00 | I337: W | J337: Min. 1, max. 6 Terminal
B338: Total power consumption | D338: Supply | E338: 1 | F338: 0.00 | G338: W | H338: 0.00 | I338: W | J338: Total power consumption
B341: Sector 9 | D341: Quantity | F341: quiescent power | H341: extinguishing power | J341: remarks | M341: Active | N341: Check | O341: Supply | P341: ModBus
... 183 more rows

Sheet FS20_Constants (hidden)
A1: General FS20 characteristic values
A4: General
A5: Voltage for degrade time calculation | B5: Gen_24V | C5: 24 | D5: V
A6: Max. amount of I2C devices | B6: Gen_I2C_MaxDevice | C6: 16
A7: Max. possible amount of card cage 2 | B7: Gen_MaxAmountCC2 | C7: 5
A8: Max. possible amount of card cage 5 | B8: Gen_MaxAmountCC5 | C8: 7
A9: Max. possible extinguishing cards per module bus | B9: Gen_MaxExtModBus | C9: 8
A10: Max. possible card cage5 with ext. on module bus 1 | B10: Gen_MaxCC5ModuleBus1_WithExt | C10: 2
A11: Max. possible linecards with ext. on module bus 1 | B11: Gen_MaxCardModuleBus1_WithExt | C11: 12
A12: Max. possible card cage5 w/o ext. on module bus 1 | B12: Gen_MaxCC5ModuleBus1_WithOutExt | C12: 4
A13: Max. possible linecards w/o ext. on module bus 1 | B13: Gen_MaxCardModuleBus1_WithOutExt | C13: 22
A14: Max. possible card cage5 with ext. on module bus 2 | B14: Gen_MaxCC5ModuleBus2_WithExt | C14: 2
A15: Max. possible linecards with ext. on module bus 2 | B15: Gen_MaxCardModuleBus2_WithExt | C15: 10
A16: Max. possible card cage5 w/o ext. on module bus 2 | B16: Gen_MaxCC5ModuleBus2_WithOutExt | C16: 4
A17: Max. possible linecards w/o ext. on module bus 2 | B17: Gen_MaxCardModuleBus2_WithOutExt | C17: 20
A18: Security factor for battery calculation | B18: Gen_LoadSecurityFactor | C18: 1.1
A19: Max. power for add power consumer | B19: Gen_MaxPowerAddConsumer | C19: 4 | D19: A | E19: 24V*4A=96W
A20: Max. battery calculation time | B20: Gen_MaxBattCalcTime | C20: 500 | D20: h
A24: Panel
A25: Panel FCM2027 quiet current | B25: Panel_FCM2027Quiet | C25: 0.090 | D25: A | E25: Quiet current @24V
A26: Panel FCM2027 alarm current | B26: Panel_FCM2027Alarm | C26: 0.140 | D26: A | E26: Alarm current @24V
A28: Panel FT2080 quiet current | B28: Panel_FT2080Quiet | C28: 0.325 | D28: A | E28: Quiet current @24V
A29: Panel FT2080 alarm current | B29: Panel_FT2080Alarm | C29: 0.580 | D29: A | E29: Alarm current @24V
A31: Panel FCI2002 quiet current (w/o FDnet) | B31: Panel_FCI2002Quiet | C31: 0.027 | D31: A | E31: Quiet current @24V
A32: Panel FCI2002 alarm current (w/o FDnet) | B32: Panel_FCI2002Alarm | C32: 0.055 | D32: A | E32: Alarm current @24V
A33: Panel FCI2004 quiet current (w/o FDnet) | B33: Panel_FCI2004Quiet | C33: 0.053 | D33: A | E33: Quiet current @24V
A34: Panel FCI2004 alarm current (w/o FDnet) | B34: Panel_FCI2004Alarm | C34: 0.103 | D34: A | E34: Alarm current @24V
A35: Panel FCI2023 quiet current (w/o FDnet) | B35: Panel_FCI2023Quiet | C35: 0.020 | D35: A | E35: Quiet current @24V
A36: Panel FCI2023 alarm current (w/o FDnet) | B36: Panel_FCI2023Alarm | C36: 0.040 | D36: A | E36: Alarm current @24V
A37: Panel FCI2024 quiet current (w/o FDnet) | B37: Panel_FCI2024Quiet | C37: 0.030 | D37: A | E37: Quiet current @24V
A38: Panel FCI2024 alarm current (w/o FDnet) | B38: Panel_FCI2024Alarm | C38: 0.052 | D38: A | E38: Alarm current @24V
A39: Panel FTI2001 current | B39: Panel_FTI2001 | C39: 0.010 | D39: A | E39: Quiet/Alarm current @24V
A41: Panel FTO2004 (FBA) quiet current | B41: Panel_FTO2004Quiet | C41: 0.015 | D41: A | E41: Quiet current @24V
A42: Panel FTO2004 (FBA) alarm current | B42: Panel_FTO2004Alarm | C42: 0.030 | D42: A | E42: Alarm current @24V
A43: Panel FTO2008 (LED) quiet current | B43: Panel_FTO2008Quiet | C43: 0.005 | D43: A | E43: Quiet current @24V
A44: Panel FTO2008 (LED) alarm current | B44: Panel_FTO2008Alarm | C44: 0.053 | D44: A | E44: Alarm current @24V (48 LED FTO2008 or ~48 LED FTO2002)
A45: Panel FTO2007 (EVAC-NL) quiet current | B45: Panel_FTO2007Quiet | C45: 0.006 | D45: A | E45: Quiet current @24V
A46: Panel FTO2007 (EVAC-NL) alarm current | B46: Panel_FTO2007Alarm | C46: 0.030 | D46: A | E46: Alarm current @24V
A48: Panel FCA2006-A1 connection Module current | B48: Panel_ConnModule | C48: 0.019 | D48: A | E48: Quiet/Alarm current @24V
A51: Output peripheral
A52: Output peripheral max. current per Sounder Line | B52: OutPeripheral_MaxSounder | C52: 1.000 | D52: A
A53: Output peripheral max. current per Supply Output | B53: OutPeripheral_MaxSupply | C53: 1.000 | D53: A
A54: Output peripheral max. current per Fault | B54: OutPeripheral_MaxFault | C54: 0.300 | D54: A
A57: Operation Add-on
A58: Operation Add-on FCI2001 quiet current | B58: OpAddOnFCI2001Quiet | C58: 0.058 | D58: A | E58: Quiet current @24V
A59: Operation Add-on FCI2001 alarm current | B59: OpAddOnFCI2001Alarm | C59: 0.062 | D59: A | E59: Alarm current @24V
A60: Operation Add-on FCI2001 max current | B60: OpAddOnFCI2001Max | C60: 1.000 | D60: A
A61: Operation Add-on FCM2006 quiet current | B61: OpAddOnFCM2006Quiet | C61: =2*C43 -> 0.010 | D61: A | E61: Quiet current @24V / FCM7213-Y3
A62: Operation Add-on FCM2006 alarm current | B62: OpAddOnFCM2006Alarm | C62: =2*C44 -> 0.106 | D62: A | E62: Alarm current @24V / FCM7213-Y3
A63: Operation Add-on FCM2007 quiet current | B63: OpAddOnFCM2007Quiet | C63: =4*C43 -> 0.020 | D63: A | E63: Quiet current @24V / FCM7214-Y3
A64: Operation Add-on FCM2007 alarm current | B64: OpAddOnFCM2007Alarm | C64: =4*C44 -> 0.212 | D64: A | E64: Alarm current @24V / FCM7214-Y3
A65: Operation Add-on FCM2008 (EVAC-NL) quiet current | B65: OpAddOnFCM2008Quiet | C65: =2*C45 -> 0.012 | D65: A | E65: Quiet current @24V / FCM7221-H3
A66: Operation Add-on FCM2008 (EVAC-NL) alarm current | B66: OpAddOnFCM2008Alarm | C66: =2*C46 -> 0.060 | D66: A | E66: Alarm current @24V / FCM7221-H3
A67: Operation Add-on FTI2002-N1 (EVAC-NL) con. Board | B67: OpAddOnFTI2002 | C67: 0.024 | D67: A | E67: Current @24V
A70: Network&Communication PMI
A71: Network&Comm Ethernet current | B71: NetCommPMI_Ethernet | C71: 0.015 | D71: A | E71: Quiet/Alarm current @24V
A72: Network&Comm FN2001 current | B72: NetCommPMI_FN2001 | C72: 0.022 | D72: A | E72: Quiet/Alarm current @24V
A73: Network&Comm FCA2001 current | B73: NetCommPMI_FCA2001 | C73: 0.011 | D73: A | E73: Quiet/Alarm current @24V (0.065@3V3 with 80% efficency)
A74: Network&Comm FCA2002 current | B74: NetCommPMI_FCA2002 | C74: 0.011 | D74: A | E74: Quiet/Alarm current @24V
A75: Network&Comm max serial | B75: NetCommPMI_MaxSerial | C75: 2
A78: Network&Communication Add-on
A79: Network&Comm Add-on FN2008 current | B79: NetCommAddOn_FN2008 | C79: 0.163 | D79: A | E79: Quiet/Alarm current @24V
A80: Network&Comm Add-on FN2009 current | B80: NetCommAddOn_FN2009 | C80: 0.188 | D80: A | E80: Quiet/Alarm current @24V
A81: Network&Comm Add-on FN2006 current | B81: NetCommAddOn_FN2006 | C81: 0.130 | D81: A | E81: Quiet/Alarm current @24V
A82: Network&Comm Add-on FN2012 current | B82: NetCommAddOn_FN2012 | C82: 0.192 | D82: A | E82: Quiet/Alarm current @24V
A83: Network&Comm Add-on FN2002 current | B83: NetCommAddOn_FN2002 | C83: 0.045 | D83: A | E83: Quiet/Alarm current @24V
A84: Network&Comm Add-on DL485 current | B84: NetCommAddOn_DL485 | C84: 0.062 | D84: A | E84: Quiet/Alarm current @24V
A85: Network&Comm Add-on Event Printer quiet current | B85: NetCommAddOn_EventPrinterQuiet | C85: 0.050 | D85: A | E85: Quiet current @24V
A86: Network&Comm Add-on Event Printer alarm current | B86: NetCommAddOn_EventPrinterAlarm | C86: 0.060 | D86: A | E86: Alarm current @24V
A87: Network&Comm Add-on Remote EVAC quiet current | B87: NetCommAddOn_RemoteEVACQuiet | C87: =OpAddOnFTI2002+OpAddOnFCM2008Quiet -> 0.036 | D87: A | E87: Quiet current @24V
A88: Network&Comm Add-on Remote EVAC alarm current | B88: NetCommAddOn_RemoteEVACAlarm | C88: =OpAddOnFTI2002+OpAddOnFCM2008Alarm -> 0.084 | D88: A | E88: Alarm current @24V
A89: Network&Comm Add-on FT2003 quiet current | B89: NetCommAddOn_FT2003Quiet | C89: 0.018 | D89: A | E89: Quiet current @24V
A90: Network&Comm Add-on FT2003 alarm current | B90: NetCommAddOn_FT2003Alarm | C90: 0.085 | D90: A | E90: Alarm current @24V
A91: Network&Comm Add-on max amount | B91: NetCommAddOn_MaxAmout | C91: 5 | D91: pcs
A94: Extinguishing
A95: Extinguishing card XCI2005-A1 HCS12 quiet current consumption | B95: ExtCard_HCS12_Quiet | C95: 0.022 | D95: A | E95: Quiet current terminal @24V
A96: Extinguishing card XCI2005-A1 MSP430 quiet current consumption | B96: ExtCard_MSP430_Quiet | C96: 0.066 | D96: A | E96: Quiet current terminal @24V
A97: Extinguishing card XCI2005-A1 max. Current | B97: ExtCard_MaxCurrent | C97: 4 | D97: A
A98: Extinguishing card XCI2005-A1 min. amount of Extinguishing Terminal | B98: ExtCard_MinAmountTerminal | C98: 1 | D98: pcs
A99: Extinguishing card XCI2005-A1 max. amount of Extinguishing Terminal | B99: ExtCard_MaxAmountTerminal | C99: 6 | D99: pcs
A100: Extinguishing terminal XTO2001-A1 quiet current 24V | B100: ExtTerminal_Quiet_Int_24V | C100: 0.024 | D100: A | E100: Quiet current terminal @24V (1*green, 1*white)
A101: Extinguishing terminal XTO2001-A1 extinguishing current 24V | B101: ExtTerminal_Ext_Int_24V | C101: 0.046 | D101: A | E101: Extinguishing current terminal @24V (Counter, Led's and Buzzer)
A102: Extinguishing terminal XTO2001-A1 quiet current 12V | B102: ExtTerminal_Quiet_Ext_12V | C102: 0.038 | D102: A | E102: Quiet current terminal @12V (1*green, 1*white)
A103: Extinguishing terminal XTO2001-A1 extinguishing current 12V | B103: ExtTerminal_Ext_Ext_12V | C103: 0.082 | D103: A | E103: Extinguishing current terminal @12V (Counter, Led's and Buzzer)
C396: 0
C397: 0
C409: 0
C410: 0

Sheet Panel_values (hidden)
B1: Variants
A2: Panel Types | B2: 1 | C2: 2 | D2: 3 | E2: 4 | F2: 5 | G2: 6 | H2: 7 | I2: 8 | J2: 9 | K2: 10 | L2: 11 | M2: 12 | N2: 13 | O2: 14 | P2: 15 | Q2: 16 | R2: 17 | S2: 18 | T2: 19 | U2: 20 | V2: 21 | W2: 22 | X2: 23 | Y2: 24 | Z2: 25
A3: FC721 = 1 | B3: FC721-ZZ | C3: FC721-YZ | D3: FC721-HZ | E3: -- | F3: -- | G3: -- | H3: -- | I3: -- | J3: -- | K3: -- | L3: -- | M3: -- | N3: -- | O3: -- | P3: -- | Q3: -- | R3: -- | S3: -- | T3: -- | U3: -- | V3: -- | W3: -- | X3: -- | Y3: -- | Z3: --
A4: FC722 = 2 | B4: FC722-ZZ | C4: FC722-ZZ (P) | D4: FC722-YZ | E4: FC722-YZ (P) | F4: FC722-ZA | G4: FC722-ZA (P) | H4: FC722-ZE | I4: FC722-ZE (P) | J4: FC722-HA | K4: FC722-HA (P) | L4: FC722-XZ | M4: FC722-XZ (P) | N4: FC722-XA | O4: FC722-XA (P) | P4: -- | Q4: -- | R4: -- | S4: -- | T4: -- | U4: -- | V4: -- | W4: -- | X4: -- | Y4: -- | Z4: --
A5: FC723 = 3 | B5: FC723-ZA | C5: FC723-ZA (P) | D5: -- | E5: -- | F5: -- | G5: -- | H5: -- | I5: -- | J5: -- | K5: -- | L5: -- | M5: -- | N5: -- | O5: -- | P5: -- | Q5: -- | R5: -- | S5: -- | T5: -- | U5: -- | V5: -- | W5: -- | X5: -- | Y5: -- | Z5: --
A6: FC724 = 4 | B6: FC724-ZA | C6: FC724-ZA (P) | D6: FC724-ZE | E6: FC724-ZE (P) | F6: FC724-HA | G6: FC724-HA (P) | H6: FC724-XA | I6: FC724-XA (P) | J6: -- | K6: -- | L6: -- | M6: -- | N6: -- | O6: -- | P6: -- | Q6: -- | R6: -- | S6: -- | T6: -- | U6: -- | V6: -- | W6: -- | X6: -- | Y6: -- | Z6: --
A7: FC726 = 5 | B7: FC726-ZA | C7: FC726-ZA (P) | D7: FC726-XA | E7: FC726-XA (P) | F7: -- | G7: -- | H7: -- | I7: -- | J7: -- | K7: -- | L7: -- | M7: -- | N7: -- | O7: -- | P7: -- | Q7: -- | R7: -- | S7: -- | T7: -- | U7: -- | V7: -- | W7: -- | X7: -- | Y7: -- | Z7: --
A8: FT724 = 6 | B8: FT724-ZZ | C8: FT724-HZ | D8: -- | E8: -- | F8: -- | G8: -- | H8: -- | I8: -- | J8: -- | K8: -- | L8: -- | M8: -- | N8: -- | O8: -- | P8: -- | Q8: -- | R8: -- | S8: -- | T8: -- | U8: -- | V8: -- | W8: -- | X8: -- | Y8: -- | Z8: --
A9: FC728 = 7
A10: FG722 = 8
A11: FT728= 9
B22: =B$1 -> Variants
A23: Panel Order Numbers | B23: =B$2 -> 1 | C23: =C$2 -> 2 | D23: =D$2 -> 3 | E23: 4 | F23: 5 | G23: 6 | H23: 7 | I23: 8 | J23: 9 | K23: 10 | L23: 11 | M23: 12 | N23: 13 | O23: 14 | P23: 15 | Q23: 16 | R23: 17 | S23: 18 | T23: 19 | U23: 20 | V23: 21 | W23: 22 | X23: 23 | Y23: 24 | Z23: 25
A24: =A$3 -> FC721 = 1 | B24: S54400-C32-A2 | C24: S54400-C32-A3 | D24: S54400-C32-A1 | E24: -- | F24: -- | G24: -- | H24: -- | I24: -- | J24: -- | K24: -- | L24: -- | M24: -- | N24: -- | O24: -- | P24: -- | Q24: -- | R24: -- | S24: -- | T24: -- | U24: -- | V24: -- | W24: -- | X24: -- | Y24: -- | Z24: --
A25: =A$4 -> FC722 = 2 | B25: S54400-C29-A5 | C25: S54433-C113-A1 | D25: S54400-C29-A4 | E25: S54433-C113-A2 | F25: S54400-C29-A2 | G25: S54433-C113-A3 | H25: S54400-C29-A1 | I25: S54433-C113-A4 | J25: S54400-C29-A3 | K25: S54433-C113-A5 | L25: S54400-C29-A7 | M25: S54433-C113-A6 | N25: S54400-C29-A6 | O25: S54433-C113-A7 | P25: -- | Q25: -- | R25: -- | S25: -- | T25: -- | U25: -- | V25: -- | W25: -- | X25: -- | Y25: -- | Z25: --
A26: =A$5 -> FC723 = 3 | B26: S54400-C143-A1 | C26: S54433-C114-A1 | D26: -- | E26: -- | F26: -- | G26: -- | H26: -- | I26: -- | J26: -- | K26: -- | L26: -- | M26: -- | N26: -- | O26: -- | P26: -- | Q26: -- | R26: -- | S26: -- | T26: -- | U26: -- | V26: -- | W26: -- | X26: -- | Y26: -- | Z26: --
A27: =A$6 -> FC724 = 4 | B27: S54400-C30-A2 | C27: S54433-C115-A1 | D27: S54400-C30-A3 | E27: S54433-C115-A2 | F27: S54400-C30-A1 | G27: S54433-C115-A3 | H27: S54400-C30-A4 | I27: S54433-C115-A4 | J27: -- | K27: -- | L27: -- | M27: -- | N27: -- | O27: -- | P27: -- | Q27: -- | R27: -- | S27: -- | T27: -- | U27: -- | V27: -- | W27: -- | X27: -- | Y27: -- | Z27: --
A28: =A$7 -> FC726 = 5 | B28: S54400-C87-A1 | C28: S54433-C116-A1 | D28: S54400-C166-A2 | E28: S54433-C116-A2 | F28: -- | G28: -- | H28: -- | I28: -- | J28: -- | K28: -- | L28: -- | M28: -- | N28: -- | O28: -- | P28: -- | Q28: -- | R28: -- | S28: -- | T28: -- | U28: -- | V28: -- | W28: -- | X28: -- | Y28: -- | Z28: --
A29: =A$8 -> FT724 = 6 | B29: S54400-C31-A2 | C29: S54400-C31-A1 | D29: -- | E29: -- | F29: -- | G29: -- | H29: -- | I29: -- | J29: -- | K29: -- | L29: -- | M29: -- | N29: -- | O29: -- | P29: -- | Q29: -- | R29: -- | S29: -- | T29: -- | U29: -- | V29: -- | W29: -- | X29: -- | Y29: -- | Z29: --
A30: =A$9 -> FC728 = 7
A31: =A$10 -> FG722 = 8
A32: =A$11 -> FT728= 9
A33: =A$12 -> 
A34: =A$13 -> 
A35: =A$14 -> 
A36: =A$15 -> 
A37: =A$16 -> 
A38: =A$17 -> 
A39: =A$18 -> 
A40: =A$19 -> 
A41: =A$20 -> 
B43: =B$1 -> Variants
A44: Panel Descriptions | B44: =B$2 -> 1 | C44: =C$2 -> 2 | D44: =D$2 -> 3 | E44: 4 | F44: 5 | G44: 6 | H44: 7 | I44: 8 | J44: 9 | K44: 10 | L44: 11 | M44: 12 | N44: 13 | O44: 14 | P44: 15 | Q44: 16 | R44: 17 | S44: 18 | T44: 19 | U44: 20 | V44: 21 | W44: 22 | X44: 23 | Y44: 24 | Z44: 25
A45: =A$3 -> FC721 = 1 | B45: International | C45: 24 zone LED indicator | D45: NL, with EVAC (10-zone) | E45: -- | F45: -- | G45: -- | H45: -- | I45: -- | J45: -- | K45: -- | L45: -- | M45: -- | N45: -- | O45: -- | P45: -- | Q45: -- | R45: -- | S45: -- | T45: -- | U45: -- | V45: -- | W45: -- | X45: -- | Y45: -- | Z45: --
A46: =A$4 -> FC722 = 2 | B46: International | C46: International | D46: 24 zone LED indicator | E46: 24 zone LED indicator | F46: International | G46: International | H46: 48 zone LED indicator | I46: 48 zone LED indicator | J46: NL, with EVAC (10-zone) | K46: NL, with EVAC (10-zone) | L46: 24 zone LED indicator (AU) | M46: 24 zone LED indicator (AU) | N46: 24 zone LED indicator (AU) | O46: 24 zone LED indicator (AU) | P46: -- | Q46: -- | R46: -- | S46: -- | T46: -- | U46: -- | V46: -- | W46: -- | X46: -- | Y46: -- | Z46: --
A47: =A$5 -> FC723 = 3 | B47: International | C47: International | D47: -- | E47: -- | F47: -- | G47: -- | H47: -- | I47: -- | J47: -- | K47: -- | L47: -- | M47: -- | N47: -- | O47: -- | P47: -- | Q47: -- | R47: -- | S47: -- | T47: -- | U47: -- | V47: -- | W47: -- | X47: -- | Y47: -- | Z47: --
A48: =A$6 -> FC724 = 4 | B48: International | C48: International | D48: 48 zone LED indicator | E48: 48 zone LED indicator | F48: NL, with EVAC (10-zone) | G48: NL, with EVAC (10-zone) | H48: 24 zone LED indicator (AU) | I48: 24 zone LED indicator (AU) | J48: -- | K48: -- | L48: -- | M48: -- | N48: -- | O48: -- | P48: -- | Q48: -- | R48: -- | S48: -- | T48: -- | U48: -- | V48: -- | W48: -- | X48: -- | Y48: -- | Z48: --
A49: =A$7 -> FC726 = 5 | B49: International | C49: International | D49: 24 zone LED indicator (AU) | E49: 24 zone LED indicator (AU) | F49: -- | G49: -- | H49: -- | I49: -- | J49: -- | K49: -- | L49: -- | M49: -- | N49: -- | O49: -- | P49: -- | Q49: -- | R49: -- | S49: -- | T49: -- | U49: -- | V49: -- | W49: -- | X49: -- | Y49: -- | Z49: --
A50: =A$8 -> FT724 = 6 | B50: International | C50: NL, with EVAC (10-zone) | D50: -- | E50: -- | F50: -- | G50: -- | H50: -- | I50: -- | J50: -- | K50: -- | L50: -- | M50: -- | N50: -- | O50: -- | P50: -- | Q50: -- | R50: -- | S50: -- | T50: -- | U50: -- | V50: -- | W50: -- | X50: -- | Y50: -- | Z50: --
A51: =A$9 -> FC728 = 7
A52: =A$10 -> FG722 = 8
A53: =A$11 -> FT728= 9
A54: =A$12 -> 
A55: =A$13 -> 
A56: =A$14 -> 
A57: =A$15 -> 
A58: =A$16 -> 
A59: =A$17 -> 
A60: =A$18 -> 
A61: =A$19 -> 
A62: =A$20 -> 
B64: =B$1 -> Variants
A65: Main CPU | B65: =B$2 -> 1 | C65: =C$2 -> 2 | D65: =D$2 -> 3 | E65: 4 | F65: 5 | G65: 6 | H65: 7 | I65: 8 | J65: 9 | K65: 10 | L65: 11 | M65: 12 | N65: 13 | O65: 14 | P65: 15 | Q65: 16 | R65: 17 | S65: 18 | T65: 19 | U65: 20 | V65: 21 | W65: 22 | X65: 23 | Y65: 24 | Z65: 25
A66: =A$3 -> FC721 = 1 | B66: FCM2027 | C66: FCM2027 | D66: FCM2027 | E66: -- | F66: -- | G66: -- | H66: -- | I66: -- | J66: -- | K66: -- | L66: -- | M66: -- | N66: -- | O66: -- | P66: -- | Q66: -- | R66: -- | S66: -- | T66: -- | U66: -- | V66: -- | W66: -- | X66: -- | Y66: -- | Z66: --
A67: =A$4 -> FC722 = 2 | B67: FCM2027 | C67: FCM2027 | D67: FCM2027 | E67: FCM2027 | F67: FCM2027 | G67: FCM2027 | H67: FCM2027 | I67: FCM2027 | J67: FCM2027 | K67: FCM2027 | L67: FCM2027 | M67: FCM2027 | N67: FCM2027 | O67: FCM2027 | P67: -- | Q67: -- | R67: -- | S67: -- | T67: -- | U67: -- | V67: -- | W67: -- | X67: -- | Y67: -- | Z67: --
A68: =A$5 -> FC723 = 3 | B68: FCM2027 | C68: FCM2027 | D68: -- | E68: -- | F68: -- | G68: -- | H68: -- | I68: -- | J68: -- | K68: -- | L68: -- | M68: -- | N68: -- | O68: -- | P68: -- | Q68: -- | R68: -- | S68: -- | T68: -- | U68: -- | V68: -- | W68: -- | X68: -- | Y68: -- | Z68: --
A69: =A$6 -> FC724 = 4 | B69: FCM2027 | C69: FCM2027 | D69: FCM2027 | E69: FCM2027 | F69: FCM2027 | G69: FCM2027 | H69: FCM2027 | I69: FCM2027 | J69: -- | K69: -- | L69: -- | M69: -- | N69: -- | O69: -- | P69: -- | Q69: -- | R69: -- | S69: -- | T69: -- | U69: -- | V69: -- | W69: -- | X69: -- | Y69: -- | Z69: --
A70: =A$7 -> FC726 = 5 | B70: FCM2027 | C70: FCM2027 | D70: FCM2027 | E70: FCM2027 | F70: -- | G70: -- | H70: -- | I70: -- | J70: -- | K70: -- | L70: -- | M70: -- | N70: -- | O70: -- | P70: -- | Q70: -- | R70: -- | S70: -- | T70: -- | U70: -- | V70: -- | W70: -- | X70: -- | Y70: -- | Z70: --
A71: =A$8 -> FT724 = 6 | B71: FCM2027 | C71: FCM2027 | D71: -- | E71: -- | F71: -- | G71: -- | H71: -- | I71: -- | J71: -- | K71: -- | L71: -- | M71: -- | N71: -- | O71: -- | P71: -- | Q71: -- | R71: -- | S71: -- | T71: -- | U71: -- | V71: -- | W71: -- | X71: -- | Y71: -- | Z71: --
A72: =A$9 -> FC728 = 7
A73: =A$10 -> FG722 = 8
A74: =A$11 -> FT728= 9
A75: =A$12 -> 
A76: =A$13 -> 
A77: =A$14 -> 
A78: =A$15 -> 
A79: =A$16 -> 
A80: =A$17 -> 
A81: =A$18 -> 
A82: =A$19 -> 
A83: =A$20 -> 
B85: =B$1 -> Variants
A86: PMI Button | B86: =B$2 -> 1 | C86: =C$2 -> 2 | D86: =D$2 -> 3 | E86: 4 | F86: 5 | G86: 6 | H86: 7 | I86: 8 | J86: 9 | K86: 10 | L86: 11 | M86: 12 | N86: 13 | O86: 14 | P86: 15 | Q86: 16 | R86: 17 | S86: 18 | T86: 19 | U86: 20 | V86: 21 | W86: 22 | X86: 23 | Y86: 24 | Z86: 25
A87: =A$3 -> FC721 = 1 | B87: -- | C87: -- | D87: -- | E87: -- | F87: -- | G87: -- | H87: -- | I87: -- | J87: -- | K87: -- | L87: -- | M87: -- | N87: -- | O87: -- | P87: -- | Q87: -- | R87: -- | S87: -- | T87: -- | U87: -- | V87: -- | W87: -- | X87: -- | Y87: -- | Z87: --
A88: =A$4 -> FC722 = 2 | B88: -- | C88: -- | D88: -- | E88: -- | F88: -- | G88: -- | H88: -- | I88: -- | J88: -- | K88: -- | L88: -- | M88: -- | N88: -- | O88: -- | P88: -- | Q88: -- | R88: -- | S88: -- | T88: -- | U88: -- | V88: -- | W88: -- | X88: -- | Y88: -- | Z88: --
A89: =A$5 -> FC723 = 3 | B89: -- | C89: -- | D89: -- | E89: -- | F89: -- | G89: -- | H89: -- | I89: -- | J89: -- | K89: -- | L89: -- | M89: -- | N89: -- | O89: -- | P89: -- | Q89: -- | R89: -- | S89: -- | T89: -- | U89: -- | V89: -- | W89: -- | X89: -- | Y89: -- | Z89: --
A90: =A$6 -> FC724 = 4 | B90: -- | C90: -- | D90: -- | E90: -- | F90: -- | G90: -- | H90: -- | I90: -- | J90: -- | K90: -- | L90: -- | M90: -- | N90: -- | O90: -- | P90: -- | Q90: -- | R90: -- | S90: -- | T90: -- | U90: -- | V90: -- | W90: -- | X90: -- | Y90: -- | Z90: --
A91: =A$7 -> FC726 = 5 | B91: -- | C91: -- | D91: -- | E91: -- | F91: -- | G91: -- | H91: -- | I91: -- | J91: -- | K91: -- | L91: -- | M91: -- | N91: -- | O91: -- | P91: -- | Q91: -- | R91: -- | S91: -- | T91: -- | U91: -- | V91: -- | W91: -- | X91: -- | Y91: -- | Z91: --
A92: =A$8 -> FT724 = 6 | B92: -- | C92: -- | D92: -- | E92: -- | F92: -- | G92: -- | H92: -- | I92: -- | J92: -- | K92: -- | L92: -- | M92: -- | N92: -- | O92: -- | P92: -- | Q92: -- | R92: -- | S92: -- | T92: -- | U92: -- | V92: -- | W92: -- | X92: -- | Y92: -- | Z92: --
A93: =A$9 -> FC728 = 7
A94: =A$10 -> FG722 = 8
A95: =A$11 -> FT728= 9
A96: =A$12 -> 
A97: =A$13 -> 
A98: =A$14 -> 
A99: =A$15 -> 
A100: =A$16 -> 
A101: =A$17 -> 
A102: =A$18 -> 
A103: =A$19 -> 
A104: =A$20 -> 
B106: =B$1 -> Variants
A107: Empty | B107: =B$2 -> 1 | C107: =C$2 -> 2 | D107: =D$2 -> 3 | E107: 4 | F107: 5 | G107: 6 | H107: 7 | I107: 8 | J107: 9 | K107: 10 | L107: 11 | M107: 12 | N107: 13 | O107: 14 | P107: 15 | Q107: 16 | R107: 17 | S107: 18 | T107: 19 | U107: 20 | V107: 21 | W107: 22 | X107: 23 | Y107: 24 | Z107: 25
A108: =A$3 -> FC721 = 1 | B108: -- | C108: -- | D108: -- | E108: -- | F108: -- | G108: -- | H108: -- | I108: -- | J108: -- | K108: -- | L108: -- | M108: -- | N108: -- | O108: -- | P108: -- | Q108: -- | R108: -- | S108: -- | T108: -- | U108: -- | V108: -- | W108: -- | X108: -- | Y108: -- | Z108: --
A109: =A$4 -> FC722 = 2 | B109: -- | C109: -- | D109: -- | E109: -- | F109: -- | G109: -- | H109: -- | I109: -- | J109: -- | K109: -- | L109: -- | M109: -- | N109: -- | O109: -- | P109: -- | Q109: -- | R109: -- | S109: -- | T109: -- | U109: -- | V109: -- | W109: -- | X109: -- | Y109: -- | Z109: --
A110: =A$5 -> FC723 = 3 | B110: -- | C110: -- | D110: -- | E110: -- | F110: -- | G110: -- | H110: -- | I110: -- | J110: -- | K110: -- | L110: -- | M110: -- | N110: -- | O110: -- | P110: -- | Q110: -- | R110: -- | S110: -- | T110: -- | U110: -- | V110: -- | W110: -- | X110: -- | Y110: -- | Z110: --
A111: =A$6 -> FC724 = 4 | B111: -- | C111: -- | D111: -- | E111: -- | F111: -- | G111: -- | H111: -- | I111: -- | J111: -- | K111: -- | L111: -- | M111: -- | N111: -- | O111: -- | P111: -- | Q111: -- | R111: -- | S111: -- | T111: -- | U111: -- | V111: -- | W111: -- | X111: -- | Y111: -- | Z111: --
A112: =A$7 -> FC726 = 5 | B112: -- | C112: -- | D112: -- | E112: -- | F112: -- | G112: -- | H112: -- | I112: -- | J112: -- | K112: -- | L112: -- | M112: -- | N112: -- | O112: -- | P112: -- | Q112: -- | R112: -- | S112: -- | T112: -- | U112: -- | V112: -- | W112: -- | X112: -- | Y112: -- | Z112: --
A113: =A$8 -> FT724 = 6 | B113: -- | C113: -- | D113: -- | E113: -- | F113: -- | G113: -- | H113: -- | I113: -- | J113: -- | K113: -- | L113: -- | M113: -- | N113: -- | O113: -- | P113: -- | Q113: -- | R113: -- | S113: -- | T113: -- | U113: -- | V113: -- | W113: -- | X113: -- | Y113: -- | Z113: --
A114: =A$9 -> FC728 = 7
A115: =A$10 -> FG722 = 8
A116: =A$11 -> FT728= 9
A117: =A$12 -> 
A118: =A$13 -> 
A119: =A$14 -> 
A120: =A$15 -> 
A121: =A$16 -> 
A122: =A$17 -> 
A123: =A$18 -> 
A124: =A$19 -> 
A125: =A$20 -> 
B127: Variants
A128: Panel Peripherie | B128: =B$2 -> 1 | C128: =C$2 -> 2 | D128: =D$2 -> 3 | E128: 4 | F128: 5 | G128: 6 | H128: 7 | I128: 8 | J128: 9 | K128: 10 | L128: 11 | M128: 12 | N128: 13 | O128: 14 | P128: 15 | Q128: 16 | R128: 17 | S128: 18 | T128: 19 | U128: 20 | V128: 21 | W128: 22 | X128: 23 | Y128: 24 | Z128: 25
A129: =A$3 -> FC721 = 1 | B129: FCI2010 | C129: FCI2010 | D129: FCI2010 | E129: -- | F129: -- | G129: -- | H129: -- | I129: -- | J129: -- | K129: -- | L129: -- | M129: -- | N129: -- | O129: -- | P129: -- | Q129: -- | R129: -- | S129: -- | T129: -- | U129: -- | V129: -- | W129: -- | X129: -- | Y129: -- | Z129: --
A130: =A$4 -> FC722 = 2 | B130: FCI2002 | C130: FCI2023 | D130: FCI2002 | E130: FCI2023 | F130: FCI2002 | G130: FCI2023 | H130: FCI2002 | I130: FCI2023 | J130: FCI2002 | K130: FCI2023 | L130: FCI2002 | M130: FCI2023 | N130: FCI2002 | O130: FCI2023 | P130: -- | Q130: -- | R130: -- | S130: -- | T130: -- | U130: -- | V130: -- | W130: -- | X130: -- | Y130: -- | Z130: --
A131: =A$5 -> FC723 = 3 | B131: FCI2002 | C131: FCI2023 | D131: -- | E131: -- | F131: -- | G131: -- | H131: -- | I131: -- | J131: -- | K131: -- | L131: -- | M131: -- | N131: -- | O131: -- | P131: -- | Q131: -- | R131: -- | S131: -- | T131: -- | U131: -- | V131: -- | W131: -- | X131: -- | Y131: -- | Z131: --
A132: =A$6 -> FC724 = 4 | B132: FCI2004 | C132: FCI2024 | D132: FCI2004 | E132: FCI2024 | F132: FCI2004 | G132: FCI2024 | H132: FCI2004 | I132: FCI2024 | J132: -- | K132: -- | L132: -- | M132: -- | N132: -- | O132: -- | P132: -- | Q132: -- | R132: -- | S132: -- | T132: -- | U132: -- | V132: -- | W132: -- | X132: -- | Y132: -- | Z132: --
A133: =A$7 -> FC726 = 5 | B133: FCI2004 | C133: FCI2024 | D133: FCI2004 | E133: FCI2024 | F133: -- | G133: -- | H133: -- | I133: -- | J133: -- | K133: -- | L133: -- | M133: -- | N133: -- | O133: -- | P133: -- | Q133: -- | R133: -- | S133: -- | T133: -- | U133: -- | V133: -- | W133: -- | X133: -- | Y133: -- | Z133: --
A134: =A$8 -> FT724 = 6 | B134: FTI2001 | C134: FTI2001 | D134: -- | E134: -- | F134: -- | G134: -- | H134: -- | I134: -- | J134: -- | K134: -- | L134: -- | M134: -- | N134: -- | O134: -- | P134: -- | Q134: -- | R134: -- | S134: -- | T134: -- | U134: -- | V134: -- | W134: -- | X134: -- | Y134: -- | Z134: --
A135: =A$9 -> FC728 = 7
A136: =A$10 -> FG722 = 8
A137: =A$11 -> FT728= 9
A138: =A$12 -> 
A139: =A$13 -> 
A140: =A$14 -> 
A141: =A$15 -> 
A142: =A$16 -> 
A143: =A$17 -> 
A144: =A$18 -> 
A145: =A$19 -> 
A146: =A$20 -> 
B148: =B$1 -> Variants
A149: Panel Extra Equipment | B149: =B$2 -> 1 | C149: =C$2 -> 2 | D149: =D$2 -> 3 | E149: 4 | F149: 5 | G149: 6 | H149: 7 | I149: 8 | J149: 9 | K149: 10 | L149: 11 | M149: 12 | N149: 13 | O149: 14 | P149: 15 | Q149: 16 | R149: 17 | S149: 18 | T149: 19 | U149: 20 | V149: 21 | W149: 22 | X149: 23 | Y149: 24 | Z149: 25
A150: =A$3 -> FC721 = 1 | B150: -- | C150: 1xLED | D150: EVAC | E150: -- | F150: -- | G150: -- | H150: -- | I150: -- | J150: -- | K150: -- | L150: -- | M150: -- | N150: -- | O150: -- | P150: -- | Q150: -- | R150: -- | S150: -- | T150: -- | U150: -- | V150: -- | W150: -- | X150: -- | Y150: -- | Z150: --
A151: =A$4 -> FC722 = 2 | B151: -- | C151: -- | D151: 1xLED | E151: 1xLED | F151: -- | G151: -- | H151: 2xLED | I151: 2xLED | J151: EVAC | K151: EVAC | L151: 1xLED | M151: 1xLED | N151: 1xLED | O151: 1xLED | P151: -- | Q151: -- | R151: -- | S151: -- | T151: -- | U151: -- | V151: -- | W151: -- | X151: -- | Y151: -- | Z151: --
A152: =A$5 -> FC723 = 3 | B152: -- | C152: -- | D152: -- | E152: -- | F152: -- | G152: -- | H152: -- | I152: -- | J152: -- | K152: -- | L152: -- | M152: -- | N152: -- | O152: -- | P152: -- | Q152: -- | R152: -- | S152: -- | T152: -- | U152: -- | V152: -- | W152: -- | X152: -- | Y152: -- | Z152: --
A153: =A$6 -> FC724 = 4 | B153: -- | C153: -- | D153: 2xLED | E153: 2xLED | F153: EVAC | G153: EVAC | H153: 1xLED | I153: 1xLED | J153: -- | K153: -- | L153: -- | M153: -- | N153: -- | O153: -- | P153: -- | Q153: -- | R153: -- | S153: -- | T153: -- | U153: -- | V153: -- | W153: -- | X153: -- | Y153: -- | Z153: --
A154: =A$7 -> FC726 = 5 | B154: -- | C154: -- | D154: 1xLED | E154: 1xLED | F154: -- | G154: -- | H154: -- | I154: -- | J154: -- | K154: -- | L154: -- | M154: -- | N154: -- | O154: -- | P154: -- | Q154: -- | R154: -- | S154: -- | T154: -- | U154: -- | V154: -- | W154: -- | X154: -- | Y154: -- | Z154: --
A155: =A$8 -> FT724 = 6 | B155: -- | C155: EVAC | D155: -- | E155: -- | F155: -- | G155: -- | H155: -- | I155: -- | J155: -- | K155: -- | L155: -- | M155: -- | N155: -- | O155: -- | P155: -- | Q155: -- | R155: -- | S155: -- | T155: -- | U155: -- | V155: -- | W155: -- | X155: -- | Y155: -- | Z155: --
A156: =A$9 -> FC728 = 7
A157: =A$10 -> FG722 = 8
A158: =A$11 -> FT728= 9
A159: =A$12 -> 
A160: =A$13 -> 
A161: =A$14 -> 
A162: =A$15 -> 
A163: =A$16 -> 
A164: =A$17 -> 
A165: =A$18 -> 
A166: =A$19 -> 
A167: =A$20 -> 
B169: =B$1 -> Variants
A170: Operation Add-on | B170: =B$2 -> 1 | C170: =C$2 -> 2 | D170: =D$2 -> 3 | E170: 4 | F170: 5 | G170: 6 | H170: 7 | I170: 8 | J170: 9 | K170: 10 | L170: 11 | M170: 12 | N170: 13 | O170: 14 | P170: 15 | Q170: 16 | R170: 17 | S170: 18 | T170: 19 | U170: 20 | V170: 21 | W170: 22 | X170: 23 | Y170: 24 | Z170: 25
A171: =A$3 -> FC721 = 1 | B171: show | C171: show | D171: show | E171: -- | F171: -- | G171: -- | H171: -- | I171: -- | J171: -- | K171: -- | L171: -- | M171: -- | N171: -- | O171: -- | P171: -- | Q171: -- | R171: -- | S171: -- | T171: -- | U171: -- | V171: -- | W171: -- | X171: -- | Y171: -- | Z171: --
A172: =A$4 -> FC722 = 2 | B172: show | C172: show | D172: show | E172: show | F172: show | G172: show | H172: show | I172: show | J172: show | K172: show | L172: show | M172: show | N172: show | O172: show | P172: -- | Q172: -- | R172: -- | S172: -- | T172: -- | U172: -- | V172: -- | W172: -- | X172: -- | Y172: -- | Z172: --
A173: =A$5 -> FC723 = 3 | B173: show | C173: show | D173: -- | E173: -- | F173: -- | G173: -- | H173: -- | I173: -- | J173: -- | K173: -- | L173: -- | M173: -- | N173: -- | O173: -- | P173: -- | Q173: -- | R173: -- | S173: -- | T173: -- | U173: -- | V173: -- | W173: -- | X173: -- | Y173: -- | Z173: --
A174: =A$6 -> FC724 = 4 | B174: show | C174: show | D174: show | E174: show | F174: show | G174: show | H174: show | I174: show | J174: -- | K174: -- | L174: -- | M174: -- | N174: -- | O174: -- | P174: -- | Q174: -- | R174: -- | S174: -- | T174: -- | U174: -- | V174: -- | W174: -- | X174: -- | Y174: -- | Z174: --
A175: =A$7 -> FC726 = 5 | B175: show | C175: show | D175: show | E175: show | F175: -- | G175: -- | H175: -- | I175: -- | J175: -- | K175: -- | L175: -- | M175: -- | N175: -- | O175: -- | P175: -- | Q175: -- | R175: -- | S175: -- | T175: -- | U175: -- | V175: -- | W175: -- | X175: -- | Y175: -- | Z175: --
A176: =A$8 -> FT724 = 6 | B176: show | C176: show | D176: -- | E176: -- | F176: -- | G176: -- | H176: -- | I176: -- | J176: -- | K176: -- | L176: -- | M176: -- | N176: -- | O176: -- | P176: -- | Q176: -- | R176: -- | S176: -- | T176: -- | U176: -- | V176: -- | W176: -- | X176: -- | Y176: -- | Z176: --
A177: =A$9 -> FC728 = 7
A178: =A$10 -> FG722 = 8
A179: =A$11 -> FT728= 9
A180: =A$12 -> 
A181: =A$13 -> 
A182: =A$14 -> 
A183: =A$15 -> 
A184: =A$16 -> 
A185: =A$17 -> 
A186: =A$18 -> 
A187: =A$19 -> 
A188: =A$20 -> 
B190: =B$1 -> Variants
A191: Network&Communication PMI | B191: =B$2 -> 1 | C191: =C$2 -> 2 | D191: =D$2 -> 3 | E191: 4 | F191: 5 | G191: 6 | H191: 7 | I191: 8 | J191: 9 | K191: 10 | L191: 11 | M191: 12 | N191: 13 | O191: 14 | P191: 15 | Q191: 16 | R191: 17 | S191: 18 | T191: 19 | U191: 20 | V191: 21 | W191: 22 | X191: 23 | Y191: 24 | Z191: 25
A192: =A$3 -> FC721 = 1 | B192: show | C192: show | D192: show | E192: -- | F192: -- | G192: -- | H192: -- | I192: -- | J192: -- | K192: -- | L192: -- | M192: -- | N192: -- | O192: -- | P192: -- | Q192: -- | R192: -- | S192: -- | T192: -- | U192: -- | V192: -- | W192: -- | X192: -- | Y192: -- | Z192: --
A193: =A$4 -> FC722 = 2 | B193: show | C193: show | D193: show | E193: show | F193: show | G193: show | H193: show | I193: show | J193: show | K193: show | L193: show | M193: show | N193: show | O193: show | P193: -- | Q193: -- | R193: -- | S193: -- | T193: -- | U193: -- | V193: -- | W193: -- | X193: -- | Y193: -- | Z193: --
A194: =A$5 -> FC723 = 3 | B194: show | C194: show | D194: -- | E194: -- | F194: -- | G194: -- | H194: -- | I194: -- | J194: -- | K194: -- | L194: -- | M194: -- | N194: -- | O194: -- | P194: -- | Q194: -- | R194: -- | S194: -- | T194: -- | U194: -- | V194: -- | W194: -- | X194: -- | Y194: -- | Z194: --
A195: =A$6 -> FC724 = 4 | B195: show | C195: show | D195: show | E195: show | F195: show | G195: show | H195: show | I195: show | J195: -- | K195: -- | L195: -- | M195: -- | N195: -- | O195: -- | P195: -- | Q195: -- | R195: -- | S195: -- | T195: -- | U195: -- | V195: -- | W195: -- | X195: -- | Y195: -- | Z195: --
A196: =A$7 -> FC726 = 5 | B196: show | C196: show | D196: show | E196: show | F196: -- | G196: -- | H196: -- | I196: -- | J196: -- | K196: -- | L196: -- | M196: -- | N196: -- | O196: -- | P196: -- | Q196: -- | R196: -- | S196: -- | T196: -- | U196: -- | V196: -- | W196: -- | X196: -- | Y196: -- | Z196: --
A197: =A$8 -> FT724 = 6 | B197: show | C197: show | D197: -- | E197: -- | F197: -- | G197: -- | H197: -- | I197: -- | J197: -- | K197: -- | L197: -- | M197: -- | N197: -- | O197: -- | P197: -- | Q197: -- | R197: -- | S197: -- | T197: -- | U197: -- | V197: -- | W197: -- | X197: -- | Y197: -- | Z197: --
A198: =A$9 -> FC728 = 7
A199: =A$10 -> FG722 = 8
A200: =A$11 -> FT728= 9
A201: =A$12 -> 
A202: =A$13 -> 
A203: =A$14 -> 
A204: =A$15 -> 
A205: =A$16 -> 
A206: =A$17 -> 
A207: =A$18 -> 
A208: =A$19 -> 
A209: =A$20 -> 
B211: Variants
A212: Network&Communication Add-on | B212: =B$2 -> 1 | C212: =C$2 -> 2 | D212: =D$2 -> 3 | E212: 4 | F212: 5 | G212: 6 | H212: 7 | I212: 8 | J212: 9 | K212: 10 | L212: 11 | M212: 12 | N212: 13 | O212: 14 | P212: 15 | Q212: 16 | R212: 17 | S212: 18 | T212: 19 | U212: 20 | V212: 21 | W212: 22 | X212: 23 | Y212: 24 | Z212: 25
A213: =A$3 -> FC721 = 1 | B213: show | C213: show | D213: show | E213: -- | F213: -- | G213: -- | H213: -- | I213: -- | J213: -- | K213: -- | L213: -- | M213: -- | N213: -- | O213: -- | P213: -- | Q213: -- | R213: -- | S213: -- | T213: -- | U213: -- | V213: -- | W213: -- | X213: -- | Y213: -- | Z213: --
A214: =A$4 -> FC722 = 2 | B214: show | C214: show | D214: show | E214: show | F214: show | G214: show | H214: show | I214: show | J214: show | K214: show | L214: show | M214: show | N214: show | O214: show | P214: -- | Q214: -- | R214: -- | S214: -- | T214: -- | U214: -- | V214: -- | W214: -- | X214: -- | Y214: -- | Z214: --
A215: =A$5 -> FC723 = 3 | B215: show | C215: show | D215: -- | E215: -- | F215: -- | G215: -- | H215: -- | I215: -- | J215: -- | K215: -- | L215: -- | M215: -- | N215: -- | O215: -- | P215: -- | Q215: -- | R215: -- | S215: -- | T215: -- | U215: -- | V215: -- | W215: -- | X215: -- | Y215: -- | Z215: --
A216: =A$6 -> FC724 = 4 | B216: show | C216: show | D216: show | E216: show | F216: show | G216: show | H216: show | I216: show | J216: -- | K216: -- | L216: -- | M216: -- | N216: -- | O216: -- | P216: -- | Q216: -- | R216: -- | S216: -- | T216: -- | U216: -- | V216: -- | W216: -- | X216: -- | Y216: -- | Z216: --
A217: =A$7 -> FC726 = 5 | B217: show | C217: show | D217: show | E217: show | F217: -- | G217: -- | H217: -- | I217: -- | J217: -- | K217: -- | L217: -- | M217: -- | N217: -- | O217: -- | P217: -- | Q217: -- | R217: -- | S217: -- | T217: -- | U217: -- | V217: -- | W217: -- | X217: -- | Y217: -- | Z217: --
A218: =A$8 -> FT724 = 6 | B218: show | C218: show | D218: -- | E218: -- | F218: -- | G218: -- | H218: -- | I218: -- | J218: -- | K218: -- | L218: -- | M218: -- | N218: -- | O218: -- | P218: -- | Q218: -- | R218: -- | S218: -- | T218: -- | U218: -- | V218: -- | W218: -- | X218: -- | Y218: -- | Z218: --
A219: =A$9 -> FC728 = 7
... 291 more rows

Sheet CardCage2_Ref (hidden)
B1: Planning of a card cage (2 slots)
B3: Purpose:
B4: With the project planning of the card cage the load of the line cards are verified. This results in the definite:
B5: - number of required line cards
B6: - load of the line cards in idle and alarm state
B8: Procedure:
B9: 1) Define for every slot the type of line card
B10: 2) If you choose FCL2001, FCL2008, FCL7201 or FCL2006/7 line card, a separate sheet for the current calculation is generated
B11: 3) If you choose FCI2007, FCI2008 or FCI2009 fill out the current load direct in yellow fields
B12: 4) Fill out all generated sheets and push "Calculate" (updating current values from additional sheets)
B14: Please consider:
B15: It is not possible to check all interactions of all options with each other. Restrictions in the use of options together are noted in the document A6V10210362 "Planning" and A6V10210390 "Installation".
B17: yellow fields | C17: Must be filled in by the user
B18: orange fields | C18: Shows an input data error. These fields must be filled in by the user
B20: red fields | C20: Calculated value, configuration invalid. Field must not be changed by the user.
B21: light green fields | C21: Calculated value, additional information for the user. Field must not be changed by the user.
A23: Card cage (2 slots) FCA2007-A1
C26: Nr. | D26: Linecard | E26: Text | F26: I hcs12 [A] | G26: I norm [A] | H26: Corr. Factor | I26: I max [A] | J26: Remarks
C27: 1 | D27: none | F27: 0.000 | G27: 0 | H27: 1 | I27: 0.00
C28: 2 | D28: Line card (C-NET) FCL2001-A1 | E28: Current consumption (at panel by 24V) | F28: 0.023 | G28: 0 | H28: 1 | I28: 1.50 | J28: Values from "C-NET_CC5-x_Slotx" or other calculation
C29: 3 | D29: Line card (C-NET, P) FCL2008-A1 | E29: Current consumption (at panel by 24V) | F29: 0.023 | G29: 0 | H29: 1 | I29: 2.50 | J29: Values from "C-NET_CC5-x_Slotx" or other calculation
C30: 4 | D30: Line card (collective) FCL2002-A1 | E30: Current consumption (at panel by 24V) | F30: 0.023 | G30: 0 | H30: 1 | I30: 1.50 | J30: Values from "Collective_CC5-x_Slotx" or other calculation
C31: 5 | D31: Line card (MS9i) FCL2003-A1 | E31: Current consumption (at panel by 24V) | F31: 0.023 | G31: 0 | H31: 1 | I31: 1.50 | J31: Values from "MS9I_CC5-x_Slotx" or other calculation
C32: 6 | D32: Linecard(SynoLOOP) FCL7201-A1 | E32: Current consumption (at panel by 24V) | F32: 0.023 | G32: 0 | H32: 1 | I32: 1.50 | J32: Values from "SynoLOOP_CC5-x_Slotx" or other calculation
C33: 7 | D33: Linecard(Interactive/Ex) FCL2006-A1/FCL2007-A1 | E33: Current consumption (at panel by 24V) | F33: 0.023 | G33: 0 | H33: 1 | I33: 1.50 | J33: Values from "Interactive_CC5-x_Slotx" or other calculation
C34: 8 | D34: I/O card (remote transmission) FCI2007-A1 | E34: Load on all outputs and external supplies | F34: 0.023 | G34: 0.070 | H34: =(27.2/24)/0.95 -> 1.193 | I34: 7.00 | J34: Enter all loads on monitored outputs and external supply
C35: 9 | D35: I/O card (programmable) FCI2008-A1 | E35: Load on "I/Os" (I/Ox) and external supplies | F35: 0.023 | G35: 0.013 | H35: 1 | I35: 1.50 | J35: Enter all loads on VSYS and on "Configurable I/Os" (I/Ox)
C36: 10 | D36: I/O card (horn/monitored) FCI2009-A1 | E36: Load on all monitored outputs | F36: 0.023 | G36: 0.055 | H36: =(27.2/24)/0.95 -> 1.193 | I36: 8.00 | J36: Enter all loads on all 8 monitored outputs
B40: Card cage slot 1 | C40: 1 | F40: Name of sheet
B41: Card cage slot 2 | C41: 1 | F41: CardCage2_Ref
B48: Card cage slot1 | F48: quiescent current | H48: alarm current | J48: remarks | N48: CheckOk
C49: =VLOOKUP($C$40,$C$27:$J$35,3,TRUE) ->  | F49: 0.000 | G49: A | H49: 0.000 | I49: A | J49: =VLOOKUP($C$40,$C$27:$J$38,8,TRUE) ->  | N49: =IF(OR($F$49>VLOOKUP($C$40,$C$27:$K$36,7,FALSE),$F$49<0,$H$49>VLOOKUP($C$40,$C$27:$K$36,7,FALSE),$H$49<0),FALSE,TRUE) -> TRUE
B51: Card cage slot 2 | F51: quiescent current | H51: alarm current | J51: remarks
C52: =VLOOKUP($C$41,$C$27:$J$38,3,TRUE) ->  | F52: 0.000 | G52: A | H52: 0.000 | I52: A | J52: =VLOOKUP($C$41,$C$27:$J$38,8,TRUE) ->  | N52: =IF(OR($F$52>VLOOKUP($C$41,$C$27:$K$36,7,FALSE),$F$52<0,$H$52>VLOOKUP($C$41,$C$27:$K$36,7,FALSE),$H$52<0),FALSE,TRUE) -> TRUE
D54: I norm [A] | E54: I alarm [A] | F54: U [V] | G54: P norm [W] | H54: P alarm [W] | I54: Quant. [pcs] | J54: P norm [W] | K54: P alarm [W]
B55: Quiet current con. module and card cage | D55: 0.019 | E55: 0.019 | F55: 24 | G55: =D55*F55 -> 0.46 | H55: =E55*F55 -> 0.46 | I55: 1 | J55: =G55*I55 -> 0.46 | K55: =H55*I55 -> 0.46
B62: Power consumption HCS12 - card cage slot 1 | D62: =VLOOKUP($C40,$C$27:$K$36,4,FALSE) -> 0.000 | E62: =D62 -> 0.000 | F62: 24 | G62: =(C62+D62)*F62 -> 0.00 | H62: =(C62+E62)*F62 -> 0.00 | I62: =IF(C40>=2,1,0) -> 0 | J62: =G62*I62 -> 0.00 | K62: =H62*I62 -> 0.00
B63: Power consumption HCS12 - card cage slot 2 | D63: =VLOOKUP($C41,$C$27:$K$36,4,FALSE) -> 0.000 | E63: =D63 -> 0.000 | F63: 24 | G63: =(C63+D63)*F63 -> 0.00 | H63: =(C63+E63)*F63 -> 0.00 | I63: =IF(C41>=2,1,0) -> 0 | J63: =G63*I63 -> 0.00 | K63: =H63*I63 -> 0.00
B66: Card cage slot 1 | D66: =VLOOKUP($C40,$C$27:$K$36,5,FALSE)+F49*VLOOKUP($C40,$C$27:$K$36,6,FALSE) -> 0.000 | E66: =VLOOKUP($C40,$C$27:$K$36,5,FALSE)+H49*VLOOKUP($C40,$C$27:$K$36,6,FALSE) -> 0.000 | F66: 24 | G66: =(C66+D66)*F66 -> 0.00 | H66: =(C66+E66)*F66 -> 0.00 | I66: =IF(C40>=2,1,0) -> 0 | J66: =G66*I66 -> 0.00 | K66: =H66*I66 -> 0.00
B67: Card cage slot 2 | D67: =VLOOKUP($C41,$C$27:$K$36,5,FALSE)+F52*VLOOKUP($C41,$C$27:$K$36,6,FALSE) -> 0.000 | E67: =VLOOKUP($C41,$C$27:$K$36,5,FALSE)+H52*VLOOKUP($C41,$C$27:$K$36,6,FALSE) -> 0.000 | F67: 24 | G67: =(C67+D67)*F67 -> 0.00 | H67: =(C67+E67)*F67 -> 0.00 | I67: =IF(C41>=2,1,0) -> 0 | J67: =G67*I67 -> 0.00 | K67: =H67*I67 -> 0.00
J71: Pnorm total [W] | K71: Palarm total [W] | N71: OveralCheck
J72: =IF($N$72=TRUE,SUM(J$55:J$67),0) -> 0.46 | K72: =IF($N$72=TRUE,SUM(K$55:K$67),0) -> 0.46 | N72: =IF(AND(N49=TRUE,N52=TRUE),TRUE,FALSE) -> TRUE
C396: 0
C397: 0

Sheet CardCage5_Ref (hidden)
B1: Planning of a card cage (5 slots)
B3: Purpose:
B4: With the project planning of the card cage the load of the line cards are verified. This results in the definite:
B5: - number of required line cards
B6: - load of the line cards in idle and alarm state
B8: Procedure:
B9: 1) Define for every slot the type of line card
B10: 2) If you choose FCL2001, FCL2008, FCL7201 or FCL2006/7 line card, a separate sheet for the current calculation is generated
B11: 3) If you choose FCI2007, FCI2008 or FCI2009 fill out the current load direct in yellow fields
B12: 4) Fill out all generated sheets and push "Calculate" (updating current values from additional sheets)
B14: Please consider:
B15: It is not possible to check all interactions of all options with each other. Restrictions in the use of options together are noted in the document A6V10210362 "Planning" and A6V10210390 "Installation".
B17: yellow fields | C17: Must be filled in by the user
B18: orange fields | C18: Shows an input data error. These fields must be filled in by the user
B20: red fields | C20: Calculated value, configuration invalid. Field must not be changed by the user.
B21: light green fields | C21: Calculated value, additional information for the user. Field must not be changed by the user.
A23: Card cage (5 slots) FCA2008-A1
C26: Nr. | D26: Linecard | E26: Text | F26: I hcs12 [A] | G26: I norm [A] | H26: Corr. Factor | I26: I max [A] | J26: Remarks
C27: 1 | D27: none | F27: 0.000 | G27: 0 | H27: 1 | I27: 0.00
C28: 2 | D28: Line card (C-NET) FCL2001-A1 | E28: Current consumption (at panel by 24V) | F28: 0.023 | G28: 0 | H28: 1 | I28: 1.50 | J28: Values from "C-NET_CC5-x_Slotx" or other calculation
C29: 3 | D29: Line card (C-NET, P) FCL2008-A1 | E29: Current consumption (at panel by 24V) | F29: 0.023 | G29: 0 | H29: 1 | I29: 2.50 | J29: Values from "C-NET_CC5-x_Slotx" or other calculation
C30: 4 | D30: Line card (collective) FCL2002-A1 | E30: Current consumption (at panel by 24V) | F30: 0.023 | G30: 0 | H30: 1 | I30: 1.50 | J30: Values from "Collective_CC5-x_Slotx" or other calculation
C31: 5 | D31: Line card (MS9i) FCL2003-A1 | E31: Current consumption (at panel by 24V) | F31: 0.023 | G31: 0 | H31: 1 | I31: 1.50 | J31: Values from "MS9I_CC5-x_Slotx" or other calculation
C32: 6 | D32: Linecard(SynoLOOP) FCL7201-A1 | E32: Current consumption (at panel by 24V) | F32: 0.023 | G32: 0 | H32: 1 | I32: 1.50 | J32: Values from "SynoLOOP_CC5-x_Slotx" or other calculation
C33: 7 | D33: Linecard(Interactive/Ex) FCL2006-A1/FCL2007-A1 | E33: Current consumption (at panel by 24V) | F33: 0.023 | G33: 0 | H33: 1 | I33: 1.50 | J33: Values from "Interactive_CC5-x_Slotx" or other calculation
C34: 8 | D34: I/O card (remote transmission) FCI2007-A1 | E34: Load on all outputs and external supplies | F34: 0.023 | G34: 0.070 | H34: =(27.2/24)/0.95 -> 1.193 | I34: 7.00 | J34: Enter all loads on monitored outputs and external supply
C35: 9 | D35: I/O card (programmable) FCI2008-A1 | E35: Load on "I/Os" (I/Ox) and external supplies | F35: 0.023 | G35: 0.013 | H35: 1 | I35: 1.50 | J35: Enter all loads on VSYS and on "Configurable I/Os" (I/Ox)
C36: 10 | D36: I/O card (horn/monitored) FCI2009-A1 | E36: Load on all monitored outputs | F36: 0.023 | G36: 0.055 | H36: =(27.2/24)/0.95 -> 1.193 | I36: 8.00 | J36: Enter all loads on all 8 monitored outputs
B40: Card cage slot 1 | C40: 1 | F40: Name of sheet
B41: Card cage slot 2 | C41: 1 | F41: CardCage5_Ref
B42: Card cage slot 3 | C42: 1
B43: Card cage slot 4 | C43: 1
B44: Card cage slot 5 | C44: 1
B48: Card cage slot 1 | F48: quiescent current | H48: alarm current | J48: remarks | N48: CheckOk
C49: =VLOOKUP($C$40,$C$27:$J$35,3,TRUE) ->  | F49: 0.000 | G49: A | H49: 0.000 | I49: A | J49: =VLOOKUP($C$40,$C$27:$J$35,8,TRUE) ->  | N49: =IF(OR($F$49>VLOOKUP($C$40,$C$27:$K$36,7,FALSE),$F$49<0,$H$49>VLOOKUP($C$40,$C$27:$K$36,7,FALSE),$H$49<0),FALSE,TRUE) -> TRUE
B51: Card cage slot 2 | F51: quiescent current | H51: alarm current | J51: remarks
C52: =VLOOKUP($C$41,$C$27:$J$35,3,TRUE) ->  | F52: 0.000 | G52: A | H52: 0.000 | I52: A | J52: =VLOOKUP($C$41,$C$27:$J$35,8,TRUE) ->  | N52: =IF(OR($F$52>VLOOKUP($C$41,$C$27:$K$36,7,FALSE),$F$52<0,$H$52>VLOOKUP($C$41,$C$27:$K$36,7,FALSE),$H$52<0),FALSE,TRUE) -> TRUE
B54: Card cage slot 3 | F54: quiescent current | H54: alarm current | J54: remarks
C55: =VLOOKUP($C$42,$C$27:$J$35,3,TRUE) ->  | F55: 0.000 | G55: A | H55: 0.000 | I55: A | J55: =VLOOKUP($C$42,$C$27:$J$35,8,TRUE) ->  | N55: =IF(OR($F$55>VLOOKUP($C$42,$C$27:$K$36,7,FALSE),$F$55<0,$H$55>VLOOKUP($C$42,$C$27:$K$36,7,FALSE),$H$55<0),FALSE,TRUE) -> TRUE
B57: Card cage slot 4 | F57: quiescent current | H57: alarm current | J57: remarks
C58: =VLOOKUP($C$43,$C$27:$J$35,3,TRUE) ->  | F58: 0.000 | G58: A | H58: 0.000 | I58: A | J58: =VLOOKUP($C$43,$C$27:$J$35,8,TRUE) ->  | N58: =IF(OR($F$58>VLOOKUP($C$43,$C$27:$K$36,7,FALSE),$F$58<0,$H$58>VLOOKUP($C$43,$C$27:$K$36,7,FALSE),$H$58<0),FALSE,TRUE) -> TRUE
B60: Card cage slot 5 | F60: quiescent current | H60: alarm current | J60: remarks
C61: =VLOOKUP($C$44,$C$27:$J$35,3,TRUE) ->  | F61: 0.000 | G61: A | H61: 0.000 | I61: A | J61: =VLOOKUP($C$44,$C$27:$J$35,8,TRUE) ->  | N61: =IF(OR($F$61>VLOOKUP($C$44,$C$27:$K$36,7,FALSE),$F$61<0,$H$61>VLOOKUP($C$44,$C$27:$K$36,7,FALSE),$H$61<0),FALSE,TRUE) -> TRUE
D63: I norm [A] | E63: I alarm [A] | F63: U [V] | G63: P norm [W] | H63: P alarm [W] | I63: Quant. [pcs] | J63: P norm [W] | K63: P alarm [W]
B64: Quiet current con. module and card cage | D64: 0.019 | E64: 0.019 | F64: 24 | G64: =D64*F64 -> 0.46 | H64: =E64*F64 -> 0.46 | I64: 1 | J64: =G64*I64 -> 0.46 | K64: =H64*I64 -> 0.46
B69: Amount of module bus address | I69: =SUM(I71:I75) -> 0
B71: Power consumption HCS12 - card cage slot 1 | D71: =VLOOKUP($C40,$C$27:$K$36,4,FALSE) -> 0.000 | E71: =D71 -> 0.000 | F71: 24 | G71: =(C71+D71)*F71 -> 0.00 | H71: =(C71+E71)*F71 -> 0.00 | I71: =IF(C40>=2,1,0) -> 0 | J71: =G71*I71 -> 0.00 | K71: =H71*I71 -> 0.00
B72: Power consumption HCS12 - card cage slot 2 | D72: =VLOOKUP($C41,$C$27:$K$36,4,FALSE) -> 0.000 | E72: =D72 -> 0.000 | F72: 24 | G72: =(C72+D72)*F72 -> 0.00 | H72: =(C72+E72)*F72 -> 0.00 | I72: =IF(C41>=2,1,0) -> 0 | J72: =G72*I72 -> 0.00 | K72: =H72*I72 -> 0.00
B73: Power consumption HCS12 - card cage slot 3 | D73: =VLOOKUP($C42,$C$27:$K$36,4,FALSE) -> 0.000 | E73: =D73 -> 0.000 | F73: 24 | G73: =(C73+D73)*F73 -> 0.00 | H73: =(C73+E73)*F73 -> 0.00 | I73: =IF(C42>=2,1,0) -> 0 | J73: =G73*I73 -> 0.00 | K73: =H73*I73 -> 0.00
B74: Power consumption HCS12 - card cage slot 4 | D74: =VLOOKUP($C43,$C$27:$K$36,4,FALSE) -> 0.000 | E74: =D74 -> 0.000 | F74: 24 | G74: =(C74+D74)*F74 -> 0.00 | H74: =(C74+E74)*F74 -> 0.00 | I74: =IF(C43>=2,1,0) -> 0 | J74: =G74*I74 -> 0.00 | K74: =H74*I74 -> 0.00
B75: Power consumption HCS12 - card cage slot 5 | D75: =VLOOKUP($C44,$C$27:$K$36,4,FALSE) -> 0.000 | E75: =D75 -> 0.000 | F75: 24 | G75: =(C75+D75)*F75 -> 0.00 | H75: =(C75+E75)*F75 -> 0.00 | I75: =IF(C44>=2,1,0) -> 0 | J75: =G75*I75 -> 0.00 | K75: =H75*I75 -> 0.00
B78: Card cage slot 1 | D78: =VLOOKUP($C40,$C$27:$K$36,5,FALSE)+F49*VLOOKUP($C40,$C$27:$K$36,6,FALSE) -> 0.000 | E78: =VLOOKUP($C40,$C$27:$K$36,5,FALSE)+H49*VLOOKUP($C40,$C$27:$K$36,6,FALSE) -> 0.000 | F78: 24 | G78: =D78*F78 -> 0.00 | H78: =E78*F78 -> 0.00 | I78: =IF(C40>=2,1,0) -> 0 | J78: =G78*I78 -> 0.00 | K78: =H78*I78 -> 0.00
B79: Card cage slot 2 | D79: =VLOOKUP($C41,$C$27:$K$36,5,FALSE)+F52*VLOOKUP($C41,$C$27:$K$36,6,FALSE) -> 0.000 | E79: =VLOOKUP($C41,$C$27:$K$36,5,FALSE)+H52*VLOOKUP($C41,$C$27:$K$36,6,FALSE) -> 0.000 | F79: 24 | G79: =D79*F79 -> 0.00 | H79: =E79*F79 -> 0.00 | I79: =IF(C41>=2,1,0) -> 0 | J79: =G79*I79 -> 0.00 | K79: =H79*I79 -> 0.00
B80: Card cage slot 3 | D80: =VLOOKUP($C42,$C$27:$K$36,5,FALSE)+F55*VLOOKUP($C42,$C$27:$K$36,6,FALSE) -> 0.000 | E80: =VLOOKUP($C42,$C$27:$K$36,5,FALSE)+H55*VLOOKUP($C42,$C$27:$K$36,6,FALSE) -> 0.000 | F80: 24 | G80: =D80*F80 -> 0.00 | H80: =E80*F80 -> 0.00 | I80: =IF(C42>=2,1,0) -> 0 | J80: =G80*I80 -> 0.00 | K80: =H80*I80 -> 0.00
B81: Card cage slot 4 | D81: =VLOOKUP($C43,$C$27:$K$36,5,FALSE)+F58*VLOOKUP($C43,$C$27:$K$36,6,FALSE) -> 0.000 | E81: =VLOOKUP($C43,$C$27:$K$36,5,FALSE)+H58*VLOOKUP($C43,$C$27:$K$36,6,FALSE) -> 0.000 | F81: 24 | G81: =D81*F81 -> 0.00 | H81: =E81*F81 -> 0.00 | I81: =IF(C43>=2,1,0) -> 0 | J81: =G81*I81 -> 0.00 | K81: =H81*I81 -> 0.00
B82: Card cage slot 5 | D82: =VLOOKUP($C44,$C$27:$K$36,5,FALSE)+F61*VLOOKUP($C44,$C$27:$K$36,6,FALSE) -> 0.000 | E82: =VLOOKUP($C44,$C$27:$K$36,5,FALSE)+H61*VLOOKUP($C44,$C$27:$K$36,6,FALSE) -> 0.000 | F82: 24 | G82: =D82*F82 -> 0.00 | H82: =E82*F82 -> 0.00 | I82: =IF(C44>=2,1,0) -> 0 | J82: =G82*I82 -> 0.00 | K82: =H82*I82 -> 0.00
J86: Pnorm total [W] | K86: Palarm total [W] | N86: OveralCheck
G87: =IF($J$91=1,"Total power consumption","Internal CPU is powerd with supply1") -> Total power consumption | J87: =IF($N$87=TRUE,IF($J$91=1,SUM(J$64:J$82),SUM($J$64:$J$75)),0) -> 0.46 | K87: =IF($N$87=TRUE,IF($J$91=1,SUM(K$64:K$82),SUM($K$64:$K$75)),0) -> 0.46 | N87: =IF(AND(N49=TRUE,N52=TRUE,N55=TRUE,N58=TRUE,N61=TRUE),TRUE,FALSE) -> TRUE
G88: =IF($J$91=2,"Linecards powerd over supply2",IF($J$91=3,"Linecards powerd over supply3","")) ->  | J88: =IF($N$87=TRUE,IF($J$91>=2,SUM(J$78:J$82),0),0) -> 0.00 | K88: =IF($N$87=TRUE,IF($J$91>=2,SUM(K$78:K$82),0),0) -> 0.00
E91: module bus 1 | J91: 1

Sheet CardCageCPU_Ref (hidden)
B1: Planning of a card cage (CPU)
B3: Purpose:
B4: With the project planning of the card cage the load of the line cards are verified. This results in the definite:
B5: - number of required line cards
B6: - load of the line cards in idle and alarm state
B8: Procedure:
B9: 1) Define for every slot the typ of line card
B10: 2) If you choose FCL2001, FCL2008, FCL2002, FCL2003, FCL2005 or FCL2006/7 line card, a seperate sheet for the current calculation is generated
B11: 3) If you choose FCI2007, FCI2008 or FCI2009 fill out the current load direct in yellow fields
B12: 4) Fill out all generated sheets and push "Calculate" (updating current values from additional sheets)
B14: Please consider:
B15: It is not possible to check all interactions of all options with each other. Restrictions in the use of options together are noted in the document 008843 "Planning" and 008851 "Installation".
B17: yellow fields | C17: Must be filled in by the user
B18: orange fields | C18: Shows an input data error. These fields must be filled in by the user
B20: red fields | C20: Calculated value, configuration invalid. Field must not be changed by the user.
B21: light green fields | C21: Calculated value, additional information for the user. Field must not be changed by the user.
A23: Card cage (CPU) FCC2003-A1
C26: Nr. | D26: Linecard | E26: Text | F26: I hcs12 [A] | G26: I norm [A] | H26: Corr. Factor | I26: I max [A] | J26: Remarks
C27: 1 | D27: none | F27: 0.000 | G27: 0 | H27: 1 | I27: 0.00
C28: 2 | D28: Line card (C-NET) FCL2001-A1 | E28: Current consumption (at panel by 24V) | F28: 0.023 | G28: 0 | H28: 1 | I28: 1.50 | J28: Values from "C-NET_CC5-x_Slotx" or other calculation
C29: 3 | D29: Line card (C-NET, P) FCL2008-A1 | E29: Current consumption (at panel by 24V) | F29: 0.023 | G29: 0 | H29: 1 | I29: 2.50 | J29: Values from "C-NET_CC5-x_Slotx" or other calculation
C30: 4 | D30: Line card (collective) FCL2002-A1 | E30: Current consumption (at panel by 24V) | F30: 0.023 | G30: 0 | H30: 1 | I30: 1.50 | J30: Values from "Collective_CC5-x_Slotx" or other calculation
C31: 5 | D31: Line card (MS9i) FCL2003-A1 | E31: Current consumption (at panel by 24V) | F31: 0.023 | G31: 0 | H31: 1 | I31: 1.50 | J31: Values from "MS9I_CC5-x_Slotx" or other calculation
C32: 6 | D32: Linecard(SynoLOOP) FCL7201-A1 | E32: Current consumption (at panel by 24V) | F32: 0.023 | G32: 0 | H32: 1 | I32: 1.50 | J32: Values from "SynoLOOP_CC5-x_Slotx" or other calculation
C33: 7 | D33: Linecard(Interactive/Ex) FCL2006-A1/FCL2007-A1 | E33: Current consumption (at panel by 24V) | F33: 0.023 | G33: 0 | H33: 1 | I33: 1.50 | J33: Values from "Interactive_CC5-x_Slotx" or other calculation
C34: 8 | D34: I/O card (remote transmission) FCI2007-A1 | E34: Load on all outputs and external supplies | F34: 0.023 | G34: 0.070 | H34: =(27.2/24)/0.95 -> 1.193 | I34: 7.00 | J34: Enter all loads on monitored outputs and external supply
C35: 9 | D35: I/O card (programmable) FCI2008-A1 | E35: Load on "I/Os" (I/Ox) and external supplies | F35: 0.023 | G35: 0.013 | H35: 1 | I35: 1.50 | J35: Enter all loads on VSYS and on "Configurable I/Os" (I/Ox)
C36: 10 | D36: I/O card (horn/monitored) FCI2009-A1 | E36: Load on all monitored outputs | F36: 0.023 | G36: 0.055 | H36: =(27.2/24)/0.95 -> 1.193 | I36: 8.00 | J36: Enter all loads on all 8 monitored outputs
D39: CPU Card | F39: Text | H39: I [A] | I39: I max [A] | J39: Remarks
C40: 1 | D40: none | H40: 0.000 | I40: 0.000
C41: 2 | D41: CPU Card FCC2004-A1 | F41: Including SAFEDLINK | H41: 0.180 | I41: 0.180
D43: Comm Card | F43: Text | H43: I [A] | I43: I max [A] | J43: Remarks
C44: 1 | D44: Communication Card (FC2080) FCC2005-A1 | F44: Including SAFEDLINK | H44: 0.110 | I44: 0.110
C45: 2 | D45: Communication Card (FC2080) FCC2005-A1 | H45: 0.090 | I45: 0.090
B47: Card cage slot 1 | C47: 20 | D47: fix slot | F47: Name of sheet
B48: Card cage slot 2 | C48: 1 | F48: CardCageCPU_Ref
B49: Card cage slot 3 | C49: 20 | D49: fix slot
B50: Card cage slot 4 | C50: 1
B51: Card cage slot 5 | C51: 1
B55: Card cage slot 1 | F55: quiescent current | H55: alarm current | J55: remarks | N55: CheckOk
B56: CPU Card FCC2004-A1 | C56: Including SAFEDLINK | F56: 0.180 | G56: A | H56: 0.180 | I56: A
B58: Card cage slot 2 | F58: quiescent current | H58: alarm current | J58: remarks
C59: =VLOOKUP($C$48,$C$40:$J$41,4,TRUE) ->  | F59: =VLOOKUP($C$48,$C$40:$J$41,6,TRUE) -> 0.000 | G59: A | H59: =VLOOKUP($C$48,$C$40:$J$41,7,TRUE) -> 0.000 | I59: A | J59: =VLOOKUP($C$48,$C$40:$J$41,8,TRUE) -> 
B61: Card cage slot 3 | F61: quiescent current | H61: alarm current | J61: remarks
B62: Com. Card FCC2005-A1 or FCC2008-D1 | C62: =VLOOKUP($C48,$C$44:$K$45,4,FALSE) -> Including SAFEDLINK | F62: =VLOOKUP($C48,$C$44:$K$45,6,FALSE) -> 0.110 | G62: A | H62: =VLOOKUP($C48,$C$44:$K$45,7,FALSE) -> 0.110 | I62: A
B64: Card cage slot 4 | F64: quiescent current | H64: alarm current | J64: remarks
C65: =VLOOKUP($C$50,$C$27:$J$35,3,TRUE) ->  | F65: 0.000 | G65: A | H65: 0.000 | I65: A | J65: =VLOOKUP($C$50,$C$27:$J$35,8,TRUE) ->  | N65: =IF(OR($F$65>VLOOKUP($C$50,$C$27:$K$36,7,FALSE),$F$65<0,$H$65>VLOOKUP($C$50,$C$27:$K$36,7,FALSE),$H$65<0),FALSE,TRUE) -> TRUE
B67: Card cage slot 5 | F67: quiescent current | H67: alarm current | J67: remarks
C68: =VLOOKUP($C$51,$C$27:$J$38,3,TRUE) ->  | F68: 0.000 | G68: A | H68: 0.000 | I68: A | J68: =VLOOKUP($C$51,$C$27:$J$35,8,TRUE) ->  | N68: =IF(OR($F$68>VLOOKUP($C$51,$C$27:$K$36,7,FALSE),$F$68<0,$H$68>VLOOKUP($C$51,$C$27:$K$36,7,FALSE),$H$68<0),FALSE,TRUE) -> TRUE
D70: I norm [A] | E70: I alarm [A] | F70: U [V] | G70: P norm [W] | H70: P alarm [W] | I70: Quant. [pcs] | J70: P norm [W] | K70: P alarm [W]
B76: Amount of module bus address | I76: =SUM(I81:I82) -> 0
B78: Power consump. CPU Card - card cage slot 1 | D78: =F56 -> 0.180 | E78: =D78 -> 0.180 | F78: 24 | G78: =(C78+D78)*F78 -> 4.32 | H78: =(C78+E78)*F78 -> 4.32 | I78: =IF(C47>=2,1,0) -> 1 | J78: =G78*I78 -> 4.32 | K78: =H78*I78 -> 4.32
B79: Power cons. 2nd CPU Card - card cage slot 2 | D79: =VLOOKUP($C48,$C$40:$K$41,6,FALSE) -> 0.000 | E79: =D79 -> 0.000 | F79: 24 | G79: =(C79+D79)*F79 -> 0.00 | H79: =(C79+E79)*F79 -> 0.00 | I79: =IF(C48>=2,1,0) -> 0 | J79: =G79*I79 -> 0.00 | K79: =H79*I79 -> 0.00
B80: Power consump. ComCard - card cage slot 3 | D80: =F62 -> 0.110 | E80: =D80 -> 0.110 | F80: 24 | G80: =(C80+D80)*F80 -> 2.64 | H80: =(C80+E80)*F80 -> 2.64 | I80: =IF(C49>=2,1,0) -> 1 | J80: =G80*I80 -> 2.64 | K80: =H80*I80 -> 2.64
B81: Power consumption HCS12 - card cage slot 4 | D81: =VLOOKUP($C50,$C$27:$K$36,4,FALSE) -> 0.000 | E81: =D81 -> 0.000 | F81: 24 | G81: =(C81+D81)*F81 -> 0.00 | H81: =(C81+E81)*F81 -> 0.00 | I81: =IF(C50>=2,1,0) -> 0 | J81: =G81*I81 -> 0.00 | K81: =H81*I81 -> 0.00
B82: Power consumption HCS12 - card cage slot 5 | D82: =VLOOKUP($C51,$C$27:$K$36,4,FALSE) -> 0.000 | E82: =D82 -> 0.000 | F82: 24 | G82: =(C82+D82)*F82 -> 0.00 | H82: =(C82+E82)*F82 -> 0.00 | I82: =IF(C51>=2,1,0) -> 0 | J82: =G82*I82 -> 0.00 | K82: =H82*I82 -> 0.00
B86: Card cage slot 1 | F86: 24 | G86: =D86*F86 -> 0.00 | H86: =E86*F86 -> 0.00 | I86: =IF(C47>=2,1,0) -> 1 | J86: =G86*I86 -> 0.00 | K86: =H86*I86 -> 0.00
B87: Card cage slot 2 | F87: 24 | G87: =D87*F87 -> 0.00 | H87: =E87*F87 -> 0.00 | I87: =IF(C48>=2,1,0) -> 0 | J87: =G87*I87 -> 0.00 | K87: =H87*I87 -> 0.00
B88: Card cage slot 3 | F88: 24 | G88: =D88*F88 -> 0.00 | H88: =E88*F88 -> 0.00 | I88: =IF(C49>=2,1,0) -> 1 | J88: =G88*I88 -> 0.00 | K88: =H88*I88 -> 0.00
B89: Card cage slot 4 | D89: =VLOOKUP($C50,$C$27:$K$36,5,FALSE)+F65*VLOOKUP($C50,$C$27:$K$36,6,FALSE) -> 0.000 | E89: =VLOOKUP($C50,$C$27:$K$36,5,FALSE)+H65*VLOOKUP($C50,$C$27:$K$36,6,FALSE) -> 0.000 | F89: 24 | G89: =D89*F89 -> 0.00 | H89: =E89*F89 -> 0.00 | I89: =IF(C50>=2,1,0) -> 0 | J89: =G89*I89 -> 0.00 | K89: =H89*I89 -> 0.00
B90: Card cage slot 5 | D90: =VLOOKUP($C51,$C$27:$K$36,5,FALSE)+F68*VLOOKUP($C51,$C$27:$K$36,6,FALSE) -> 0.000 | E90: =VLOOKUP($C51,$C$27:$K$36,5,FALSE)+H68*VLOOKUP($C51,$C$27:$K$36,6,FALSE) -> 0.000 | F90: 24 | G90: =D90*F90 -> 0.00 | H90: =E90*F90 -> 0.00 | I90: =IF(C51>=2,1,0) -> 0 | J90: =G90*I90 -> 0.00 | K90: =H90*I90 -> 0.00
J94: Pnorm total [W] | K94: Palarm total [W] | N94: OveralCheck
G95: Total power consumption | J95: =IF($N$95=TRUE, SUM(J$71:J$90),0) -> 6.96 | K95: =IF($N$95=TRUE,SUM(K$71:K$90),0) -> 6.96 | N95: =IF(AND(N65=TRUE,N68=TRUE),TRUE,FALSE) -> TRUE
J97: Power Supply
J98: 1

Sheet FDnet_Ref (hidden)
B1: Planning of C-NET detector lines (one line card or one module)
B3: Purpose:
B4: With the project planning of the detector line the load of the line card is verified. This results in the definite:
B5: - number and type of devices per detector line
B6: - number of required line cards
B7: - number of loops and stubs
B8: - load of the panel in idle and alarm state
B10: Procedure:
B11: 1.) Define the types and positions of the detector line devices in the building
B12: 2.) Define and choose the topology of the detector lines (loop or stub)
B13: 3.) Choose correct Alarm indicator extras (per loop/stub)
B14: --> None: At Alarm state Indicator flashing every 1s (10 Internal and 10 External AI's)
B15: --> Steady ON: At alarm state Indicator Steady ON (32 AI's)
B16: --> Operation Indicator: At Quiet state Indicator flashing every 1s (All AI's), at Alarm state Steady ON (10 AI's)
B17: 4.) Enter the number of devices per loop / stub in the table
B18: -> If Ex-devices are installed, enable Ex-line adaptor (max. 1 per stub / 2 per loop)
B19: 5.) Define the cable length according to the building plan
B20: -> Length for resistor- or capacity calculation must be calculated independent according to document A6V10210362
B21: -> Ex-Stub cable length needs not be entered (according to A6V10324618 and A6V10333771)
B22: 6.) Choose cable type or enter cable parameters manually
B23: 7.) Choose calculation characteristics
B24: --> Worst case: All devices are placed at end of line for calculation
B25: --> Equally: All devices are distributed equally over cable length. Possibility to add extra start and end cable length
B26: 8.) Add start and end cable length in case of equally calculation
B27: 9.) Check that no input field is orange
B28: 10.) All data are now complete, push "Calculation Button" to calculate the configuration.
B29: --> If all analysis field are clear and "Calculation Button" is green, configuration is valid
B30: --> If some analysis field are red and "Calculation Button" is red, change parameters to get a valid configuration
B32: Please consider:
B33: If a control is connected to an external AI, this must be entered at Ext. AI-Control rows
B35: yellow fields - Must be filled in by the user
B36: orange fields - Shows an input data error. These fields must be filled in by the user
B37: red fields - Calculated value, configuration not valid
B38: clear fields - Calculated value, additional information for the user
A46: Input number of devices
B48: Help values | U48: Abbreviations
U49: FDnetAK: FDnet Adressindex (Adresskennzahl), Number of by the device used bus-addresses (including sub-addresses)
C50: Loop / Stub | G50: Loop / Stub | K50: Loop / Stub | O50: Loop / Stub | U50: FDnetRK: FDnet Ruhestromkennzahl (Quietindex); average current of the device in idle state (in load factors). Necessary to calculate the emergency power
C51: Stubs | G51: Stubs | K51: Stubs | O51: Stubs | U51: FDnetMK: FDnet Melderkennzahl (Deviceindex); maximal average current of the device, normally in alarm state (in load factors), without internal or external AI
U52: FDnetTK: FDnet Trennerkennzahl (Isolator index); separator connection factor: devices with separator = 1, without separator = 0
C53: Stub1_1 | E53: Stub1_2 | G53: Stub2_1 | I53: Stub2_2 | K53: Stub3_1 | M53: Stub3_2 | O53: Stub4_1 | Q53: Stub4_2 | U53: Internal AI: Device has an internal AI
C54: TRUE | E54: TRUE | G54: TRUE | I54: TRUE | K54: TRUE | M54: TRUE | O54: TRUE | Q54: TRUE | U54: Constant Current: Device consumes current independent from device voltage
U55: Constant Power: Device consumes current regulated by device voltage
B56: Selection Card (Normal, PowerBus) | U56: Low ohmic FET: Device has an low ohmic isolator FET
B57: 1 | C57: Selection card | U57: 16V min. device voltage: Device need at min. 16V
B61: Alarm indicator extras
B62: Alarm Indicator extras
B63: None | C63: Alarm Indicator extras
B64: 0.005 | C64: Alarm Indicator Current [A]
B65: 0.0004 | C65: Alarm Indicator Current Ex-Line [A]
B68: Choose max. Line current
B69: Choose Current
B70: 0.5A | C70: Chosen card current
B74: ExtensionView
B75: TRUE
B76: Ext. changable
B77: TRUE
B78: Loop2 visible
B79: TRUE
B80: Device Population | C80: Line card (C-NET) FCL2001-A1 | U80: FDnetRK | X80: FDnetMK
U81: Total | V81: Constant | X81: Total | Y81: Constant
C82: Stub1_1 | E82: Stub1_2 | G82: Stub2_1 | I82: Stub2_2 | K82: Stub3_1 | M82: Stub3_2 | O82: Stub4_1 | Q82: Stub4_2 | V82: Current | W82: Power | Y82: Current | Z82: Power | AA82: FDnetTK | AB82: FDnetAK | AC82: Internal AI | AD82: Low ohmic FET | AE82: 16V min. device voltage | AF82: Remarks
B83: Point detectors | V83: Constant Current | Y83: constant power | AF83: Point detectors
B84: OP720 - Smoke detector | C84: 0 | D84: pcs. | E84: 0 | F84: pcs. | G84: 0 | H84: pcs. | I84: 0 | J84: pcs. | K84: 0 | L84: pcs. | M84: 0 | N84: pcs. | O84: 0 | P84: pcs. | Q84: 0 | R84: pcs. | U84: =V84+W84 -> 1 | V84: 1 | W84: 0 | X84: =Y84+Z84 -> 1 | Y84: 1 | Z84: 0 | AA84: 1 | AB84: 1 | AC84: 1 | AD84: 0 | AE84: 0 | AF84: =B84 -> OP720 - Smoke detector
B85: HI722 - Heat detector | C85: 0 | D85: pcs. | E85: 0 | F85: pcs. | G85: 0 | H85: pcs. | I85: 0 | J85: pcs. | K85: 0 | L85: pcs. | M85: 0 | N85: pcs. | O85: 0 | P85: pcs. | Q85: 0 | R85: pcs. | U85: =V85+W85 -> 1 | V85: 1 | W85: 0 | X85: =Y85+Z85 -> 1 | Y85: 1 | Z85: 0 | AA85: 1 | AB85: 1 | AC85: 1 | AD85: 0 | AE85: 0 | AF85: HI722 - Heat detector
B86: HI720 - Heat detector | C86: 0 | D86: pcs. | E86: 0 | F86: pcs. | G86: 0 | H86: pcs. | I86: 0 | J86: pcs. | K86: 0 | L86: pcs. | M86: 0 | N86: pcs. | O86: 0 | P86: pcs. | Q86: 0 | R86: pcs. | U86: 1 | V86: 1 | W86: 0 | X86: 1 | Y86: 1 | Z86: 0 | AA86: 1 | AB86: 1 | AC86: 1 | AD86: 0 | AE86: 0 | AF86: HI720 - Heat detector
B87: OH720 - Multi Sensor detector (ES<=14) | C87: 0 | D87: pcs. | E87: 0 | F87: pcs. | G87: 0 | H87: pcs. | I87: 0 | J87: pcs. | K87: 0 | L87: pcs. | M87: 0 | N87: pcs. | O87: 0 | P87: pcs. | Q87: 0 | R87: pcs. | U87: 1 | V87: 1 | W87: 0 | X87: 1 | Y87: 1 | Z87: 0 | AA87: 1 | AB87: 1 | AC87: 1 | AD87: 0 | AE87: 0 | AF87: OH720 - Multi Sensor detector (ES<=14)
B88: OH720 - Multi Sensor detector (ES>=15) | C88: 0 | D88: pcs. | E88: 0 | F88: pcs. | G88: 0 | H88: pcs. | I88: 0 | J88: pcs. | K88: 0 | L88: pcs. | M88: 0 | N88: pcs. | O88: 0 | P88: pcs. | Q88: 0 | R88: pcs. | U88: =V88+W88 -> 1 | V88: 1 | W88: 0 | X88: =Y88+Z88 -> 1 | Y88: 1 | Z88: 0 | AA88: 1 | AB88: 1 | AC88: 1 | AD88: 1 | AE88: 0 | AF88: =B88 -> OH720 - Multi Sensor detector (ES>=15)
B89: OOH740 - Multi Sensor detector (ES<=29) | C89: 0 | D89: pcs. | E89: 0 | F89: pcs. | G89: 0 | H89: pcs. | I89: 0 | J89: pcs. | K89: 0 | L89: pcs. | M89: 0 | N89: pcs. | O89: 0 | P89: pcs. | Q89: 0 | R89: pcs. | U89: 1 | V89: 1 | W89: 0 | X89: 1 | Y89: 1 | Z89: 0 | AA89: 1 | AB89: 1 | AC89: 1 | AD89: 0 | AE89: 0 | AF89: OOH740 - Multi Sensor detector (ES<=29)
B90: OOH740 - Multi Sensor detector (ES>=30) | C90: 0 | D90: pcs. | E90: 0 | F90: pcs. | G90: 0 | H90: pcs. | I90: 0 | J90: pcs. | K90: 0 | L90: pcs. | M90: 0 | N90: pcs. | O90: 0 | P90: pcs. | Q90: 0 | R90: pcs. | U90: =V90+W90 -> 1 | V90: 1 | W90: 0 | X90: =Y90+Z90 -> 1 | Y90: 1 | Z90: 0 | AA90: 1 | AB90: 1 | AC90: 1 | AD90: 1 | AE90: 0 | AF90: =B90 -> OOH740 - Multi Sensor detector (ES>=30)
U91: =V91+W91 -> 0 | X91: =Y91+Z91 -> 0 | AF91: 0
U92: 0 | X92: 0 | AF92: 0
U93: 0 | X93: 0 | AF93: 0
U94: 0 | X94: 0 | AF94: 0
U95: 0 | X95: 0 | AF95: 0
U96: 0 | X96: 0 | AF96: 0
U97: 0 | X97: 0 | AF97: 0
U98: 0 | X98: 0 | AF98: 0
U99: 0 | X99: 0 | AF99: 0
B100: Special detectors | AF100: Special detectors
B101: FDF221-9 - Infrared flame detector | C101: 0 | D101: pcs. | E101: 0 | F101: pcs. | G101: 0 | H101: pcs. | I101: 0 | J101: pcs. | K101: 0 | L101: pcs. | M101: 0 | N101: pcs. | O101: 0 | P101: pcs. | Q101: 0 | R101: pcs. | U101: 3 | V101: 3 | W101: 0 | X101: 3 | Y101: 3 | Z101: 0 | AA101: 1 | AB101: 1 | AC101: 1 | AD101: 0 | AE101: 0 | AF101: FDF221-9 - Infrared flame detector
B102: FDF241-9 - Infrared flame detector | C102: 0 | D102: pcs. | E102: 0 | F102: pcs. | G102: 0 | H102: pcs. | I102: 0 | J102: pcs. | K102: 0 | L102: pcs. | M102: 0 | N102: pcs. | O102: 0 | P102: pcs. | Q102: 0 | R102: pcs. | U102: 3 | V102: 3 | W102: 0 | X102: 3 | Y102: 3 | Z102: 0 | AA102: 1 | AB102: 1 | AC102: 1 | AD102: 0 | AE102: 0 | AF102: FDF241-9 - Infrared flame detector
B103: FDL241-9 - Linear smoke detector | C103: 0 | D103: pcs. | E103: 0 | F103: pcs. | G103: 0 | H103: pcs. | I103: 0 | J103: pcs. | K103: 0 | L103: pcs. | M103: 0 | N103: pcs. | O103: 0 | P103: pcs. | Q103: 0 | R103: pcs. | U103: 4 | V103: 4 | W103: 0 | X103: 4 | Y103: 4 | Z103: 0 | AA103: 1 | AB103: 1 | AC103: 1 | AD103: 0 | AE103: 0 | AF103: FDL241-9 - Linear smoke detector
B104: FDL242 - Linear smoke detector | C104: 0 | D104: pcs. | E104: 0 | F104: pcs. | G104: 0 | H104: pcs. | I104: 0 | J104: pcs. | K104: 0 | L104: pcs. | M104: 0 | N104: pcs. | O104: 0 | P104: pcs. | Q104: 0 | R104: pcs. | U104: 15 | V104: 15 | W104: 0 | X104: 15 | Y104: 15 | Z104: 0 | AA104: 1 | AB104: 1 | AC104: 1 | AD104: 0 | AE104: 0 | AF104: =B104 -> FDL242 - Linear smoke detector
B105: OOHC740 - Neural Fire and CO detector | C105: 0 | D105: pcs. | E105: 0 | F105: pcs. | G105: 0 | H105: pcs. | I105: 0 | J105: pcs. | K105: 0 | L105: pcs. | M105: 0 | N105: pcs. | O105: 0 | P105: pcs. | Q105: 0 | R105: pcs. | U105: =V105+W105 -> 2 | V105: 2 | W105: 0 | X105: =Y105+Z105 -> 2 | Y105: 2 | Z105: 0 | AA105: 1 | AB105: 1 | AC105: 1 | AD105: 0 | AE105: 0 | AF105: =B105 -> OOHC740 - Neural Fire and CO detector
U106: 0 | X106: 0 | AF106: 0
U107: 0 | X107: 0 | AF107: 0
U108: 0 | X108: 0 | AF108: 0
U109: 0 | X109: 0 | AF109: 0
U110: 0 | X110: 0 | AF110: 0
U111: 0 | X111: 0 | AF111: 0
U112: 0 | X112: 0 | AF112: 0
U113: 0 | X113: 0 | AF113: 0
U114: 0 | X114: 0 | AF114: 0
B115: Manual call points | AF115: Manual call points
B116: FDM22x - Manual call points | C116: 0 | D116: pcs. | E116: 0 | F116: pcs. | G116: 0 | H116: pcs. | I116: 0 | J116: pcs. | K116: 0 | L116: pcs. | M116: 0 | N116: pcs. | O116: 0 | P116: pcs. | Q116: 0 | R116: pcs. | U116: 1 | V116: 1 | W116: 0 | X116: 1 | Y116: 1 | Z116: 0 | AA116: 1 | AB116: 1 | AC116: 1 | AD116: 0 | AE116: 0 | AF116: FDM22x - Manual call points
U117: 0 | X117: 0 | AF117: 0
U118: 0 | X118: 0 | AF118: 0
U119: 0 | X119: 0 | AF119: 0
U120: 0 | X120: 0 | AF120: 0
U121: 0 | X121: 0 | AF121: 0
U122: 0 | X122: 0 | AF122: 0
U123: 0 | X123: 0 | AF123: 0
U124: 0 | X124: 0 | AF124: 0
U125: 0 | X125: 0 | AF125: 0
U126: 0 | X126: 0 | AF126: 0
B127: Line modules | AF127: Line modules
B128: FDCI221 - Input module (1I) | C128: 0 | D128: pcs. | E128: 0 | F128: pcs. | G128: 0 | H128: pcs. | I128: 0 | J128: pcs. | K128: 0 | L128: pcs. | M128: 0 | N128: pcs. | O128: 0 | P128: pcs. | Q128: 0 | R128: pcs. | U128: 2 | V128: 2 | W128: 0 | X128: 2 | Y128: 2 | Z128: 0 | AA128: 1 | AB128: 1 | AC128: 0 | AD128: 0 | AE128: 0 | AF128: FDCI221 - Input module (1I)
B129: FDCI222 - Input module (4I) | C129: 0 | D129: pcs. | E129: 0 | F129: pcs. | G129: 0 | H129: pcs. | I129: 0 | J129: pcs. | K129: 0 | L129: pcs. | M129: 0 | N129: pcs. | O129: 0 | P129: pcs. | Q129: 0 | R129: pcs. | U129: 2 | V129: 2 | W129: 0 | X129: 2 | Y129: 2 | Z129: 0 | AA129: 1 | AB129: 1 | AC129: 0 | AD129: 0 | AE129: 0 | AF129: FDCI222 - Input module (4I)
B130: FDCIO221 - In/Output module (1I&1O) | C130: 0 | D130: pcs. | E130: 0 | F130: pcs. | G130: 0 | H130: pcs. | I130: 0 | J130: pcs. | K130: 0 | L130: pcs. | M130: 0 | N130: pcs. | O130: 0 | P130: pcs. | Q130: 0 | R130: pcs. | U130: 2 | V130: 2 | W130: 0 | X130: 2 | Y130: 2 | Z130: 0 | AA130: 1 | AB130: 1 | AC130: 0 | AD130: 0 | AE130: 0 | AF130: FDCIO221 - In/Output module (1I&1O)
B131: FDCIO222 - In/Output module (4I&4O) | C131: 0 | D131: pcs. | E131: 0 | F131: pcs. | G131: 0 | H131: pcs. | I131: 0 | J131: pcs. | K131: 0 | L131: pcs. | M131: 0 | N131: pcs. | O131: 0 | P131: pcs. | Q131: 0 | R131: pcs. | U131: 3 | V131: 3 | W131: 0 | X131: 3 | Y131: 3 | Z131: 0 | AA131: 1 | AB131: 1 | AC131: 0 | AD131: 0 | AE131: 0 | AF131: FDCIO222 - In/Output module (4I&4O)
B132: FDCIO223 - In/Output module (2I/O) | C132: 0 | D132: pcs. | E132: 0 | F132: pcs. | G132: 0 | H132: pcs. | I132: 0 | J132: pcs. | K132: 0 | L132: pcs. | M132: 0 | N132: pcs. | O132: 0 | P132: pcs. | Q132: 0 | R132: pcs. | U132: 3 | V132: 3 | W132: 0 | X132: 3 | Y132: 3 | Z132: 0 | AA132: 1 | AB132: 1 | AC132: 0 | AD132: 0 | AE132: 0 | AF132: FDCIO223 - In/Output module (2I/O)
B133: FDCIO224 - In/Output module (4I&4O) | C133: 0 | D133: pcs. | E133: 0 | F133: pcs. | G133: 0 | H133: pcs. | I133: 0 | J133: pcs. | K133: 0 | L133: pcs. | M133: 0 | N133: pcs. | O133: 0 | P133: pcs. | Q133: 0 | R133: pcs. | U133: 3 | V133: 3 | W133: 0 | X133: 3 | Y133: 3 | Z133: 0 | AA133: 1 | AB133: 1 | AC133: 0 | AD133: 0 | AE133: 0 | AF133: FDCIO224 - In/Output module (4I&4O)
B134: FDCL221 - Line isolator | C134: 0 | D134: pcs. | E134: 0 | F134: pcs. | G134: 0 | H134: pcs. | I134: 0 | J134: pcs. | K134: 0 | L134: pcs. | M134: 0 | N134: pcs. | O134: 0 | P134: pcs. | Q134: 0 | R134: pcs. | U134: 1 | V134: 1 | W134: 0 | X134: 1 | Y134: 1 | Z134: 0 | AA134: 1 | AB134: 1 | AC134: 0 | AD134: 0 | AE134: 0 | AF134: FDCL221 - Line isolator
B135: FDCL221-M - Multi line isolator | C135: 0 | D135: pcs. | E135: 0 | F135: pcs. | G135: 0 | H135: pcs. | I135: 0 | J135: pcs. | K135: 0 | L135: pcs. | M135: 0 | N135: pcs. | O135: 0 | P135: pcs. | Q135: 0 | R135: pcs. | U135: 9 | V135: 9 | W135: 0 | X135: 9 | Y135: 9 | Z135: 0 | AA135: 9 | AB135: 9 | AC135: 0 | AD135: 0 | AE135: 0 | AF135: FDCL221-M - Multi line isolator
B136: FDCI223 - Zone module, external powered | C136: 0 | D136: pcs. | E136: 0 | F136: pcs. | G136: 0 | H136: pcs. | I136: 0 | J136: pcs. | K136: 0 | L136: pcs. | M136: 0 | N136: pcs. | O136: 0 | P136: pcs. | Q136: 0 | R136: pcs. | U136: 3 | V136: 3 | W136: 0 | X136: 3 | Y136: 3 | Z136: 0 | AA136: 1 | AB136: 1 | AC136: 0 | AD136: 0 | AE136: 0 | AF136: =B136 -> FDCI223 - Zone module, external powered
AF137: 0
AF138: 0
AF139: 0
AF140: 0
AF141: 0
AF142: 0
AF143: 0
AF144: 0
AF145: 0
B146: Radio devices | AF146: Radio devices
B147: FDCW221 - Radio gateway | C147: 0 | D147: pcs. | E147: 0 | F147: pcs. | G147: 0 | H147: pcs. | I147: 0 | J147: pcs. | K147: 0 | L147: pcs. | M147: 0 | N147: pcs. | O147: 0 | P147: pcs. | Q147: 0 | R147: pcs. | U147: =V147+W147 -> 4 | V147: 4 | W147: 0 | X147: =Y147+Z147 -> 5 | Y147: 5 | Z147: 0 | AA147: 1 | AB147: 2 | AC147: 0 | AD147: 0 | AE147: 0 | AF147: FDCW221 - Radio gateway
B148: DOW1171, SMF6120+SMF121 - detectors | C148: 0 | D148: pcs. | E148: 0 | F148: pcs. | G148: 0 | H148: pcs. | I148: 0 | J148: pcs. | K148: 0 | L148: pcs. | M148: 0 | N148: pcs. | O148: 0 | P148: pcs. | Q148: 0 | R148: pcs. | U148: =V148+W148 -> 1 | V148: 1 | W148: 0 | X148: =Y148+Z148 -> 1 | Y148: 1 | Z148: 0 | AA148: 0 | AB148: 1 | AC148: 0 | AD148: 0 | AE148: 0 | AF148: =B148 -> DOW1171, SMF6120+SMF121 - detectors
B149: FDCW241 - SWING gateway | C149: 0 | D149: pcs. | E149: 0 | F149: pcs. | G149: 0 | H149: pcs. | I149: 0 | J149: pcs. | K149: 0 | L149: pcs. | M149: 0 | N149: pcs. | O149: 0 | P149: pcs. | Q149: 0 | R149: pcs. | U149: =V149+W149 -> 6 | V149: 6 | W149: 0 | X149: =Y149+Z149 -> 16 | Y149: 16 | Z149: 0 | AA149: 1 | AB149: 2 | AC149: 0 | AD149: 0 | AE149: 0 | AF149: FDCW241 - SWING gateway
B150: FDOOT271 - SWING Smoke and Heat detector | C150: 0 | D150: pcs. | E150: 0 | F150: pcs. | G150: 0 | H150: pcs. | I150: 0 | J150: pcs. | K150: 0 | L150: pcs. | M150: 0 | N150: pcs. | O150: 0 | P150: pcs. | Q150: 0 | R150: pcs. | U150: =V150+W150 -> 0 | V150: 0 | W150: 0 | X150: =Y150+Z150 -> 0 | Y150: 0 | Z150: 0 | AA150: 0 | AB150: 1 | AC150: 0 | AD150: 0 | AE150: 0 | AF150: FDOOT271 - SWING Smoke and Heat detector
B151: FDM273 - SWING Manual call point | C151: 0 | D151: pcs. | E151: 0 | F151: pcs. | G151: 0 | H151: pcs. | I151: 0 | J151: pcs. | K151: 0 | L151: pcs. | M151: 0 | N151: pcs. | O151: 0 | P151: pcs. | Q151: 0 | R151: pcs. | U151: =V151+W151 -> 0 | V151: 0 | W151: 0 | X151: =Y151+Z151 -> 0 | Y151: 0 | Z151: 0 | AA151: 0 | AB151: 1 | AC151: 0 | AD151: 0 | AE151: 0 | AF151: FDM273 - SWING Manual call point
AF152: 0
AF153: 0
AF154: 0
AF155: 0
AF156: 0
AF157: 0
AF158: 0
AF159: 0
AF160: 0
AF161: 0
B162: Integrated modules | AF162: Integrated modules
B163: VLF 250, VLF 500 - Vesda laser focus (ASD) | C163: 0 | D163: pcs. | E163: 0 | F163: pcs. | G163: 0 | H163: pcs. | I163: 0 | J163: pcs. | K163: 0 | L163: pcs. | M163: 0 | N163: pcs. | O163: 0 | P163: pcs. | Q163: 0 | R163: pcs. | U163: =V163+W163 -> 3 | V163: 3 | W163: 0 | X163: =Y163+Z163 -> 3 | Y163: 3 | Z163: 0 | AA163: 1 | AB163: 1 | AC163: 0 | AD163: 0 | AE163: 0 | AF163: VLF 250, VLF 500 - Vesda laser focus (ASD)
B164: FDA221, FDA241 - Aspiration smoke detector (ASD) | C164: 0 | D164: pcs. | E164: 0 | F164: pcs. | G164: 0 | H164: pcs. | I164: 0 | J164: pcs. | K164: 0 | L164: pcs. | M164: 0 | N164: pcs. | O164: 0 | P164: pcs. | Q164: 0 | R164: pcs. | U164: =V164+W164 -> 3 | V164: 3 | W164: 0 | X164: =Y164+Z164 -> 3 | Y164: 3 | Z164: 0 | AA164: 1 | AB164: 1 | AC164: 0 | AD164: 0 | AE164: 0 | AF164: FDA221, FDA241 - Aspiration smoke detector (ASD)
B165: FDA222, FDA242 - Aspiration smoke detector (ASD) (one chamber) | C165: 0 | D165: pcs. | E165: 0 | F165: pcs. | G165: 0 | H165: pcs. | I165: 0 | J165: pcs. | K165: 0 | L165: pcs. | M165: 0 | N165: pcs. | O165: 0 | P165: pcs. | Q165: 0 | R165: pcs. | U165: =V165+W165 -> 3 | V165: 3 | W165: 0 | X165: =Y165+Z165 -> 3 | Y165: 3 | Z165: 0 | AA165: 1 | AB165: 1 | AC165: 0 | AD165: 0 | AE165: 0 | AF165: =B165 -> FDA222, FDA242 - Aspiration smoke detector (ASD) (one chamber)
B166: FDA261, FDA262 - Aspiration smoke detector (ASD) (two chambers) | C166: 0 | D166: pcs. | E166: 0 | F166: pcs. | G166: 0 | H166: pcs. | I166: 0 | J166: pcs. | K166: 0 | L166: pcs. | M166: 0 | N166: pcs. | O166: 0 | P166: pcs. | Q166: 0 | R166: pcs. | U166: 6 | V166: 6 | W166: 0 | X166: 6 | Y166: 6 | Z166: 0 | AA166: 2 | AB166: 2 | AC166: 0 | AD166: 0 | AE166: 0 | AF166: FDA261, FDA262 - Aspiration smoke detector (ASD) (two chambers)
AF167: 0
AF168: 0
AF169: 0
AF170: 0
AF171: 0
AF172: 0
AF173: 0
AF174: 0
B175: Alarm devices - Sound | AF175: Alarm devices - Sound
B176: FDS221-R, FDS221-W - Alarm sounder red or white housing, Sound High | C176: 0 | D176: pcs. | E176: 0 | F176: pcs. | G176: 0 | H176: pcs. | I176: 0 | J176: pcs. | K176: 0 | L176: pcs. | M176: 0 | N176: pcs. | O176: 0 | P176: pcs. | Q176: 0 | R176: pcs. | U176: =V176+W176 -> 1 | V176: 1 | W176: 0 | X176: =Y176+Z176 -> 15 | Y176: 15 | Z176: 0 | AA176: 1 | AB176: 1 | AC176: 0 | AD176: 0 | AE176: 0 | AF176: FDS221-R, FDS221-W - Alarm sounder red or white housing, Sound High
B177: FDS221-R, FDS221-W - Alarm sounder red or white housing, Sound Middle | C177: 0 | D177: pcs. | E177: 0 | F177: pcs. | G177: 0 | H177: pcs. | I177: 0 | J177: pcs. | K177: 0 | L177: pcs. | M177: 0 | N177: pcs. | O177: 0 | P177: pcs. | Q177: 0 | R177: pcs. | U177: 1 | V177: 1 | W177: 0 | X177: 10 | Y177: 10 | Z177: 0 | AA177: 1 | AB177: 1 | AC177: 0 | AD177: 0 | AE177: 0 | AF177: FDS221-R, FDS221-W - Alarm sounder red or white housing, Sound Middle
B178: FDS221-R, FDS221-W - Alarm sounder red or white housing, Sound Low | C178: 0 | D178: pcs. | E178: 0 | F178: pcs. | G178: 0 | H178: pcs. | I178: 0 | J178: pcs. | K178: 0 | L178: pcs. | M178: 0 | N178: pcs. | O178: 0 | P178: pcs. | Q178: 0 | R178: pcs. | U178: 1 | V178: 1 | W178: 0 | X178: 5 | Y178: 5 | Z178: 0 | AA178: 1 | AB178: 1 | AC178: 0 | AD178: 0 | AE178: 0 | AF178: FDS221-R, FDS221-W - Alarm sounder red or white housing, Sound Low
B179: DBS720 - Sounder base, Sound High | C179: 0 | D179: pcs. | E179: 0 | F179: pcs. | G179: 0 | H179: pcs. | I179: 0 | J179: pcs. | K179: 0 | L179: pcs. | M179: 0 | N179: pcs. | O179: 0 | P179: pcs. | Q179: 0 | R179: pcs. | U179: 0.5 | V179: 0.5 | W179: 0 | X179: 5 | Y179: 5 | Z179: 0 | AA179: 0 | AB179: 0 | AC179: 0 | AD179: 0 | AE179: 0 | AF179: DBS720 - Sounder base, Sound High
B180: DBS721 - Sounder interbase, Sound High | C180: 0 | D180: pcs. | E180: 0 | F180: pcs. | G180: 0 | H180: pcs. | I180: 0 | J180: pcs. | K180: 0 | L180: pcs. | M180: 0 | N180: pcs. | O180: 0 | P180: pcs. | Q180: 0 | R180: pcs. | U180: 1 | V180: 1 | W180: 0 | X180: 15 | Y180: 15 | Z180: 0 | AA180: 1 | AB180: 1 | AC180: 0 | AD180: 0 | AE180: 0 | AF180: DBS721 - Sounder interbase, Sound High
B181: DBS721 - Sounder interbase, Sound Middle | C181: 0 | D181: pcs. | E181: 0 | F181: pcs. | G181: 0 | H181: pcs. | I181: 0 | J181: pcs. | K181: 0 | L181: pcs. | M181: 0 | N181: pcs. | O181: 0 | P181: pcs. | Q181: 0 | R181: pcs. | U181: 1 | V181: 1 | W181: 0 | X181: 10 | Y181: 10 | Z181: 0 | AA181: 1 | AB181: 1 | AC181: 0 | AD181: 0 | AE181: 0 | AF181: DBS721 - Sounder interbase, Sound Middle
B182: DBS721 - Sounder interbase, Sound Low | C182: 0 | D182: pcs. | E182: 0 | F182: pcs. | G182: 0 | H182: pcs. | I182: 0 | J182: pcs. | K182: 0 | L182: pcs. | M182: 0 | N182: pcs. | O182: 0 | P182: pcs. | Q182: 0 | R182: pcs. | U182: 1 | V182: 1 | W182: 0 | X182: 5 | Y182: 5 | Z182: 0 | AA182: 1 | AB182: 1 | AC182: 0 | AD182: 0 | AE182: 0 | AF182: DBS721 - Sounder interbase, Sound Low
B183: FDS224-R, FDS224-W - Sounder red or white housing, Sound High | C183: 0 | D183: pcs. | E183: 0 | F183: pcs. | G183: 0 | H183: pcs. | I183: 0 | J183: pcs. | K183: 0 | L183: pcs. | M183: 0 | N183: pcs. | O183: 0 | P183: pcs. | Q183: 0 | R183: pcs. | U183: 1 | V183: 1 | W183: 0 | X183: 15 | Y183: 15 | Z183: 0 | AA183: 1 | AB183: 1 | AC183: 0 | AD183: 1 | AE183: 0 | AF183: FDS224-R, FDS224-W - Sounder red or white housing, Sound High
B184: FDS224-R, FDS224-W - Sounder red or white housing, Sound Middle | C184: 0 | D184: pcs. | E184: 0 | F184: pcs. | G184: 0 | H184: pcs. | I184: 0 | J184: pcs. | K184: 0 | L184: pcs. | M184: 0 | N184: pcs. | O184: 0 | P184: pcs. | Q184: 0 | R184: pcs. | U184: 1 | V184: 1 | W184: 0 | X184: 8 | Y184: 8 | Z184: 0 | AA184: 1 | AB184: 1 | AC184: 0 | AD184: 1 | AE184: 0 | AF184: FDS224-R, FDS224-W - Sounder red or white housing, Sound Middle
B185: FDS224-R, FDS224-W - Sounder red or white housing, Sound Low | C185: 0 | D185: pcs. | E185: 0 | F185: pcs. | G185: 0 | H185: pcs. | I185: 0 | J185: pcs. | K185: 0 | L185: pcs. | M185: 0 | N185: pcs. | O185: 0 | P185: pcs. | Q185: 0 | R185: pcs. | U185: 1 | V185: 1 | W185: 0 | X185: 6 | Y185: 6 | Z185: 0 | AA185: 1 | AB185: 1 | AC185: 0 | AD185: 1 | AE185: 0 | AF185: FDS224-R, FDS224-W - Sounder red or white housing, Sound Low
B186: FDS226, FDSB226 - Sounders used without beacon functionality, Sound High | C186: 0 | D186: pcs. | E186: 0 | F186: pcs. | G186: 0 | H186: pcs. | I186: 0 | J186: pcs. | K186: 0 | L186: pcs. | M186: 0 | N186: pcs. | O186: 0 | P186: pcs. | Q186: 0 | R186: pcs. | U186: 1.25 | V186: 1.25 | W186: 0 | X186: 18 | Y186: 18 | Z186: 0 | AA186: 1 | AB186: 1 | AC186: 0 | AD186: 1 | AE186: 0 | AF186: =B186 -> FDS226, FDSB226 - Sounders used without beacon functionality, Sound High
B187: FDS226, FDSB226 - Sounders used without beacon functionality, Sound Middle | C187: 0 | D187: pcs. | E187: 0 | F187: pcs. | G187: 0 | H187: pcs. | I187: 0 | J187: pcs. | K187: 0 | L187: pcs. | M187: 0 | N187: pcs. | O187: 0 | P187: pcs. | Q187: 0 | R187: pcs. | U187: 1.25 | V187: 1.25 | W187: 0 | X187: 13 | Y187: 13 | Z187: 0 | AA187: 1 | AB187: 1 | AC187: 0 | AD187: 1 | AE187: 0 | AF187: FDS226, FDSB226 - Sounders used without beacon functionality, Sound Middle
B188: FDS226, FDSB226 - Sounders used without beacon functionality, Sound Low | C188: 0 | D188: pcs. | E188: 0 | F188: pcs. | G188: 0 | H188: pcs. | I188: 0 | J188: pcs. | K188: 0 | L188: pcs. | M188: 0 | N188: pcs. | O188: 0 | P188: pcs. | Q188: 0 | R188: pcs. | U188: 1.25 | V188: 1.25 | W188: 0 | X188: 12 | Y188: 12 | Z188: 0 | AA188: 1 | AB188: 1 | AC188: 0 | AD188: 1 | AE188: 0 | AF188: FDS226, FDSB226 - Sounders used without beacon functionality, Sound Low
AF189: 0
AF190: 0
AF191: 0
AF192: 0
AF193: 0
AF194: 0
AF195: 0
B196: Alarm devices - Sound and Voice | AF196: Alarm devices - Sound and Voice
B197: FDS225-R, FDS225-W - Voice sounder red or white housing, Sound High | C197: 0 | D197: pcs. | E197: 0 | F197: pcs. | G197: 0 | H197: pcs. | I197: 0 | J197: pcs. | K197: 0 | L197: pcs. | M197: 0 | N197: pcs. | O197: 0 | P197: pcs. | Q197: 0 | R197: pcs. | U197: =V197+W197 -> 1 | V197: 1 | W197: 0 | X197: =Y197+Z197 -> 18 | Y197: 18 | Z197: 0 | AA197: 1 | AB197: 1 | AC197: 0 | AD197: 1 | AE197: 0 | AF197: FDS225-R, FDS225-W - Voice sounder red or white housing, Sound High
B198: FDS225-R, FDS225-W - Voice sounder red or white housing, Sound Middle | C198: 0 | D198: pcs. | E198: 0 | F198: pcs. | G198: 0 | H198: pcs. | I198: 0 | J198: pcs. | K198: 0 | L198: pcs. | M198: 0 | N198: pcs. | O198: 0 | P198: pcs. | Q198: 0 | R198: pcs. | U198: 1 | V198: 1 | W198: 0 | X198: 13 | Y198: 13 | Z198: 0 | AA198: 1 | AB198: 1 | AC198: 0 | AD198: 1 | AE198: 0 | AF198: FDS225-R, FDS225-W - Voice sounder red or white housing, Sound Middle
B199: FDS225-R, FDS225-W - Voice sounder red or white housing, Sound Low | C199: 0 | D199: pcs. | E199: 0 | F199: pcs. | G199: 0 | H199: pcs. | I199: 0 | J199: pcs. | K199: 0 | L199: pcs. | M199: 0 | N199: pcs. | O199: 0 | P199: pcs. | Q199: 0 | R199: pcs. | U199: 1 | V199: 1 | W199: 0 | X199: 12 | Y199: 12 | Z199: 0 | AA199: 1 | AB199: 1 | AC199: 0 | AD199: 1 | AE199: 0 | AF199: FDS225-R, FDS225-W - Voice sounder red or white housing, Sound Low
B200: FDS227, FDSB227 - Voice sounders used without beacon functionality, Sound High | C200: 0 | D200: pcs. | E200: 0 | F200: pcs. | G200: 0 | H200: pcs. | I200: 0 | J200: pcs. | K200: 0 | L200: pcs. | M200: 0 | N200: pcs. | O200: 0 | P200: pcs. | Q200: 0 | R200: pcs. | U200: 1.25 | V200: 1.25 | W200: 0 | X200: 18 | Y200: 18 | Z200: 0 | AA200: 1 | AB200: 1 | AC200: 0 | AD200: 1 | AE200: 0 | AF200: FDS227, FDSB227 - Voice sounders used without beacon functionality, Sound High
B201: FDS227, FDSB227 - Voice sounders used without beacon functionality, Sound Middle | C201: 0 | D201: pcs. | E201: 0 | F201: pcs. | G201: 0 | H201: pcs. | I201: 0 | J201: pcs. | K201: 0 | L201: pcs. | M201: 0 | N201: pcs. | O201: 0 | P201: pcs. | Q201: 0 | R201: pcs. | U201: 1.25 | V201: 1.25 | W201: 0 | X201: 13 | Y201: 13 | Z201: 0 | AA201: 1 | AB201: 1 | AC201: 0 | AD201: 1 | AE201: 0 | AF201: FDS227, FDSB227 - Voice sounders used without beacon functionality, Sound Middle
B202: FDS227, FDSB227 - Voice sounders used without beacon functionality, Sound Low | C202: 0 | D202: pcs. | E202: 0 | F202: pcs. | G202: 0 | H202: pcs. | I202: 0 | J202: pcs. | K202: 0 | L202: pcs. | M202: 0 | N202: pcs. | O202: 0 | P202: pcs. | Q202: 0 | R202: pcs. | U202: 1.25 | V202: 1.25 | W202: 0 | X202: 12 | Y202: 12 | Z202: 0 | AA202: 1 | AB202: 1 | AC202: 0 | AD202: 1 | AE202: 0 | AF202: FDS227, FDSB227 - Voice sounders used without beacon functionality, Sound Low
AF203: 0
AF204: 0
AF205: 0
AF206: 0
AF207: 0
AF208: 0
AF209: 0
AF210: 0
AF211: 0
AF212: =B212 -> 0
B213: Alarm devices - Sound and Light (Beacon) | AF213: Alarm devices - Sound and Light (Beacon)
B214: FDS229-A, FDS229-R - Alarm sounder and beacon, amber or red, Light and Sound High | C214: 0 | D214: pcs. | E214: 0 | F214: pcs. | G214: 0 | H214: pcs. | I214: 0 | J214: pcs. | K214: 0 | L214: pcs. | M214: 0 | N214: pcs. | O214: 0 | P214: pcs. | Q214: 0 | R214: pcs. | U214: =V214+W214 -> 1 | V214: 1 | W214: 0 | X214: =Y214+Z214 -> 30 | Y214: 30 | Z214: 0 | AA214: 1 | AB214: 1 | AC214: 0 | AD214: 0 | AE214: 0 | AF214: FDS229-A, FDS229-R - Alarm sounder and beacon, amber or red, Light and Sound High
B215: FDS229-A, FDS229-R - Alarm sounder and beacon, amber or red, Light and Sound Middle | C215: 0 | D215: pcs. | E215: 0 | F215: pcs. | G215: 0 | H215: pcs. | I215: 0 | J215: pcs. | K215: 0 | L215: pcs. | M215: 0 | N215: pcs. | O215: 0 | P215: pcs. | Q215: 0 | R215: pcs. | U215: 1 | V215: 1 | W215: 0 | X215: 20 | Y215: 20 | Z215: 0 | AA215: 1 | AB215: 1 | AC215: 0 | AD215: 0 | AE215: 0 | AF215: FDS229-A, FDS229-R - Alarm sounder and beacon, amber or red, Light and Sound Middle
B216: FDS229-A, FDS229-R - Alarm sounder and beacon, amber or red, Light and Sound Low | C216: 0 | D216: pcs. | E216: 0 | F216: pcs. | G216: 0 | H216: pcs. | I216: 0 | J216: pcs. | K216: 0 | L216: pcs. | M216: 0 | N216: pcs. | O216: 0 | P216: pcs. | Q216: 0 | R216: pcs. | U216: 1 | V216: 1 | W216: 0 | X216: 10 | Y216: 10 | Z216: 0 | AA216: 1 | AB216: 1 | AC216: 0 | AD216: 0 | AE216: 0 | AF216: FDS229-A, FDS229-R - Alarm sounder and beacon, amber or red, Light and Sound Low
B217: FDS226-RR, FDS226-WR - Sounder beacon, Red LED, High Intensity | C217: 0 | D217: pcs. | E217: 0 | F217: pcs. | G217: 0 | H217: pcs. | I217: 0 | J217: pcs. | K217: 0 | L217: pcs. | M217: 0 | N217: pcs. | O217: 0 | P217: pcs. | Q217: 0 | R217: pcs. | U217: 1.25 | V217: 1.25 | W217: 0 | X217: 111 | Y217: 22 | Z217: 89 | AA217: 1 | AB217: 1 | AC217: 0 | AD217: 1 | AE217: 1 | AF217: FDS226-RR, FDS226-WR - Sounder beacon, Red LED, High Intensity
B218: FDS226-RR, FDS226-WR - Sounder beacon, Red LED, Middle Intensity | C218: 0 | D218: pcs. | E218: 0 | F218: pcs. | G218: 0 | H218: pcs. | I218: 0 | J218: pcs. | K218: 0 | L218: pcs. | M218: 0 | N218: pcs. | O218: 0 | P218: pcs. | Q218: 0 | R218: pcs. | U218: 1.25 | V218: 1.25 | W218: 0 | X218: 80 | Y218: 22 | Z218: 58 | AA218: 1 | AB218: 1 | AC218: 0 | AD218: 1 | AE218: 1 | AF218: FDS226-RR, FDS226-WR - Sounder beacon, Red LED, Middle Intensity
B219: FDS226-RR, FDS226-WR - Sounder beacon, Red LED, Low Intensity | C219: 0 | D219: pcs. | E219: 0 | F219: pcs. | G219: 0 | H219: pcs. | I219: 0 | J219: pcs. | K219: 0 | L219: pcs. | M219: 0 | N219: pcs. | O219: 0 | P219: pcs. | Q219: 0 | R219: pcs. | U219: 1.25 | V219: 1.25 | W219: 0 | X219: 64 | Y219: 22 | Z219: 42 | AA219: 1 | AB219: 1 | AC219: 0 | AD219: 1 | AE219: 1 | AF219: FDS226-RR, FDS226-WR - Sounder beacon, Red LED, Low Intensity
B220: FDS226-RR, FDS226-WR - Sounder beacon, Red LED, Indicator Mode | C220: 0 | D220: pcs. | E220: 0 | F220: pcs. | G220: 0 | H220: pcs. | I220: 0 | J220: pcs. | K220: 0 | L220: pcs. | M220: 0 | N220: pcs. | O220: 0 | P220: pcs. | Q220: 0 | R220: pcs. | U220: 1.25 | V220: 1.25 | W220: 0 | X220: 30 | Y220: 22 | Z220: 8 | AA220: 1 | AB220: 1 | AC220: 0 | AD220: 1 | AE220: 0 | AF220: FDS226-RR, FDS226-WR - Sounder beacon, Red LED, Indicator Mode
... 234 more rows

Sheet FDnet_Constants (hidden)
A1: General characteristic values
A3: Max. cablelength resistor | B3: maxLengthR | C3: 3300 | D3: m | E3: 240 Ohm = 72 Ohm/km * 3300m (MP1.1 only 2500m)
A4: Max. cablelength capacity | B4: maxLengthC | C4: 5000 | D4: m | E4: (no restriction, value could be higher)
A5: Max. Adressindex per Stub | B5: MaxAKStub | C5: 64 | D5: Device
A6: Max. Adressindex per Loop | B6: MaxAKLoop | C6: 252 | D6: Device | E6: (restriction trough startup time)
A7: Max. Adressindex per Module | B7: MaxAKModule | C7: 252 | D7: Device
A8: Max. current per Module | B8: Imax | C8: 0.5 | D8: A | E8: (distribution free between Loop and Stub)
A9: Max. current per Module | B9: ImaxStation | C9: 0.883 | D9: A | E9: (@ 24V, inkl. Wirkungsgrad DC/DC)
A10: Max. leakcurrent per Loop/Stub | B10: Ileak | C10: 0.004 | D10: A | E10: (Vdetmin / 1500 Ohm)
A11: Max. leakcurrent per Module | B11: IleakModule | C11: 0.022 | D11: A
A12: Min. line voltage | B12: Vline_min | C12: 31 | D12: V
A13: Min. line voltage energy efficency | B13: Vline_EnergyEfficency_min | C13: 24 | D13: V
A14: Min. detector voltage | B14: Vdet_min | C14: 12 | D14: V
A15: Min. beacon voltage AD18 | B15: Vdet_min_AD18 | C15: 16 | D15: V
A16: Nom. Answer voltage | B16: Vans | C16: 6 | D16: V
A17: Detector Current | B17: Idet | C17: 0.00025 | D17: A
A18: Operation indicator factor | B18: OperationIndicatorFactor | C18: 0.72 | E18: Current for Operation indicator ~180uA -> 180uA/250uA
A19: Internal alarm indicator current | B19: I_Iai | C19: 0.0002 | D19: A
A20: Amount of Internal alarm indicators | B20: N_Iai | C20: 10
A21: External alarm indicator current | B21: I_Eai | C21: 0.0002 | D21: A
A22: Amount of External alarm indicators | B22: N_Eai | C22: 10
A23: Steady on Internal alarm indicator current | B23: I_IaiSteadyOn | C23: 0.0012 | D23: A | E23: 3ms/25ms*10mA (LED is every 25ms for 3ms active, current 10mA)
A24: Amount of steadyOn internal alarm indicators (GB) | B24: N_IaiSteadyOn_GB | C24: 32 | E24: GB standard demand 32 devices on alarm
A25: Amount of steadyOn internal alarm indicators (operation indicator) | B25: N_IaiSteadyOn_OI | C25: 10 | E25: max. 10 devices on alarm
A26: Duty Cycle | B26: DC | C26: 0.75
A27: Max. answer current resistor | B27: Rans | C27: 250 | D27: Ohm | E27: 250 Ohm = (5.5V / 15mA) - 120 Ohm / resistor with Detectors FET
A28: Max. cable resistor | B28: Rcbl | C28: 240 | D28: Ohm | E28: 240 Ohm = 72 Ohm/km * 3300m (MP1.1 only 180 Ohm)
A29: Max. FET resistor | B29: Rdet | C29: 0.2 | D29: Ohm
A30: Max. FET resistor for low Typ | B30: Rdet_low | C30: 0.1 | D30: Ohm
A31: Increase capacity from (Rc) | B31: IncCapRc | C31: 50 | D31: Ohm
A32: Capacity >Rc | B32: CmaxGreatRc | C32: 500 | D32: nF
A33: Capacity <Rc | B33: CmaxSmalRc | C33: 750 | D33: nF
A34: Max. capacity per Module | B34: MaxC | C34: 1000 | D34: nF
A35: Max. numbers of wireless device per gateway | B35: MaxRadioDevice | C35: 30 | D35: Device
A36: Max. numbers of wireless device per gateway SWiNG | B36: MaxSwingDevice | C36: 30 | D36: Device
A37: Maximum number of FDCIO per Line Card | B37: MaxFDCIO_Device | C37: 50 | D37: Device
A38: Maximum number of FT2001 per Line Card | B38: MaxFT2001_Device | C38: 20 | D38: Device
A39: Maximum number of FRT / FRD per Line Card | B39: MaxFRT_FRD_Device | C39: 8 | D39: Device
A42: P2 Ex-Stub characteristic values
A43: Max. leakcurrent per Ex-Stub | B43: IleakEx | C43: 0.0043 | D43: A | E43: Ex-Stub rules and calculation basis
A44: Min. detector voltage with FDCL-Ex | B44: VdetEx_min | C44: 13 | D44: V | E44: - FDCL221-Ex together with device load is added to line
A45: Max. ex line cable res. (incl. Barriere) | B45: RlEx | C45: 440 | D45: Ohm | E45: - from the load a minimum FDCL22-1Ex input voltage is resulting
A46: Max. loop cable resistance Ex | B46: RansEx | C46: 190 | D46: Ohm | E46: - line parameters of Ex-Line need not be specified,
A47: Ex-transformer current ratio | B47: ConvIEx | C47: 1.25 | E47: worst case values are considered (50 Ohm, 82nF)
A48: Ex-transformer voltage ratio | B48: ConvUEx | C48: 1.25 | E48: - max. line resistance before FDCL221-Ex is 190 Ohm
A49: Ex-voltagedrop_trafo | B49: VdropEx | C49: 1.4 | D49: V | E49: - up to 2 FDCL221-Ex per Loop are possible, only 1 on a stub
A50: Capacitive Load FDCL221-Ex | B50: C_FDCL | C50: 200 | D50: nF | E50: - FDCL221-Ex adds 200nF capacitive load to the line
A51: Upper Limit for minimal FDCL221-Ex input voltage | B51: V_FDCL_ul | C51: 19 | D51: V | E51: - FDCL221-Ex minimum input voltage must be below 19V (output clamp)
A52: Max. number of detectors in Alarm on one FDCL221-Ex | B52: N_AI_Ex | C52: 3 | E52: - 10% of allowed devices on a stub; accepted by PM for CN
A55: Formula for determination of minimal Fdnet line voltage with a connected Fdnet Ex-stub:
E56: Vline_min may not be larger than V_FDCL_ul, otherwise
E57: the input is clipped if to avoid unsafe voltages at the Ex-line side
C364: TRUE
C366: TRUE
C372: 0
C373: 0
C422: TRUE

Sheet MS9I_Ref (hidden)
B1: Planning of MS9I detector line (one line card)
B3: Purpose:
B4: With the project planning of the detector lines the load of the line cards are verified. This results in the definite:
B5: - number of required line cards
B6: - number of loops and stubs
B7: - load of the line card in idle and alarm state
B9: Please consider:
B10: It is not possible to check all interactions of all options with each other. Restrictions in the use of options together are noted in the document 008843 "Planning" and 008851 "Installation".
B12: yellow fields | C12: Must be filled in by the user
B13: orange fields | C13: Shows an input data error. These fields must be filled in by the user
B15: green fields | C15: Calculated value, configuration valid. Field must not be changed by the user.
B16: red fields | C16: Calculated value, configuration invalid. Field must not be changed by the user.
B17: light green fields | C17: Calculated value, additional information for the user. Field must not be changed by the user.
A19: Line card (MS9i) FCL2003-A1
B21: Definitions:
B22: 1.) Lineindex loop ALK = 50 and lineindex stub ALK = 32 (connection capacity for one device line or stub)
B23: 2.) Loadindex AEK = loadfactor for one device (every device typ has another loadfactor)
B24: 3.) Maximum lineload: total of AEK for one device line must be smaller than lineindex ALK
B26: General characteristic values:
B27: 1.) Max. cable resistor with 50 devices | C27: 50 Ohm (with 50 devices)
B28: 2.) Max. capacity per Loop or Stub | C28: 300 nF
B30: Procedure:
B31: 1.) Define the topology of the detector lines (loop or stub)
B32: 2.) Define amount of K5M010 on external supply
B33: 3.) Calculate loadfactors (ALK's) for every loop or stub (including K5M010 factors)
B34: --> For ALK definition click on pdf-symbole beside
B35: 4.) Define for K5M010 on external supply the line configuration (switch position)
B36: 5.) All data are now complete, the program calculates the load of the linecard in idle and alarm state
B38: Please consider:
B39: In alarm-state, a worst case of 3 devices per loop/stub are calculated on alarm
B40: For K5M010 on external supply, in alarm-state, a worst case of 1 stub for every K5M010 devices is calculated on alarm
C41: Current on LineDriver voltage (@24.9V) | G41: Current on station voltage (@24V)
B42: Max. current per line card MS9i | C42: 0.100 | D42: A | E42: (2 x 50mA @ 24.9V) | G42: =C42*24.9/(24*0.85) -> 0.122 | H42: A | I42: (@ 24V bei 85% Wirkungsgrad)
B43: Max. supply output for external MS9i devices | C43: 0.200 | D43: A | G43: =C43*24.9/(24*0.85) -> 0.244 | H43: A | I43: (@ 24V bei 85% Wirkungsgrad)
B44: 1 AEK is equivalent to 400uA +20% | G44: 0.000550 | H44: A | I44: (@ 24V)
B45: Alarm current offset (3 devices on alarm) | G45: 0.0150 | H45: A | I45: (@ 24V)
B46: Max. K5M010 on external supply | G46: 6 | H46: device
B47: Quiescent current K5M010 | G47: 0.0035 | H47: A | I47: (@ 24V)
B48: Alarm current offset K5M010 (one stub on alarm) | G48: 0.0100 | H48: A | I48: (@ 24V)
D50: Endglieder | F50: max AEK | I50: Amount on K5M010
C51: 1 | D51: loop | F51: 50 | H51: 1 | I51: 0
C52: 2 | D52: stub | F52: 32 | H52: 2 | I52: 1
H53: 3 | I53: 2
C54: loop/stub 1 | D54: 1 | H54: 4 | I54: 3
C55: loop/stub 2 | D55: 1 | H55: 5 | I55: 4
H56: 6 | I56: 5
H57: 7 | I57: 6
B59: Quiet current linecard UART without devices | C59: 0.040 | D59: A (@ 24V) | H59: Amount | I59: 1
B62: Line card (MS9i) FCL2003-A1 | C62: configuration | D62: ALK (loadfactor) | F62: quiescent current | H62: alarm current | J62: remarks
B63: Connection 1 (loop or stub) | D63: 0 | E63: (including K5M010) | F63: =$D63*$G$44 -> 0.000 | G63: A | H63: =IF(D63=0,0,F63+$G$45) -> 0.000 | I63: A
B64: Connection 2 (loop or stub) | D64: 0 | E64: (including K5M010) | F64: =$D64*$G$44 -> 0.000 | G64: A | H64: =IF(D64=0,0,F64+$G$45) -> 0.000 | I64: A
B65: K5M010 on external supply | D65: Switch position on K5M010
B66: Amount of K5M010 on external supply | D66: 0 | E66: all switch open | F66: =D67*$G$44*1+D68*$G$44*3+D69*$G$44*8+($I$59-1)*$G$47 -> 0.000 | G66: A | H66: =$F$66+($I$59-1)*$G$48 -> 0.000 | I66: A
B67: (max. 6 devices with 4 stubs per K5M010) | D67: 0 | E67: Sx1 switch closed
D68: 0 | E68: Sx2 switch closed
D69: 0 | E69: Sx3 switch closed
B71: Overall current (at panel by 24V) | F71: =C59+F66+SUM(F63:F64) -> 0.040 | G71: A | H71: =C59+H66+SUM(H63:H64) -> 0.040 | I71: A | J71: (@ 24V)

Sheet Collective_Ref (hidden)
B1: Planning of Collective detector line (one line card)
B3: Purpose:
B4: With the project planning of the detector lines the load of the line cards are verified. This results in the definite:
B5: - number of required line cards
B6: - number of stubs
B7: - load of the line card in idle and alarm state
B9: Please consider:
B10: It is not possible to check all interactions of all options with each other. Restrictions in the use of options together are noted in the document 008843 "Planning" and 008851 "Installation".
B12: yellow fields | C12: Must be filled in by the user
B13: orange fields | C13: Shows an input data error. These fields must be filled in by the user
B15: green fields | C15: Calculated value, configuration valid. Field must not be changed by the user.
B16: red fields | C16: Calculated value, configuration invalid. Field must not be changed by the user.
B17: light green fields | C17: Calculated value, additional information for the user. Field must not be changed by the user.
A19: Line card (collective) FCL2002-A1
B21: Definitions:
B22: 1.) Sourceindex KLK = 32 (connection capacity for one device line)
B23: 2.) Loadindex KMK = loadfactor for one device (every device typ has another loadfactor)
B24: 3.) Maximum lineload: Total of KMK for one device line must be smaller than sourceindex KLK (32)
B26: General characteristic values:
B27: 1.) Max. cable resistor per stub | C27: 150 Ohm (Transzorb diode), 250 Ohm (EOL22(Ex), 3.3kOhm, 4.7kOhm)
B28: 2.) Max. cable capacity per stub | C28: 300 nF (for all line typs)
B30: Procedure:
B31: 1.) Define the end of line (EOF) for every stub
B32: 2.) All data are now complete, the program calculates the load of the line card in idle and alarm state
B34: Please consider:
B35: As a simplification, the calculations are carried out always with a KLK of 32
B36: The influence of the KLK's on the calculations are slight.
D38: Current on LineDriver Voltage (@30V) | G38: Current on Station Voltage (@24V)
B39: Max. Current per Collective Line Card | D39: 0.610 | E39: A (8 x 75mA @ 30V) | G39: =D39*30/(24*0.85) -> 0.897 | H39: A | I39: (@ 24V bei 85% Wirkungsgrad)
B40: Max. Quellen-Kennzahl KLK per stub | D40: 32
B41: 1 KMK is equivalent to 100uA +/- 50% | D41: 0.00015 | E41: A (@ 30V) | G41: =D41*30/(24*0.85) -> 0.00022 | H41: A | I41: (@ 24V bei 85% Wirkungsgrad)
B42: Max. devices | D42: 256
B44: No grey zone transzorb (20V): quiet current | C44: KLK kein Einfluss | D44: =0.0072+10/1280*0.0136 -> 0.0073 | E44: A (@ 30V) | F44: =D44*30/(24*0.85) -> 0.0107 | G44: A (@ 24V bei 85%) | I44: =F44*1.1 -> 0.0118 | J44: A (@ 24V mit 10% Reserve)
B45: No grey zone transzorb (20V): alarm current | D45: =0.0072+160/1280*0.0627 -> 0.0150 | E45: A (@ 30V) | F45: 0.0221 | G45: A (@ 24V bei 85%) | I45: 0.0243 | J45: A (@ 24V mit 10% Reserve)
B46: No grey zone / EOL22(EX): quiet current | C46: KLK kein Einfluss | D46: =0.0046+10/1280*0.0136 -> 0.0047 | E46: A (@ 30V) | F46: 0.0069 | G46: A (@ 24V bei 85%) | I46: 0.0076 | J46: A (@ 24V mit 10% Reserve)
B47: No grey zone / EOL22(EX): alarm current | D47: =0.0046+160/1280*0.0627 -> 0.0124 | E47: A (@ 30V) | F47: 0.0183 | G47: A (@ 24V bei 85%) | I47: 0.0201 | J47: A (@ 24V mit 10% Reserve)
B48: Grey zone / 3.3 kOhm: quiet current | C48: 32 | D48: =0.007+(C48*$D$41) -> 0.0118 | E48: A (@ 30V) | F48: 0.0174 | G48: A (@ 24V bei 85%) | I48: 0.0191 | J48: A (@ 24V mit 10% Reserve)
B49: Grey zone / 3.3 kOhm: alarm current | D49: =0.0118+160/1280*0.052 -> 0.0183 | E49: A (@ 30V) | F49: 0.0269 | G49: A (@ 24V bei 85%) | I49: 0.0296 | J49: A (@ 24V mit 10% Reserve)
B50: Grey zone / 4.7 kOhm: quiet current | C50: 32 | D50: =0.007+(C50*$D$41) -> 0.0118 | E50: A (@ 30V) | F50: 0.0174 | G50: A (@ 24V bei 85%) | I50: 0.0191 | J50: A (@ 24V mit 10% Reserve)
B51: Grey zone / 4.7 kOhm: alarm current | D51: =0.0118+160/1280*0.052 -> 0.0183 | E51: A (@ 30V) | F51: 0.0269 | G51: A (@ 24V bei 85%) | I51: 0.0296 | J51: A (@ 24V mit 10% Reserve)
D53: Endglieder | F53: Quiet current | H53: Alarm current
C54: 1 | D54: no devices | F54: 0.0000 | G54: A | H54: 0.0000 | I54: A
C55: 2 | D55: no grey zone / transzorb (20V) | F55: =I44 -> 0.0118 | G55: A | H55: =I45 -> 0.0243 | I55: A
C56: 3 | D56: no grey zone / EOL22(EX) | F56: =I46 -> 0.0076 | G56: A | H56: =I47 -> 0.0201 | I56: A
C57: 4 | D57: grey zone / 3.3 kOhm | F57: =I48 -> 0.0191 | G57: A | H57: =I49 -> 0.0296 | I57: A
C58: 5 | D58: grey zone / 4.7 kOhm | F58: =I50 -> 0.0191 | G58: A | H58: =I51 -> 0.0296 | I58: A
C60: stub 1 | D60: 1
C61: stub 2 | D61: 1
C62: stub 3 | D62: 1
C63: stub 4 | D63: 1
C64: stub 5 | D64: 1
C65: stub 6 | D65: 1
C66: stub 7 | D66: 1
C67: stub 8 | D67: 1
B70: Quiet current linecard UART without devices | D70: 0.085 | E70: A (@ 24V)
B73: Line card (collective) FCL2002-A1 | D73: end of line (EOL) | F73: quiescent current | H73: alarm current | J73: remarks
B74: Stub 1 | F74: =VLOOKUP(D60,$C$54:$I$58,4,TRUE) -> 0.000 | G74: A | H74: =VLOOKUP(D60,$C$54:$I$58,6,TRUE) -> 0.000 | I74: A
B75: Stub 2 | F75: 0.000 | G75: A | H75: 0.000 | I75: A
B76: Stub 3 | F76: 0.000 | G76: A | H76: 0.000 | I76: A
B77: Stub 4 | F77: 0.000 | G77: A | H77: 0.000 | I77: A
B78: Stub 5 | F78: 0.000 | G78: A | H78: 0.000 | I78: A
B79: Stub 6 | F79: 0.000 | G79: A | H79: 0.000 | I79: A
B80: Stub 7 | F80: 0.000 | G80: A | H80: 0.000 | I80: A
B81: Stub 8 | F81: 0.000 | G81: A | H81: =VLOOKUP(D67,$C$54:$I$58,6,TRUE) -> 0.000 | I81: A
B83: Overall current (at panel by 24V) | F83: =SUM(F74:F81)+$D$70 -> 0.085 | G83: A | H83: =SUM(H74:H81)+$D$70 -> 0.085 | I83: A | J83: (@ 24V)

Sheet AnalogPLUS_Ref (hidden)
B1: Planning of SynoLOOP detector lines (one line card or one module)
B3: Purpose:
B4: With the project planning of the detector line the load of the line card is verified. This results in the definite:
B5: - number and type of devices per detector line
B6: - number of required line cards
B7: - number of loops and stubs
B8: - load of the panel in idle and alarm state
B10: Procedure:
B11: 1.) Define the types and positions of the detector line devices in the building
B12: 2.) Define the topology of the detector lines
B13: 3.) Enter the number of devices per loop / stub in the device population table
B14: --> SynoLOOP connection factors (APLK) for all loops / stubs are definite
B15: --> The program calculates the maximal possible line resistor and capacity (see cabling fields, marked red or green)
B16: 4.) Define the cable length according to the building plan (enter values at cable characteristics fields)
B17: Warning: length for resistor- or capacity calculation must be calculated independent according to document A6V10210362
B18: 5.) Enter cable parameters (row 121 and 122)
B19: 6.) All data are now complete, the program calculates the configuration.
B20: --> If all analysis are "green", configuration is valid
B24: Please consider:
B28: yellow fields | C28: Must be filled in by the user
B29: orange fields | C29: Shows an input data error. These fields must be filled in by the user
B31: green fields | C31: Calculated value, configuration valid. Field must not be changed by the user.
B32: red fields | C32: Calculated value, configuration invalid. Field must not be changed by the user.
B33: light green fields | C33: Calculated value, additional information for the user. Field must not be changed by the user.
A35: Input number of devices
B37: Help values
B39: Reference Name for calculation sheet
B40: AnalogPLUS_Calc_Ref
B43: Device Population | C43: ="Line card (SynoLOOP) FCL7201-Z3" -> Line card (SynoLOOP) FCL7201-Z3
C45: Loop1 / Stub1 | E45: Loop2 / Stub2 | G45: Loop3 / Stub3 | I45: Loop4 / Stub4
B46: Point detectors
B47: DO1131 - Smoke detector | C47: 0 | D47: Stk. | E47: 0 | F47: Stk. | G47: 0 | H47: Stk. | I47: 0 | J47: Stk.
B48: DO1133 - Smoke detector | C48: 0 | D48: Stk. | E48: 0 | F48: Stk. | G48: 0 | H48: Stk. | I48: 0 | J48: Stk.
B49: DOT1131 - Smoke detector | C49: 0 | D49: Stk. | E49: 0 | F49: Stk. | G49: 0 | H49: Stk. | I49: 0 | J49: Stk.
B50: DT113x - Heat detector | C50: 0 | D50: Stk. | E50: 0 | F50: Stk. | G50: 0 | H50: Stk. | I50: 0 | J50: Stk.
B51: OP320A/OP620A - Optical smoke | C51: 0 | D51: Stk. | E51: 0 | F51: Stk. | G51: 0 | H51: Stk. | I51: 0 | J51: Stk.
B52: HI32xA/HI62xA - Heat detector | C52: 0 | D52: Stk. | E52: 0 | F52: Stk. | G52: 0 | H52: Stk. | I52: 0 | J52: Stk.
B53: OH320A/OH62xA - Optical heat detector | C53: 0 | D53: Stk. | E53: 0 | F53: Stk. | G53: 0 | H53: Stk. | I53: 0 | J53: Stk.
C54: 0 | D54: Stk. | E54: 0 | F54: Stk. | G54: 0 | H54: Stk. | I54: 0 | J54: Stk.
C55: 0 | D55: Stk. | E55: 0 | F55: Stk. | G55: 0 | H55: Stk. | I55: 0 | J55: Stk.
B56: Special detectors
B57: DF1191/DC1192 - Infrared flame detector | C57: 0 | D57: Stk. | E57: 0 | F57: Stk. | G57: 0 | H57: Stk. | I57: 0 | J57: Stk.
C58: 0 | D58: Stk. | E58: 0 | F58: Stk. | G58: 0 | H58: Stk. | I58: 0 | J58: Stk.
C59: 0 | D59: Stk. | E59: 0 | F59: Stk. | G59: 0 | H59: Stk. | I59: 0 | J59: Stk.
C60: 0 | D60: Stk. | E60: 0 | F60: Stk. | G60: 0 | H60: Stk. | I60: 0 | J60: Stk.
B61: Manual call points
B62: DM113x - Manual call points | C62: 0 | D62: Stk. | E62: 0 | F62: Stk. | G62: 0 | H62: Stk. | I62: 0 | J62: Stk.
B63: MT320A/624A - Manual call point | C63: 0 | D63: Stk. | E63: 0 | F63: Stk. | G63: 0 | H63: Stk. | I63: 0 | J63: Stk.
C64: 0 | D64: Stk. | E64: 0 | F64: Stk. | G64: 0 | H64: Stk. | I64: 0 | J64: Stk.
C65: 0 | D65: Stk. | E65: 0 | F65: Stk. | G65: 0 | H65: Stk. | I65: 0 | J65: Stk.
B66: Line modules
B67: DC1131 - Input module (1I) | C67: 0 | D67: Stk. | E67: 0 | F67: Stk. | G67: 0 | H67: Stk. | I67: 0 | J67: Stk.
B68: DC1134 - Output module (1O) | C68: 0 | D68: Stk. | E68: 0 | F68: Stk. | G68: 0 | H68: Stk. | I68: 0 | J68: Stk.
B69: DC1136 - In/Output module (1I&1O) | C69: 0 | D69: Stk. | E69: 0 | F69: Stk. | G69: 0 | H69: Stk. | I69: 0 | J69: Stk.
B70: DC1192c - 1 Collective Input (CB319A) | C70: 0 | D70: Stk. | E70: 0 | F70: Stk. | G70: 0 | H70: Stk. | I70: 0 | J70: Stk.
B71: DC1192h - 1 Horn Output | C71: 0 | D71: Stk. | E71: 0 | F71: Stk. | G71: 0 | H71: Stk. | I71: 0 | J71: Stk.
B72: CB320A - Input device SinoLINE300 (collective) | C72: 0 | D72: Stk. | E72: 0 | F72: Stk. | G72: 0 | H72: Stk. | I72: 0 | J72: Stk.
C73: 0 | D73: Stk. | E73: 0 | F73: Stk. | G73: 0 | H73: Stk. | I73: 0 | J73: Stk.
B74: Integrated modules
C75: 0 | D75: Stk. | E75: 0 | F75: Stk. | G75: 0 | H75: Stk. | I75: 0 | J75: Stk.
C76: 0 | D76: Stk. | E76: 0 | F76: Stk. | G76: 0 | H76: Stk. | I76: 0 | J76: Stk.
C77: 0 | D77: Stk. | E77: 0 | F77: Stk. | G77: 0 | H77: Stk. | I77: 0 | J77: Stk.
C78: 0 | D78: Stk. | E78: 0 | F78: Stk. | G78: 0 | H78: Stk. | I78: 0 | J78: Stk.
B79: Alarm devices
C80: 0 | D80: Stk. | E80: 0 | F80: Stk. | G80: 0 | H80: Stk. | I80: 0 | J80: Stk.
C81: 0 | D81: Stk. | E81: 0 | F81: Stk. | G81: 0 | H81: Stk. | I81: 0 | J81: Stk.
C82: 0 | D82: Stk. | E82: 0 | F82: Stk. | G82: 0 | H82: Stk. | I82: 0 | J82: Stk.
C83: 0 | D83: Stk. | E83: 0 | F83: Stk. | G83: 0 | H83: Stk. | I83: 0 | J83: Stk.
C84: 0 | D84: Stk. | E84: 0 | F84: Stk. | G84: 0 | H84: Stk. | I84: 0 | J84: Stk.
C85: 0 | D85: Stk. | E85: 0 | F85: Stk. | G85: 0 | H85: Stk. | I85: 0 | J85: Stk.
B86: External AI-Control
C87: 0 | D87: Stk. | E87: 0 | F87: Stk. | G87: 0 | H87: Stk. | I87: 0 | J87: Stk.
C88: 0 | D88: Stk. | E88: 0 | F88: Stk. | G88: 0 | H88: Stk. | I88: 0 | J88: Stk.
C89: 0 | D89: Stk. | E89: 0 | F89: Stk. | G89: 0 | H89: Stk. | I89: 0 | J89: Stk.
C90: 0 | D90: Stk. | E90: 0 | F90: Stk. | G90: 0 | H90: Stk. | I90: 0 | J90: Stk.
B91: Operation and indication devices
C92: 0 | D92: Stk. | E92: 0 | F92: Stk. | G92: 0 | H92: Stk. | I92: 0 | J92: Stk.
C93: 0 | D93: Stk. | E93: 0 | F93: Stk. | G93: 0 | H93: Stk. | I93: 0 | J93: Stk.
C94: 0 | D94: Stk. | E94: 0 | F94: Stk. | G94: 0 | H94: Stk. | I94: 0 | J94: Stk.
C95: 0 | D95: Stk. | E95: 0 | F95: Stk. | G95: 0 | H95: Stk. | I95: 0 | J95: Stk.
C96: 0 | D96: Stk. | E96: 0 | F96: Stk. | G96: 0 | H96: Stk. | I96: 0 | J96: Stk.
C97: 0 | D97: Stk. | E97: 0 | F97: Stk. | G97: 0 | H97: Stk. | I97: 0 | J97: Stk.
C98: 0 | D98: Stk. | E98: 0 | F98: Stk. | G98: 0 | H98: Stk. | I98: 0 | J98: Stk.
C99: 0 | D99: Stk. | E99: 0 | F99: Stk. | G99: 0 | H99: Stk. | I99: 0 | J99: Stk.
C100: 0 | D100: Stk. | E100: 0 | F100: Stk. | G100: 0 | H100: Stk. | I100: 0 | J100: Stk.
B102: Reserve for new devices
B103: !! Do not fill in new lines !!
B104: !! Problem with indirect links !!
A115: Input cable characteristics
B117: Cable characteristics | C117: =C43 -> Line card (SynoLOOP) FCL7201-Z3
C118: =C$45 -> Loop1 / Stub1 | E118: =E$45 -> Loop2 / Stub2 | G118: =G$45 -> Loop3 / Stub3 | I118: =I$45 -> Loop4 / Stub4
B119: Length for line resistor | C119: 1 | D119: m | E119: 1 | F119: m | G119: 1 | H119: m | I119: 1 | J119: m
B120: Length for line capacity | C120: 1 | D120: m | E120: 1 | F120: m | G120: 1 | H120: m | I120: 1 | J120: m
B121: Resistance value R' of cable | C121: 50 | D121: Ohm/km | E121: 50 | F121: Ohm/km | G121: 50 | H121: Ohm/km | I121: 50 | J121: Ohm/km
B122: Capacitance value Cs' of cable | C122: 70 | D122: nF/km | E122: 70 | F122: nF/km | G122: 70 | H122: nF/km | I122: 70 | J122: nF/km
B124: Help values
B125: Resistor cabling check (0 < length < max. length) | C125: =IF(AND(C119>=0,C119<=$C$131),1,0) -> 1 | E125: =IF(AND(E119>=0,E119<=$C$131),1,0) -> 1 | G125: =IF(AND(G119>=0,G119<=$C$131),1,0) -> 1 | I125: =IF(AND(I119>=0,I119<=$C$131),1,0) -> 1
B127: Cabling plausibility (length R < length C) | C127: =IF(C120>=C119,1,0) -> 1 | E127: =IF(E120>=E119,1,0) -> 1 | G127: =IF(G120>=G119,1,0) -> 1 | I127: =IF(I120>=I119,1,0) -> 1
B128: R' and Cs' plausibility (R' und Cs' > 0) | C128: =IF(AND(C121>0,C122>0),1,0) -> 1 | E128: =IF(AND(E121>0,E122>0),1,0) -> 1 | G128: =IF(AND(G121>0,G122>0),1,0) -> 1 | I128: =IF(AND(I121>0,I122>0),1,0) -> 1
B130: General characteristic values
B131: Maximum length for line resistor | C131: =MaxLengthR_AP -> 2000 | D131: m
C133: - Length for line resistor & definition R' see document A6V10210362
C134: - Length for line capacity & definition Cs' see document A6V10210362
A137: Analysis of configuration
B139: Device amount | C139: =C43 -> Line card (SynoLOOP) FCL7201-Z3
C140: =C$45 -> Loop1 / Stub1 | E140: =E$45 -> Loop2 / Stub2 | G140: =G$45 -> Loop3 / Stub3 | I140: =I$45 -> Loop4 / Stub4
B141: Adressindex (AK) per Loop / Stub | C141: =INDIRECT("'" & $B$40 & "'!F78") -> 0 | E141: =INDIRECT("'" & $B$40 & "'!G78") -> 0 | G141: =INDIRECT("'" & $B$40 & "'!H78") -> 0 | I141: =INDIRECT("'" & $B$40 & "'!I78") -> 0
B142: Total Adressindex (AK) per Line Card | C142: =SUM(C$141:J$141) -> 0
B144: Quietindex (RK) per Loop / Stub | C144: =INDIRECT("'" & $B$40 & "'!F75") -> 0 | E144: =INDIRECT("'" & $B$40 & "'!G75") -> 0 | G144: =INDIRECT("'" & $B$40 & "'!H75") -> 0 | I144: =INDIRECT("'" & $B$40 & "'!I75") -> 0
B147: Maximum Deviceindex per Loop/Stub | C147: =INDIRECT("'"&$B$40&"'!C144") -> 167 | E147: =INDIRECT("'"&$B$40&"'!C144") -> 167 | G147: =INDIRECT("'"&$B$40&"'!C144") -> 167 | I147: =INDIRECT("'"&$B$40&"'!C144") -> 167
B149: Current consumption (at panel by 24V) | C149: =INDIRECT("'" & $B$40 & "'!C158") -> 0.047 A
B152: Help values
B153: Configuration value | C153: =IF(C$145>=1,1,"") ->  | E153: =IF(E$145>=1,1,"") ->  | G153: =IF(G$145>=1,1,"") ->  | I153: =IF(I$145>=1,1,"") -> 
B154: Leak current | C154: =IF(C153=1,Ileak_AP,"") ->  | E154: =IF(E153=1,Ileak_AP,"") ->  | G154: =IF(G153=1,Ileak_AP,"") ->  | I154: =IF(I153=1,Ileak_AP,"") -> 
B155: Stub / Loop configuration valid (AK) | C155: =IF(C141<=$C$162,1,0) -> 1 | E155: =IF(E141<=$C$162,1,0) -> 1 | G155: =IF(G141<=$C$162,1,0) -> 1 | I155: =IF(I141<=$C$162,1,0) -> 1
B156: Stub / Loop configuration valid (RK) | C156: =IF(C144<=$C$164,1,0) -> 1 | E156: =IF(E144<=$C$164,1,0) -> 1 | G156: =IF(G144<=$C$164,1,0) -> 1 | I156: =IF(I144<=$C$164,1,0) -> 1
B158: Resistor load check | C158: =IF(C171<=C170,1,0) -> 1 | E158: =IF(E171<=E170,1,0) -> 1 | G158: =IF(G171<=G170,1,0) -> 1 | I158: =IF(I171<=I170,1,0) -> 1
B159: Capacity load check | C159: =IF(C173<=C172,1,0) -> 1 | E159: =IF(E173<=E172,1,0) -> 1 | G159: =IF(G173<=G172,1,0) -> 1 | I159: =IF(I173<=I172,1,0) -> 1
B160: General characteristic values
B161: Maximum current at station | C161: =ImaxStation_AP -> 0.883 | D161: A
B162: Maximum Adressindex per Loop / Stub: | C162: =MaxAKLoop_AP -> 128 | D162: Devices
B163: Maximum Adressindex per Line Card: | C163: =MaxAKModule_AP -> 512 | D163: Devices
B164: Deviceindex (MK) reserve per Line Card: | C164: =INDIRECT("'" & $B$40 & "'!C144") -> 167 | D164: Loadfact.
B166: Cabling | C166: =C43 -> Line card (SynoLOOP) FCL7201-Z3
C167: =C$45 -> Loop1 / Stub1 | E167: =E$45 -> Loop2 / Stub2 | G167: =G$45 -> Loop3 / Stub3 | I167: =I$45 -> Loop4 / Stub4
B168: Maximum length for line resistor | C168: =INDIRECT("'" & $B$40 & "'!C99") -> 2,000 | D168: m | E168: =INDIRECT("'" & $B$40 & "'!C112") -> 2,000 | F168: m | G168: =INDIRECT("'" & $B$40 & "'!C125") -> 2,000 | H168: m | I168: =INDIRECT("'" & $B$40 & "'!C138") -> 2,000 | J168: m
B170: Maximum possible line resistor | C170: =INDIRECT("'" & $B$40 & "'!C96") -> 150.0 | D170: Ohm | E170: =INDIRECT("'" & $B$40 & "'!C109") -> 150.0 | F170: Ohm | G170: =INDIRECT("'" & $B$40 & "'!C122") -> 150.0 | H170: Ohm | I170: =INDIRECT("'" & $B$40 & "'!C135") -> 150.0 | J170: Ohm
B171: Resistor load of configuration | C171: =INDIRECT("'" & $B$40 & "'!C100") -> 0.1 | D171: Ohm | E171: =INDIRECT("'" & $B$40 & "'!C113") -> 0.1 | F171: Ohm | G171: =INDIRECT("'" & $B$40 & "'!C126") -> 0.1 | H171: Ohm | I171: =INDIRECT("'" & $B$40 & "'!C139") -> 0.1 | J171: Ohm
B172: Maximum possible line capacity | C172: =INDIRECT("'" & $B$40 & "'!I94") -> 600 | D172: nF | E172: =INDIRECT("'" & $B$40 & "'!I107") -> 600 | F172: nF | G172: =INDIRECT("'" & $B$40 & "'!I120") -> 600 | H172: nF | I172: =INDIRECT("'" & $B$40 & "'!I133") -> 600 | J172: nF
B173: Capacity load of configuration | C173: =INDIRECT("'" & $B$40 & "'!I100") -> 0.07 | D173: nF | E173: =INDIRECT("'" & $B$40 & "'!I113") -> 0.07 | F173: nF | G173: =INDIRECT("'" & $B$40 & "'!I126") -> 0.07 | H173: nF | I173: =INDIRECT("'" & $B$40 & "'!I139") -> 0.07 | J173: nF
I179: =IF(I180="JC","Configuration ok","Configuration false") -> Configuration ok
I180: =IF(AND(AND(C155,E155,G155,I155),AND(C156,E156,G156,I156),C142<=C163,AND(C158,E158,G158,I158),AND(C159,E159,G159,I159),AND(C125,E125,G125,I125,J125),AND(C127,E127,G127,I127),AND(C128,E128,G128,I128)),"JC","LD") -> JC
I188: =IF(I180="JC","Configuration ok","Configuration false") -> Configuration ok

Sheet AnalogPLUS_Calc_Ref (hidden)
A1: Abbreviations
A2: APAK: AnalogPLUS Adresskennzahl; Number of by the deviced used bus-adresses (including sub-adresses)
A3: APRK: AnalogPLUS Ruhestromkennzahl; average current of the device in idle state (in loadfactors). Necessary to calculate the emergency power
A4: APMK: AnalogPLUS Melderkennzahl; maximal average current of the device, normally in alarm state (in loadfactors), without internal or external AI
A5: APTK: AnalogPLUS Trennerkennzahl; separator connection factor: devices with separaor = 1, without separator = 0
A6: Loadfactor: 1 loadfactor equals 190uA
A8: changeable field
A9: data from input-output sheet
A10: calculation
F11: Loop1 | G11: Loop2 | H11: Loop3 | I11: Loop4 | J11: Loop1 | N11: Loop2 | R11: Loop3 | V11: Loop4
A12: Loop Device | B12: APRK (=APMK) | C12: APMK | D12: APTK | E12: APAK | F12: # Devices line 1_1 | G12: # Devices line 2_1 | H12: # Devices line 1_1 | I12: # Devices line 2_1 | J12: RK line 1_1 | K12: MK line 1_1 | L12: TK line 1_1 | M12: AK line 1_1 | N12: RK line 2_1 | O12: MK line 2_1 | P12: TK line 2_1 | Q12: AK line 2_1 | R12: RK line 1_1 | S12: MK line 1_1 | T12: TK line 1_1 | U12: AK line 1_1 | V12: RK line 2_1 | W12: MK line 2_1 | X12: TK line 2_1 | Y12: AK line 2_1
A13: Point detectors
A14: DO1131 - Smoke detector | B14: 1 | C14: 1 | D14: 1 | E14: 1 | F14: =INDIRECT("'" & $C$82 & "'!C47") -> 0 | G14: =INDIRECT("'" & $C$82 & "'!E47") -> 0 | H14: =INDIRECT("'" & $C$82 & "'!G47") -> 0 | I14: =INDIRECT("'" & $C$82 & "'!I47") -> 0 | J14: =$F14*B14 -> 0 | K14: =$F14*C14 -> 0 | L14: =$F14*D14 -> 0 | M14: =$F14*E14 -> 0 | N14: =$G14*B14 -> 0 | O14: =$G14*C14 -> 0 | P14: =$G14*D14 -> 0 | Q14: =$G14*E14 -> 0 | R14: =$H14*B14 -> 0 | S14: =$H14*C14 -> 0 | T14: =$H14*D14 -> 0 | U14: =$H14*E14 -> 0 | V14: =$I14*B14 -> 0 | W14: =$I14*C14 -> 0 | X14: =$I14*D14 -> 0 | Y14: =$I14*E14 -> 0
A15: DO1133 - Smoke detector | B15: 1 | C15: 1 | D15: 1 | E15: 1 | F15: =INDIRECT("'" & $C$82 & "'!C48") -> 0 | G15: =INDIRECT("'" & $C$82 & "'!E48") -> 0 | H15: =INDIRECT("'" & $C$82 & "'!G48") -> 0 | I15: =INDIRECT("'" & $C$82 & "'!I48") -> 0 | J15: 0 | K15: 0 | L15: 0 | M15: 0 | N15: 0 | O15: 0 | P15: 0 | Q15: 0 | R15: 0 | S15: 0 | T15: 0 | U15: 0 | V15: 0 | W15: 0 | X15: 0 | Y15: 0
A16: DOT1131 - Smoke detector | B16: 1 | C16: 1 | D16: 1 | E16: 1 | F16: =INDIRECT("'" & $C$82 & "'!C49") -> 0 | G16: =INDIRECT("'" & $C$82 & "'!E49") -> 0 | H16: =INDIRECT("'" & $C$82 & "'!G49") -> 0 | I16: =INDIRECT("'" & $C$82 & "'!I49") -> 0 | J16: 0 | K16: 0 | L16: 0 | M16: 0 | N16: 0 | O16: 0 | P16: 0 | Q16: 0 | R16: 0 | S16: 0 | T16: 0 | U16: 0 | V16: 0 | W16: 0 | X16: 0 | Y16: 0
A17: DT113x - Heat detector | B17: 1 | C17: 1 | D17: 1 | E17: 1 | F17: =INDIRECT("'" & $C$82 & "'!C50") -> 0 | G17: =INDIRECT("'" & $C$82 & "'!E50") -> 0 | H17: =INDIRECT("'" & $C$82 & "'!G50") -> 0 | I17: =INDIRECT("'" & $C$82 & "'!I50") -> 0 | J17: 0 | K17: 0 | L17: 0 | M17: 0 | N17: 0 | O17: 0 | P17: 0 | Q17: 0 | R17: 0 | S17: 0 | T17: 0 | U17: 0 | V17: 0 | W17: 0 | X17: 0 | Y17: 0
A18: OP320A/OP620A - Optical smoke | B18: 1 | C18: 1 | D18: 1 | E18: 1 | F18: =INDIRECT("'" & $C$82 & "'!C51") -> 0 | G18: =INDIRECT("'" & $C$82 & "'!E51") -> 0 | H18: =INDIRECT("'" & $C$82 & "'!G51") -> 0 | I18: =INDIRECT("'" & $C$82 & "'!I51") -> 0 | J18: 0 | K18: 0 | L18: 0 | M18: 0 | N18: 0 | O18: 0 | P18: 0 | Q18: 0 | R18: 0 | S18: 0 | T18: 0 | U18: 0 | V18: 0 | W18: 0 | X18: 0 | Y18: 0
A19: HI32xA/HI62xA - Heat detector | B19: 1 | C19: 1 | D19: 1 | E19: 1 | F19: =INDIRECT("'" & $C$82 & "'!C52") -> 0 | G19: =INDIRECT("'" & $C$82 & "'!E52") -> 0 | H19: =INDIRECT("'" & $C$82 & "'!G52") -> 0 | I19: =INDIRECT("'" & $C$82 & "'!I52") -> 0 | J19: 0 | K19: 0 | L19: 0 | M19: 0 | N19: 0 | O19: 0 | P19: 0 | Q19: 0 | R19: 0 | S19: 0 | T19: 0 | U19: 0 | V19: 0 | W19: 0 | X19: 0 | Y19: 0
A20: OH320A/OH62xA - Optical heat detector | B20: 1 | C20: 1 | D20: 1 | E20: 1 | F20: =INDIRECT("'" & $C$82 & "'!C53") -> 0 | G20: =INDIRECT("'" & $C$82 & "'!E53") -> 0 | H20: =INDIRECT("'" & $C$82 & "'!G53") -> 0 | I20: =INDIRECT("'" & $C$82 & "'!I53") -> 0 | J20: 0 | K20: 0 | L20: 0 | M20: 0 | N20: 0 | O20: 0 | P20: 0 | Q20: 0 | R20: 0 | S20: 0 | T20: 0 | U20: 0 | V20: 0 | W20: 0 | X20: 0 | Y20: 0
B21: 0 | C21: 0 | D21: 0 | E21: 0 | F21: =INDIRECT("'" & $C$82 & "'!C54") -> 0 | G21: =INDIRECT("'" & $C$82 & "'!E54") -> 0 | H21: =INDIRECT("'" & $C$82 & "'!G54") -> 0 | I21: =INDIRECT("'" & $C$82 & "'!I54") -> 0 | J21: 0 | K21: 0 | L21: 0 | M21: 0 | N21: 0 | O21: 0 | P21: 0 | Q21: 0 | R21: 0 | S21: 0 | T21: 0 | U21: 0 | V21: 0 | W21: 0 | X21: 0 | Y21: 0
B22: 0 | C22: 0 | D22: 0 | E22: 0 | F22: =INDIRECT("'" & $C$82 & "'!C55") -> 0 | G22: =INDIRECT("'" & $C$82 & "'!E55") -> 0 | H22: =INDIRECT("'" & $C$82 & "'!G55") -> 0 | I22: =INDIRECT("'" & $C$82 & "'!I55") -> 0 | J22: 0 | K22: 0 | L22: 0 | M22: 0 | N22: 0 | O22: 0 | P22: 0 | Q22: 0 | R22: 0 | S22: 0 | T22: 0 | U22: 0 | V22: 0 | W22: 0 | X22: 0 | Y22: 0
A23: Special detectors
A24: DF1191/DC1192 - Infrared flame detector | B24: 5 | C24: 5 | D24: 1 | E24: 1 | F24: =INDIRECT("'" & $C$82 & "'!C57") -> 0 | G24: =INDIRECT("'" & $C$82 & "'!E57") -> 0 | H24: =INDIRECT("'" & $C$82 & "'!G57") -> 0 | I24: =INDIRECT("'" & $C$82 & "'!I57") -> 0 | J24: =$F24*B24 -> 0 | K24: 0 | L24: 0 | M24: 0 | N24: =$G24*B24 -> 0 | O24: 0 | P24: 0 | Q24: 0 | R24: =$H24*B24 -> 0 | S24: 0 | T24: 0 | U24: 0 | V24: =$I24*B24 -> 0 | W24: 0 | X24: 0 | Y24: 0
B25: 0 | C25: 0 | D25: 0 | E25: 0 | F25: =INDIRECT("'" & $C$82 & "'!C58") -> 0 | G25: =INDIRECT("'" & $C$82 & "'!E58") -> 0 | H25: =INDIRECT("'" & $C$82 & "'!G58") -> 0 | I25: =INDIRECT("'" & $C$82 & "'!I58") -> 0 | J25: 0 | K25: 0 | L25: 0 | M25: 0 | N25: 0 | O25: 0 | P25: 0 | Q25: 0 | R25: 0 | S25: 0 | T25: 0 | U25: 0 | V25: 0 | W25: 0 | X25: 0 | Y25: 0
B26: 0 | C26: 0 | D26: 0 | E26: 0 | F26: =INDIRECT("'" & $C$82 & "'!C59") -> 0 | G26: =INDIRECT("'" & $C$82 & "'!E59") -> 0 | H26: =INDIRECT("'" & $C$82 & "'!G59") -> 0 | I26: =INDIRECT("'" & $C$82 & "'!I59") -> 0 | J26: 0 | K26: 0 | L26: 0 | M26: 0 | N26: 0 | O26: 0 | P26: 0 | Q26: 0 | R26: 0 | S26: 0 | T26: 0 | U26: 0 | V26: 0 | W26: 0 | X26: 0 | Y26: 0
B27: 0 | C27: 0 | D27: 0 | E27: 0 | F27: =INDIRECT("'" & $C$82 & "'!C60") -> 0 | G27: =INDIRECT("'" & $C$82 & "'!E60") -> 0 | H27: =INDIRECT("'" & $C$82 & "'!G60") -> 0 | I27: =INDIRECT("'" & $C$82 & "'!I60") -> 0 | J27: 0 | K27: 0 | L27: 0 | M27: 0 | N27: 0 | O27: 0 | P27: 0 | Q27: 0 | R27: 0 | S27: 0 | T27: 0 | U27: 0 | V27: 0 | W27: 0 | X27: 0 | Y27: 0
A28: Manual call points
A29: DM113x - Manual call points | B29: 1 | C29: 1 | D29: 1 | E29: 1 | F29: =INDIRECT("'" & $C$82 & "'!C62") -> 0 | G29: =INDIRECT("'" & $C$82 & "'!E62") -> 0 | H29: =INDIRECT("'" & $C$82 & "'!G62") -> 0 | I29: =INDIRECT("'" & $C$82 & "'!I62") -> 0 | J29: =$F29*B29 -> 0 | K29: 0 | L29: 0 | M29: 0 | N29: =$G29*B29 -> 0 | O29: 0 | P29: 0 | Q29: 0 | R29: =$H29*B29 -> 0 | S29: 0 | T29: 0 | U29: 0 | V29: =$I29*B29 -> 0 | W29: 0 | X29: 0 | Y29: 0
A30: MT320A/624A - Manual call point | B30: 1 | C30: 1 | D30: 1 | E30: 1 | F30: =INDIRECT("'" & $C$82 & "'!C63") -> 0 | G30: =INDIRECT("'" & $C$82 & "'!E63") -> 0 | H30: =INDIRECT("'" & $C$82 & "'!G63") -> 0 | I30: =INDIRECT("'" & $C$82 & "'!I63") -> 0 | J30: 0 | K30: 0 | L30: 0 | M30: 0 | N30: 0 | O30: 0 | P30: 0 | Q30: 0 | R30: 0 | S30: 0 | T30: 0 | U30: 0 | V30: 0 | W30: 0 | X30: 0 | Y30: 0
B31: 0 | C31: 0 | D31: 0 | E31: 0 | F31: =INDIRECT("'" & $C$82 & "'!C64") -> 0 | G31: =INDIRECT("'" & $C$82 & "'!E64") -> 0 | H31: =INDIRECT("'" & $C$82 & "'!G64") -> 0 | I31: =INDIRECT("'" & $C$82 & "'!I64") -> 0 | J31: 0 | K31: 0 | L31: 0 | M31: 0 | N31: 0 | O31: 0 | P31: 0 | Q31: 0 | R31: 0 | S31: 0 | T31: 0 | U31: 0 | V31: 0 | W31: 0 | X31: 0 | Y31: 0
B32: 0 | C32: 0 | D32: 0 | E32: 0 | F32: =INDIRECT("'" & $C$82 & "'!C65") -> 0 | G32: =INDIRECT("'" & $C$82 & "'!E65") -> 0 | H32: =INDIRECT("'" & $C$82 & "'!G65") -> 0 | I32: =INDIRECT("'" & $C$82 & "'!I65") -> 0 | J32: 0 | K32: 0 | L32: 0 | M32: 0 | N32: 0 | O32: 0 | P32: 0 | Q32: 0 | R32: 0 | S32: 0 | T32: 0 | U32: 0 | V32: 0 | W32: 0 | X32: 0 | Y32: 0
A33: Line modules
A34: DC1131 - Input module (1I) | B34: 1 | C34: 1 | D34: 1 | E34: 1 | F34: =INDIRECT("'" & $C$82 & "'!C67") -> 0 | G34: =INDIRECT("'" & $C$82 & "'!E67") -> 0 | H34: =INDIRECT("'" & $C$82 & "'!G67") -> 0 | I34: =INDIRECT("'" & $C$82 & "'!I67") -> 0 | J34: =$F34*B34 -> 0 | K34: =$F34*C34 -> 0 | L34: =$F34*D34 -> 0 | M34: =$F34*E34 -> 0 | N34: =$G34*B34 -> 0 | O34: =$G34*C34 -> 0 | P34: =$G34*D34 -> 0 | Q34: =$G34*E34 -> 0 | R34: =$H34*B34 -> 0 | S34: =$H34*C34 -> 0 | T34: =$H34*D34 -> 0 | U34: =$H34*E34 -> 0 | V34: =$I34*B34 -> 0 | W34: =$I34*C34 -> 0 | X34: =$I34*D34 -> 0 | Y34: =$I34*E34 -> 0
A35: DC1134 - Output module (1O) | B35: 2 | C35: 2 | D35: 1 | E35: 1 | F35: =INDIRECT("'" & $C$82 & "'!C68") -> 0 | G35: =INDIRECT("'" & $C$82 & "'!E68") -> 0 | H35: =INDIRECT("'" & $C$82 & "'!G68") -> 0 | I35: =INDIRECT("'" & $C$82 & "'!I68") -> 0 | J35: =$F35*B35 -> 0 | K35: =$F35*C35 -> 0 | L35: =$F35*D35 -> 0 | M35: =$F35*E35 -> 0 | N35: =$G35*B35 -> 0 | O35: =$G35*C35 -> 0 | P35: =$G35*D35 -> 0 | Q35: =$G35*E35 -> 0 | R35: =$H35*B35 -> 0 | S35: =$H35*C35 -> 0 | T35: =$H35*D35 -> 0 | U35: =$H35*E35 -> 0 | V35: =$I35*B35 -> 0 | W35: =$I35*C35 -> 0 | X35: =$I35*D35 -> 0 | Y35: =$I35*E35 -> 0
A36: DC1136 - In/Output module (1I&1O) | B36: 2 | C36: 2 | D36: 1 | E36: 2 | F36: =INDIRECT("'" & $C$82 & "'!C69") -> 0 | G36: =INDIRECT("'" & $C$82 & "'!E69") -> 0 | H36: =INDIRECT("'" & $C$82 & "'!G69") -> 0 | I36: =INDIRECT("'" & $C$82 & "'!I69") -> 0 | J36: 0 | K36: 0 | L36: 0 | M36: 0 | N36: 0 | O36: 0 | P36: 0 | Q36: 0 | R36: 0 | S36: 0 | T36: 0 | U36: 0 | V36: 0 | W36: 0 | X36: 0 | Y36: 0
A37: DC1192c - 1 Collective Input (CB319A) | B37: 3 | C37: 3 | D37: 1 | E37: 1 | F37: =INDIRECT("'" & $C$82 & "'!C70") -> 0 | G37: =INDIRECT("'" & $C$82 & "'!E70") -> 0 | H37: =INDIRECT("'" & $C$82 & "'!G70") -> 0 | I37: =INDIRECT("'" & $C$82 & "'!I70") -> 0 | J37: 0 | K37: 0 | L37: 0 | M37: 0 | N37: 0 | O37: 0 | P37: 0 | Q37: 0 | R37: 0 | S37: 0 | T37: 0 | U37: 0 | V37: 0 | W37: 0 | X37: 0 | Y37: 0
A38: DC1192h - 1 Horn Output | B38: 3 | C38: 3 | D38: 1 | E38: 1 | F38: =INDIRECT("'" & $C$82 & "'!C71") -> 0 | G38: =INDIRECT("'" & $C$82 & "'!E71") -> 0 | H38: =INDIRECT("'" & $C$82 & "'!G71") -> 0 | I38: =INDIRECT("'" & $C$82 & "'!I71") -> 0 | J38: 0 | K38: 0 | L38: 0 | M38: 0 | N38: 0 | O38: 0 | P38: 0 | Q38: 0 | R38: 0 | S38: 0 | T38: 0 | U38: 0 | V38: 0 | W38: 0 | X38: 0 | Y38: 0
A39: CB320A - Input device SinoLINE300 (collective) | B39: 3 | C39: 3 | D39: 1 | E39: 1 | F39: =INDIRECT("'" & $C$82 & "'!C72") -> 0 | G39: =INDIRECT("'" & $C$82 & "'!E72") -> 0 | H39: =INDIRECT("'" & $C$82 & "'!G72") -> 0 | I39: =INDIRECT("'" & $C$82 & "'!I72") -> 0 | J39: 0 | K39: 0 | L39: 0 | M39: 0 | N39: 0 | O39: =$G39*C39 -> 0 | P39: 0 | Q39: 0 | R39: 0 | S39: 0 | T39: 0 | U39: 0 | V39: 0 | W39: 0 | X39: 0 | Y39: 0
B40: 0 | C40: 0 | D40: 0 | E40: 0 | F40: =INDIRECT("'" & $C$82 & "'!C73") -> 0 | G40: =INDIRECT("'" & $C$82 & "'!E73") -> 0 | H40: =INDIRECT("'" & $C$82 & "'!G73") -> 0 | I40: =INDIRECT("'" & $C$82 & "'!I73") -> 0 | J40: 0 | K40: 0 | L40: 0 | M40: 0 | N40: 0 | O40: 0 | P40: 0 | Q40: 0 | R40: 0 | S40: 0 | T40: 0 | U40: 0 | V40: 0 | W40: 0 | X40: 0 | Y40: 0
A41: Integrated modules
B42: 0 | C42: 0 | D42: 0 | E42: 0 | F42: =INDIRECT("'" & $C$82 & "'!C75") -> 0 | G42: =INDIRECT("'" & $C$82 & "'!E75") -> 0 | H42: =INDIRECT("'" & $C$82 & "'!G75") -> 0 | I42: =INDIRECT("'" & $C$82 & "'!I75") -> 0 | J42: =$F42*B42 -> 0 | K42: 0 | L42: 0 | M42: 0 | N42: =$G42*B42 -> 0 | O42: 0 | P42: 0 | Q42: 0 | R42: =$H42*B42 -> 0 | S42: 0 | T42: 0 | U42: 0 | V42: =$I42*B42 -> 0 | W42: 0 | X42: 0 | Y42: 0
B43: 3 | C43: 0 | D43: 0 | E43: 0 | F43: =INDIRECT("'" & $C$82 & "'!C76") -> 0 | G43: =INDIRECT("'" & $C$82 & "'!E76") -> 0 | H43: =INDIRECT("'" & $C$82 & "'!G76") -> 0 | I43: =INDIRECT("'" & $C$82 & "'!I76") -> 0 | J43: 0 | K43: 0 | L43: 0 | M43: 0 | N43: 0 | O43: 0 | P43: 0 | Q43: 0 | R43: 0 | S43: 0 | T43: 0 | U43: 0 | V43: 0 | W43: 0 | X43: 0 | Y43: 0
B44: 0 | C44: 0 | D44: 0 | E44: 0 | F44: =INDIRECT("'" & $C$82 & "'!C77") -> 0 | G44: =INDIRECT("'" & $C$82 & "'!E77") -> 0 | H44: =INDIRECT("'" & $C$82 & "'!G77") -> 0 | I44: =INDIRECT("'" & $C$82 & "'!I77") -> 0 | J44: 0 | K44: 0 | L44: 0 | M44: 0 | N44: 0 | O44: 0 | P44: 0 | Q44: 0 | R44: 0 | S44: 0 | T44: 0 | U44: 0 | V44: 0 | W44: 0 | X44: 0 | Y44: 0
B45: 0 | C45: 0 | D45: 0 | E45: 0 | F45: =INDIRECT("'" & $C$82 & "'!C78") -> 0 | G45: =INDIRECT("'" & $C$82 & "'!E78") -> 0 | H45: =INDIRECT("'" & $C$82 & "'!G78") -> 0 | I45: =INDIRECT("'" & $C$82 & "'!I78") -> 0 | J45: 0 | K45: 0 | L45: 0 | M45: 0 | N45: 0 | O45: 0 | P45: 0 | Q45: 0 | R45: 0 | S45: 0 | T45: 0 | U45: 0 | V45: 0 | W45: 0 | X45: 0 | Y45: 0
A46: Alarm devices
B47: 0 | C47: 0 | D47: 0 | E47: 0 | F47: =INDIRECT("'" & $C$82 & "'!C80") -> 0 | G47: =INDIRECT("'" & $C$82 & "'!E80") -> 0 | H47: =INDIRECT("'" & $C$82 & "'!G80") -> 0 | I47: =INDIRECT("'" & $C$82 & "'!I80") -> 0 | J47: =$F47*B47 -> 0 | K47: 0 | L47: 0 | M47: 0 | N47: =$G47*B47 -> 0 | O47: 0 | P47: 0 | Q47: 0 | R47: =$H47*B47 -> 0 | S47: 0 | T47: 0 | U47: 0 | V47: =$I47*B47 -> 0 | W47: 0 | X47: 0 | Y47: 0
B48: 0 | C48: 0 | D48: 0 | E48: 0 | F48: =INDIRECT("'" & $C$82 & "'!C81") -> 0 | G48: =INDIRECT("'" & $C$82 & "'!E81") -> 0 | H48: =INDIRECT("'" & $C$82 & "'!G81") -> 0 | I48: =INDIRECT("'" & $C$82 & "'!I81") -> 0 | J48: 0 | K48: 0 | L48: 0 | M48: 0 | N48: 0 | O48: 0 | P48: 0 | Q48: 0 | R48: 0 | S48: 0 | T48: 0 | U48: 0 | V48: 0 | W48: 0 | X48: 0 | Y48: 0
B49: 0 | C49: 0 | D49: 0 | E49: 0 | F49: =INDIRECT("'" & $C$82 & "'!C82") -> 0 | G49: =INDIRECT("'" & $C$82 & "'!E82") -> 0 | H49: =INDIRECT("'" & $C$82 & "'!G82") -> 0 | I49: =INDIRECT("'" & $C$82 & "'!I82") -> 0 | J49: 0 | K49: 0 | L49: 0 | M49: 0 | N49: 0 | O49: 0 | P49: 0 | Q49: 0 | R49: 0 | S49: 0 | T49: 0 | U49: 0 | V49: 0 | W49: 0 | X49: 0 | Y49: 0
B50: 0 | C50: 0 | D50: 0 | E50: 0 | F50: =INDIRECT("'" & $C$82 & "'!C83") -> 0 | G50: =INDIRECT("'" & $C$82 & "'!E83") -> 0 | H50: =INDIRECT("'" & $C$82 & "'!G83") -> 0 | I50: =INDIRECT("'" & $C$82 & "'!I83") -> 0 | J50: 0 | K50: 0 | L50: 0 | M50: 0 | N50: 0 | O50: 0 | P50: 0 | Q50: 0 | R50: 0 | S50: 0 | T50: 0 | U50: 0 | V50: 0 | W50: 0 | X50: 0 | Y50: 0
B51: 0 | C51: 0 | D51: 0 | E51: 0 | F51: =INDIRECT("'" & $C$82 & "'!C84") -> 0 | G51: =INDIRECT("'" & $C$82 & "'!E84") -> 0 | H51: =INDIRECT("'" & $C$82 & "'!G84") -> 0 | I51: =INDIRECT("'" & $C$82 & "'!I84") -> 0 | J51: 0 | K51: 0 | L51: 0 | M51: 0 | N51: 0 | O51: 0 | P51: 0 | Q51: 0 | R51: 0 | S51: 0 | T51: 0 | U51: 0 | V51: 0 | W51: 0 | X51: 0 | Y51: 0
B52: 1 | C52: 0 | D52: 0 | E52: 0 | F52: =INDIRECT("'" & $C$82 & "'!C85") -> 0 | G52: =INDIRECT("'" & $C$82 & "'!E85") -> 0 | H52: =INDIRECT("'" & $C$82 & "'!G85") -> 0 | I52: =INDIRECT("'" & $C$82 & "'!I85") -> 0 | J52: 0 | K52: 0 | L52: 0 | M52: 0 | N52: 0 | O52: 0 | P52: 0 | Q52: 0 | R52: 0 | S52: 0 | T52: 0 | U52: 0 | V52: 0 | W52: 0 | X52: 0 | Y52: 0
A53: External AI-Control
B54: 0 | C54: 0 | D54: 0 | E54: 0 | F54: =INDIRECT("'" & $C$82 & "'!C87") -> 0 | G54: =INDIRECT("'" & $C$82 & "'!E87") -> 0 | H54: =INDIRECT("'" & $C$82 & "'!G87") -> 0 | I54: =INDIRECT("'" & $C$82 & "'!I87") -> 0 | J54: =$F54*B54 -> 0 | K54: 0 | L54: 0 | M54: 0 | N54: =$G54*B54 -> 0 | O54: 0 | P54: 0 | Q54: 0 | R54: =$H54*B54 -> 0 | S54: 0 | T54: 0 | U54: 0 | V54: =$I54*B54 -> 0 | W54: 0 | X54: 0 | Y54: 0
B55: 0 | C55: 0 | D55: 0 | E55: 0 | F55: =INDIRECT("'" & $C$82 & "'!C88") -> 0 | G55: =INDIRECT("'" & $C$82 & "'!E88") -> 0 | H55: =INDIRECT("'" & $C$82 & "'!G88") -> 0 | I55: =INDIRECT("'" & $C$82 & "'!I88") -> 0 | J55: 0 | K55: 0 | L55: 0 | M55: 0 | N55: 0 | O55: 0 | P55: 0 | Q55: 0 | R55: 0 | S55: 0 | T55: 0 | U55: 0 | V55: 0 | W55: 0 | X55: 0 | Y55: 0
B56: 0 | C56: 0 | D56: 0 | E56: 0 | F56: =INDIRECT("'" & $C$82 & "'!C89") -> 0 | G56: =INDIRECT("'" & $C$82 & "'!E89") -> 0 | H56: =INDIRECT("'" & $C$82 & "'!G89") -> 0 | I56: =INDIRECT("'" & $C$82 & "'!I89") -> 0 | J56: 0 | K56: 0 | L56: 0 | M56: 0 | N56: 0 | O56: 0 | P56: 0 | Q56: 0 | R56: 0 | S56: 0 | T56: 0 | U56: 0 | V56: 0 | W56: 0 | X56: 0 | Y56: 0
B57: 0 | C57: 0 | D57: 0 | E57: 0 | F57: =INDIRECT("'" & $C$82 & "'!C90") -> 0 | G57: =INDIRECT("'" & $C$82 & "'!E90") -> 0 | H57: =INDIRECT("'" & $C$82 & "'!G90") -> 0 | I57: =INDIRECT("'" & $C$82 & "'!I90") -> 0 | J57: 0 | K57: 0 | L57: 0 | M57: 0 | N57: 0 | O57: 0 | P57: 0 | Q57: 0 | R57: 0 | S57: 0 | T57: 0 | U57: 0 | V57: 0 | W57: 0 | X57: 0 | Y57: 0
A58: Operation and indication devices
B59: 0 | C59: 0 | D59: 0 | E59: 0 | F59: =INDIRECT("'" & $C$82 & "'!C92") -> 0 | G59: =INDIRECT("'" & $C$82 & "'!E92") -> 0 | H59: =INDIRECT("'" & $C$82 & "'!G92") -> 0 | I59: =INDIRECT("'" & $C$82 & "'!I92") -> 0 | J59: =$F59*B59 -> 0 | K59: =$F59*C59 -> 0 | L59: =$F59*D59 -> 0 | M59: =$F59*E59 -> 0 | N59: =$G59*B59 -> 0 | O59: =$G59*C59 -> 0 | P59: =$G59*D59 -> 0 | Q59: =$G59*E59 -> 0 | R59: =$H59*B59 -> 0 | S59: =$H59*C59 -> 0 | T59: =$H59*D59 -> 0 | U59: =$H59*E59 -> 0 | V59: =$I59*B59 -> 0 | W59: =$I59*C59 -> 0 | X59: =$I59*D59 -> 0 | Y59: =$I59*E59 -> 0
B60: 0 | C60: 0 | D60: 0 | E60: 0 | F60: =INDIRECT("'" & $C$82 & "'!C93") -> 0 | G60: =INDIRECT("'" & $C$82 & "'!E93") -> 0 | H60: =INDIRECT("'" & $C$82 & "'!G93") -> 0 | I60: =INDIRECT("'" & $C$82 & "'!I93") -> 0 | J60: 0 | K60: 0 | L60: 0 | M60: 0 | N60: 0 | O60: 0 | P60: 0 | Q60: 0 | R60: 0 | S60: 0 | T60: 0 | U60: 0 | V60: 0 | W60: 0 | X60: 0 | Y60: 0
B61: 0 | C61: 0 | D61: 0 | E61: 0 | F61: =INDIRECT("'" & $C$82 & "'!C94") -> 0 | G61: =INDIRECT("'" & $C$82 & "'!E94") -> 0 | H61: =INDIRECT("'" & $C$82 & "'!G94") -> 0 | I61: =INDIRECT("'" & $C$82 & "'!I94") -> 0 | J61: 0 | K61: 0 | L61: 0 | M61: 0 | N61: 0 | O61: 0 | P61: 0 | Q61: 0 | R61: 0 | S61: 0 | T61: 0 | U61: 0 | V61: 0 | W61: 0 | X61: 0 | Y61: 0
B62: 0 | C62: 0 | D62: 0 | E62: 0 | F62: =INDIRECT("'" & $C$82 & "'!C95") -> 0 | G62: =INDIRECT("'" & $C$82 & "'!E95") -> 0 | H62: =INDIRECT("'" & $C$82 & "'!G95") -> 0 | I62: =INDIRECT("'" & $C$82 & "'!I95") -> 0 | J62: 0 | K62: 0 | L62: 0 | M62: 0 | N62: 0 | O62: 0 | P62: 0 | Q62: 0 | R62: 0 | S62: 0 | T62: 0 | U62: 0 | V62: 0 | W62: 0 | X62: 0 | Y62: 0
B63: 0 | C63: 0 | D63: 0 | E63: 0 | F63: =INDIRECT("'" & $C$82 & "'!C96") -> 0 | G63: =INDIRECT("'" & $C$82 & "'!E96") -> 0 | H63: =INDIRECT("'" & $C$82 & "'!G96") -> 0 | I63: =INDIRECT("'" & $C$82 & "'!I96") -> 0 | J63: 0 | K63: 0 | L63: 0 | M63: 0 | N63: 0 | O63: 0 | P63: 0 | Q63: 0 | R63: 0 | S63: 0 | T63: 0 | U63: 0 | V63: 0 | W63: 0 | X63: 0 | Y63: 0
B64: 0 | C64: 0 | D64: 0 | E64: 0 | F64: =INDIRECT("'" & $C$82 & "'!C97") -> 0 | G64: =INDIRECT("'" & $C$82 & "'!E97") -> 0 | H64: =INDIRECT("'" & $C$82 & "'!G97") -> 0 | I64: =INDIRECT("'" & $C$82 & "'!I97") -> 0 | J64: 0 | K64: 0 | L64: 0 | M64: 0 | N64: 0 | O64: 0 | P64: 0 | Q64: 0 | R64: 0 | S64: 0 | T64: 0 | U64: 0 | V64: 0 | W64: 0 | X64: 0 | Y64: 0
B65: 0 | C65: 0 | D65: 0 | E65: 0 | F65: =INDIRECT("'" & $C$82 & "'!C98") -> 0 | G65: =INDIRECT("'" & $C$82 & "'!E98") -> 0 | H65: =INDIRECT("'" & $C$82 & "'!G98") -> 0 | I65: =INDIRECT("'" & $C$82 & "'!I98") -> 0 | J65: 0 | K65: 0 | L65: 0 | M65: 0 | N65: 0 | O65: 0 | P65: 0 | Q65: 0 | R65: 0 | S65: 0 | T65: 0 | U65: 0 | V65: 0 | W65: 0 | X65: 0 | Y65: 0
B66: 0 | C66: 0 | D66: 0 | E66: 0 | F66: =INDIRECT("'" & $C$82 & "'!C99") -> 0 | G66: =INDIRECT("'" & $C$82 & "'!E99") -> 0 | H66: =INDIRECT("'" & $C$82 & "'!G99") -> 0 | I66: =INDIRECT("'" & $C$82 & "'!I99") -> 0 | J66: 0 | K66: 0 | L66: 0 | M66: 0 | N66: 0 | O66: 0 | P66: 0 | Q66: 0 | R66: 0 | S66: 0 | T66: 0 | U66: 0 | V66: 0 | W66: 0 | X66: 0 | Y66: 0
B67: 0 | C67: 0 | D67: 0 | E67: 0 | F67: =INDIRECT("'" & $C$82 & "'!C100") -> 0 | G67: =INDIRECT("'" & $C$82 & "'!E100") -> 0 | H67: =INDIRECT("'" & $C$82 & "'!G100") -> 0 | I67: =INDIRECT("'" & $C$82 & "'!I100") -> 0 | J67: 0 | K67: 0 | L67: 0 | M67: 0 | N67: 0 | O67: 0 | P67: 0 | Q67: 0 | R67: 0 | S67: 0 | T67: 0 | U67: 0 | V67: 0 | W67: 0 | X67: 0 | Y67: 0
A70: Reserve for new devices
A71: !! Do not fill in new lines !!
A72: !! Problem with indirect links !!
A75: Total Quietindex (RK) per Loop/Stub | F75: =SUM(J14:J64) -> 0 | G75: =SUM(N14:N64) -> 0 | H75: =SUM(R14:R64) -> 0 | I75: =SUM(V14:V64) -> 0
A76: Total Deviceindex (MK) per Loop/Stub | F76: =SUM(K14:K64) -> 0 | G76: =SUM(O14:O64) -> 0 | H76: =SUM(S14:S64) -> 0 | I76: =SUM(W14:W64) -> 0
A77: Total Devideindex (TK) per Loop/Stub | F77: =SUM(L14:L64) -> 0 | G77: =SUM(P14:P64) -> 0 | H77: =SUM(T14:T64) -> 0 | I77: =SUM(X14:X64) -> 0
A78: Total Adressindex (AK) per Loop/Stub | F78: =SUM(M14:M64) -> 0 | G78: =SUM(Q14:Q64) -> 0 | H78: =SUM(U14:U64) -> 0 | I78: =SUM(Y14:Y64) -> 0
A80: General characteristic values
A82: Reference Name for calculation sheet | C82: AnalogPLUS_Ref
A83: Max. Adressindex per Loop/Stub | C83: 128 | D83: Device | E83: (restriction trough startup time)
A87: Calculation of cable characteristics
A89: Loop1 - Stub1_1
A91: length for cable resistor | C91: =INDIRECT("'"&$C$82&"'!C119") -> 1 | D91: m | F91: length for cable capacity | I91: =INDIRECT("'" & $C$82 & "'!C120") -> 1 | J91: m
A92: see chapter 6.1.6 , document 008843 | F92: see chapter 6.1.6 , document 008843
A94: Maximum possible cable resistor | B94: --> formula 1 (Sheet: AnalogPLUS_Constants) | C94: =(Vline_min_AP-Vdet_min_AP-(($F$77*Idet_AP*Rdet_AP*$F$77)/(2*DC_AP))-(($F$76-$F$77)*Idet_AP/DC_AP+Ileak_AP*Vdet_min_AP/((Vans_nom_AP/Ileak_AP-Rcbl_AP)*Ileak_AP))*Rdet_AP*$F$77)/($F$76*Idet_AP/DC_AP+Ileak_AP*Vdet_min_AP/((Vans_nom_AP/Ileak_AP-Rcbl_AP)*Ileak_AP)) -> 316.5 | D94: Ohm | F94: Maximum possible line capacity | I94: =IF(C100>=IncCapRc_AP,CmaxGreatRc_AP,CmaxSmalRc_AP) -> 600 | J94: nF
A95: Restriction answer current | C95: =IF(C94>Rans_AP-($F$77*Rdet_AP),Rans_AP-($F$77*Rdet_AP),C94) -> 316.5 | D95: Ohm
A96: Restriction cable resistor (value for calculation) | C96: =IF(C95>Rcbl_AP,Rcbl_AP,C95) -> 150.0 | D96: Ohm
A98: Resistor R' cable | C98: =INDIRECT("'" & $C$82 & "'!C121") -> 50 | D98: Ohm/km | F98: Capacity Cs' cable | I98: =INDIRECT("'" & $C$82 & "'!C122") -> 70 | J98: nF/km
A99: Maximum length R | C99: =IF(C98=0,MaxLengthR_AP,IF(C94<=0,0,IF((C94/C98*1000)>MaxLengthR_AP,MaxLengthR_AP,(C94/C98*1000)))) -> 2000 | D99: m
A100: Cable total | C100: =IF(C99<=0,0,C91/1000*C98) -> 0.05 | D100: Ohm | E100: =IF(C95>=C100,"--> Configuration OK","--> Configuration not allowed") -> --> Configuration OK | I100: =I91/1000*I98 -> 0.07 | J100: nF | K100: =IF(I94>=I100,"--> Configuration OK","--> Configuration not allowed") -> --> Configuration OK
A102: Loop2 - Stub2_1
A104: length for cable resistor | C104: =INDIRECT("'" & $C$82 & "'!E119") -> 1 | D104: m | F104: length for cable capacity | I104: =INDIRECT("'" & $C$82 & "'!E120") -> 1 | J104: m
A105: see chapter 6.1.6 , document 008843 | F105: see chapter 6.1.6 , document 008843
A107: Maximum possible cable resistor | B107: --> formula 1 (Sheet: AnalogPLUS_Constants) | C107: =(Vline_min_AP-Vdet_min_AP-(($G$77*Idet_AP*Rdet_AP*$G$77)/(2*DC_AP))-(($G$76-$G$77)*Idet_AP/DC_AP+Ileak_AP*Vdet_min_AP/((Vans_nom_AP/Ileak_AP-Rcbl_AP)*Ileak_AP))*Rdet_AP*$G$77)/($G$76*Idet_AP/DC_AP+Ileak_AP*Vdet_min_AP/((Vans_nom_AP/Ileak_AP-Rcbl_AP)*Ileak_AP)) -> 316.5 | D107: Ohm | F107: Maximum possible line capacity | I107: =IF(C113>=IncCapRc_AP,CmaxGreatRc_AP,CmaxSmalRc_AP) -> 600 | J107: nF
A108: Restriction answer current | C108: =IF(C107>Rans_AP-($G$77*Rdet_AP),Rans_AP-($G$77*Rdet_AP),C107) -> 316.5 | D108: Ohm
A109: Restriction cable resistor (value for calculation) | C109: =IF(C108>Rcbl_AP,Rcbl_AP,C108) -> 150.0 | D109: Ohm
A111: Resistor R' cable | C111: =INDIRECT("'" & $C$82 & "'!E121") -> 50 | D111: Ohm/km | F111: Capacity Cs' cable | I111: =INDIRECT("'" & $C$82 & "'!E122") -> 70 | J111: nF/km
A112: Maximum length R | C112: =IF(C111=0,MaxLengthR_AP,IF(C107<=0,0,IF((C107/C111*1000)>MaxLengthR_AP,MaxLengthR_AP,(C107/C111*1000)))) -> 2000 | D112: m
A113: Cable total | C113: =IF(C112<=0,0,C104/1000*C111) -> 0.05 | D113: Ohm | E113: =IF(C108>=C113,"--> Configuration OK","--> Configuration not allowed") -> --> Configuration OK | I113: =I104/1000*I111 -> 0.07 | J113: nF | K113: =IF(I107>=I113,"--> Configuration OK","--> Configuration not allowed") -> --> Configuration OK
A115: Loop3 - Stub3_1
A117: length for cable resistor | C117: =INDIRECT("'" & $C$82 & "'!G119") -> 1 | D117: m | F117: length for cable capacity | I117: =INDIRECT("'" & $C$82 & "'!G120") -> 1 | J117: m
A118: see chapter 6.1.6 , document 008843 | F118: see chapter 6.1.6 , document 008843
A120: Maximum possible cable resistor | B120: --> formula 1 (Sheet: AnalogPLUS_Constants) | C120: =(Vline_min_AP-Vdet_min_AP-(($H$77*Idet_AP*Rdet_AP*$H$77)/(2*DC_AP))-(($H$76-$H$77)*Idet_AP/DC_AP+Ileak_AP*Vdet_min_AP/((Vans_nom_AP/Ileak_AP-Rcbl_AP)*Ileak_AP))*Rdet_AP*$H$77)/($H$76*Idet_AP/DC_AP+Ileak_AP*Vdet_min_AP/((Vans_nom_AP/Ileak_AP-Rcbl_AP)*Ileak_AP)) -> 316.5 | D120: Ohm | F120: Maximum possible line capacity | I120: =IF(C126>=IncCapRc_AP,CmaxGreatRc_AP,CmaxSmalRc_AP) -> 600 | J120: nF
A121: Restriction answer current | C121: =IF(C120>Rans_AP-($H$77*Rdet_AP),Rans_AP-($H$77*Rdet_AP),C120) -> 316.5 | D121: Ohm
A122: Restriction cable resistor (value for calculation) | C122: =IF(C121>Rcbl_AP,Rcbl_AP,C121) -> 150.0 | D122: Ohm
A124: Resistor R' cable | C124: =INDIRECT("'" & $C$82 & "'!G121") -> 50 | D124: Ohm/km | F124: Capacity Cs' cable | I124: =INDIRECT("'" & $C$82 & "'!G122") -> 70 | J124: nF/km
A125: Maximum length R | C125: =IF(C124=0,MaxLengthR_AP,IF(C120<=0,0,IF((C120/C124*1000)>MaxLengthR_AP,MaxLengthR_AP,(C120/C124*1000)))) -> 2000 | D125: m
A126: Cable total | C126: =IF(C125<=0,0,C117/1000*C124) -> 0.05 | D126: Ohm | E126: =IF(C121>=C126,"--> Configuration OK","--> Configuration not allowed") -> --> Configuration OK | I126: =I117/1000*I124 -> 0.07 | J126: nF | K126: =IF(I120>=I126,"--> Configuration OK","--> Configuration not allowed") -> --> Configuration OK
A128: Loop4 - Stub4_1
A130: length for cable resistor | C130: =INDIRECT("'" & $C$82 & "'!I119") -> 1 | D130: m | F130: length for cable capacity | I130: =INDIRECT("'" & $C$82 & "'!I120") -> 1 | J130: m
A131: see chapter 6.1.6 , document 008843 | F131: see chapter 6.1.6 , document 008843
A133: Maximum possible cable resistor | B133: --> formula 1 (Sheet: AnalogPLUS_Constants) | C133: =(Vline_min_AP-Vdet_min_AP-(($I$77*Idet_AP*Rdet_AP*$I$77)/(2*DC_AP))-(($I$76-$I$77)*Idet_AP/DC_AP+Ileak_AP*Vdet_min_AP/((Vans_nom_AP/Ileak_AP-Rcbl_AP)*Ileak_AP))*Rdet_AP*$I$77)/($I$76*Idet_AP/DC_AP+Ileak_AP*Vdet_min_AP/((Vans_nom_AP/Ileak_AP-Rcbl_AP)*Ileak_AP)) -> 316.5 | D133: Ohm | F133: Maximum possible line capacity | I133: =IF(C139>=IncCapRc_AP,CmaxGreatRc_AP,CmaxSmalRc_AP) -> 600 | J133: nF
A134: Restriction answer current | C134: =IF(C133>Rans_AP-($I$77*Rdet_AP),Rans_AP-($I$77*Rdet_AP),C133) -> 316.5 | D134: Ohm
A135: Restriction cable resistor (value for calculation) | C135: =IF(C134>Rcbl_AP,Rcbl_AP,C134) -> 150.0 | D135: Ohm
A137: Resistor R' cable | C137: =INDIRECT("'" & $C$82 & "'!I121") -> 50 | D137: Ohm/km | F137: Capacity Cs' cable | I137: =INDIRECT("'" & $C$82 & "'!I122") -> 70 | J137: nF/km
A138: Maximum length R | C138: =IF(C137=0,MaxLengthR_AP,IF(C133<=0,0,IF((C133/C137*1000)>MaxLengthR_AP,MaxLengthR_AP,(C133/C137*1000)))) -> 2000 | D138: m
A139: Cable total | C139: =IF(C138<=0,0,C130/1000*C137) -> 0.05 | D139: Ohm | E139: =IF(C134>=C139,"--> Configuration OK","--> Configuration not allowed") -> --> Configuration OK | I139: =I130/1000*I137 -> 0.07 | J139: nF | K139: =IF(I133>=I139,"--> Configuration OK","--> Configuration not allowed") -> --> Configuration OK
A141: Power consumption calculatin
A143: Total leakcurrent | C143: =Ileak_AP -> 0.015 | D143: A | F143: Eingangsspg. [V] | H143: =AVERAGE(F145:F158) -> 24.00
A144: Deviceindex (MK) reserve | B144: --> formula 2 (Sheet: AnalogPLUS_Constants) | C144: =(Imax_AP-$C$143*Vline_nom_AP/Vans_nom_AP)*(DC_AP/Idet_AP) -> 167 | F144: Uin [V] | G144: Iin [A] | H144: Uout [V] | I144: Iout [A] | J144: n
F145: 24.00 | G145: 0.047 | H145: 29.90 | I145: 0.018 | J145: =((H145*I145)/(F145*G145)) -> 0.47
F146: 24.00 | G146: 0.057 | H146: 29.91 | I146: 0.025 | J146: 0.55
F147: 24.00 | G147: 0.094 | H147: 29.94 | I147: 0.051 | J147: 0.67
F148: 24.00 | G148: 0.129 | H148: 29.96 | I148: 0.076 | J148: 0.73
F149: 24.00 | G149: 0.166 | H149: 30.03 | I149: 0.102 | J149: 0.77
F150: 24.00 | G150: 0.200 | H150: 30.06 | I150: 0.126 | J150: 0.79
F151: 24.00 | G151: 0.237 | H151: 30.06 | I151: 0.151 | J151: 0.80
F152: 24.00 | G152: 0.309 | H152: 30.12 | I152: 0.201 | J152: 0.82
A153: Quietindex (RK) actual | C153: =SUM(INDIRECT("'" & $C$82 & "'!C144"):INDIRECT("'" & $C$82 & "'!J144")) -> 0 | F153: 24.00 | G153: 0.383 | H153: 30.13 | I153: 0.252 | J153: 0.83
A154: Current consumption by Fdnet (quiet) | C154: =I145+($C$153*Idet_AP/DC_AP) -> 0.018 | D154: A | F154: 24.00 | G154: 0.454 | H154: 30.18 | I154: 0.300 | J154: 0.83
A155: Lower values from table (current and efficiency) | C155: =VLOOKUP($C$154,$I$145:$I$158,1,TRUE) -> 0.018 | D155: A | E155: =VLOOKUP($C$155,$I$145:$J$158,2,TRUE) -> 0.47 | F155: 24.00 | G155: 0.602 | H155: 30.20 | I155: 0.402 | J155: 0.84
A156: Higher values from table (current and efficiency) | C156: =INDIRECT("I"&(145+MATCH($C$155,$I$145:$I$158))) -> 0.025 | D156: A | E156: =INDIRECT("J"&(145+MATCH($C$155,$I$145:$I$158))) -> 0.55 | F156: 24.00 | G156: 0.750 | H156: 30.25 | I156: 0.502 | J156: 0.84
A157: Calculatet Efficency | C157: =IF($C$156<$C$155,$E$155,$E$155+($C$154-$C$155)/($C$156-$C$155)*($E$156-$E$155)) -> 0.47 | F157: 24.00 | G157: 0.897 | H157: 30.16 | I157: 0.602 | J157: 0.84
A158: Power consumption by panel | C158: =(H159*C154/H143)/C157 -> 0.047 | D158: A | F158: 24.00 | G158: 1.046 | H158: 30.20 | I158: 0.701 | J158: 0.84
F159: Output voltage [V] | H159: =AVERAGE(H145:H158) -> 30.08

Sheet AnalogPLUS_Constants (hidden)
A1: General characteristic values
A3: Max. cablelength resistor | B3: maxLengthR_AP | C3: 2000 | D3: m
A4: Max. Adressindex per Loop/Stub | B4: MaxAKLoop_AP | C4: 128 | D4: Device | E4: (Restriction trough startup time)
A5: Max. Adressindex per Module | B5: MaxAKModule_AP | C5: 512 | D5: Device
A6: Max. current per Module | B6: Imax_AP | C6: 0.075 | D6: A | E6: (Current limitation charge voltage per Loop or Stub)
A7: Max. current per Module | B7: ImaxStation_AP | C7: 0.883 | D7: A | E7: (@ 24V, inkl. Wirkungsgrad DC/DC)
A8: Max. leakcurrent per Loop/Stub | B8: Ileak_AP | C8: 0.015 | D8: A | E8: Warnlevel firmware at 10mA (5mA reserve)
A9: Nom. line voltage | B9: Vline_nom_AP | C9: 26.5 | D9: V
A10: Min. line voltage | B10: Vline_min_AP | C10: 25.8 | D10: V
A11: Min. detector voltage | B11: Vdet_min_AP | C11: 16 | D11: V
A12: Nom. answer voltage | B12: Vans_nom_AP | C12: 10 | D12: V
A13: Detector Current | B13: Idet_AP | C13: 0.00019 | D13: A | E13: from 700-001-006, page 16
A14: Duty Cycle | B14: DC_AP | C14: 0.9 | E14: Need verification
A15: Max. answer current resistor | B15: Rans_AP | C15: 325 | D15: Ohm | E15: 325 Ohm = (8.5V / 12mA) - 383 Ohm / Detector has 383R resistor
A16: Max. cable resistor | B16: Rcbl_AP | C16: 150 | D16: Ohm
A17: Max. FET resistor | B17: Rdet_AP | C17: 1.3 | D17: Ohm | E17: from 700-001-006, page 18
A18: Increase capacity from (Rc) | B18: IncCapRc_AP | C18: 50 | D18: Ohm
A19: Capacity >Rc | B19: CmaxGreatRc_AP | C19: 300 | D19: nF
A20: Capacity <Rc | B20: CmaxSmalRc_AP | C20: 600 | D20: nF
A23: Formula 1:
A34: Formula 2:

Sheet Interactive_Ref (hidden)
B1: Planning of Interactive detector lines (one line card or one module)
B3: Purpose:
B4: With the project planning of the detector line the load of the line card is verified. This results in the definite:
B5: - number and type of devices per detector line
B6: - number of required line cards
B7: - number of loops and stubs
B8: - load of the panel in idle and alarm state
B10: Procedure:
B11: 1.) Define the types and positions of the detector line devices in the building
B12: 2.) Define the topology of the detector lines
B13: 3.) Enter the number of devices per loop / stub in the device population table
B14: --> Interactive connection factors (ILK) for all loops / stubs are definite
B15: --> The program calculates the maximal possible line resistor and capacity (see cabling fields, marked red or green)
B16: 4.) Define the cable length according to the building plan (enter values at cable characteristics fields)
B17: Warning: length for resistor- or capacity calculation must be calculated independent according to document A6V10210362
B18: 5.) Enter cable parameters (row 121 and 122)
B19: 6.) All data are now complete, the program calculates the configuration.
B20: --> If all analysis are "green", configuration is valid
B24: Please consider:
B28: yellow fields | C28: Must be filled in by the user
B29: orange fields | C29: Shows an input data error. These fields must be filled in by the user
B31: green fields | C31: Calculated value, configuration valid. Field must not be changed by the user.
B32: red fields | C32: Calculated value, configuration invalid. Field must not be changed by the user.
B33: light green fields | C33: Calculated value, additional information for the user. Field must not be changed by the user.
A35: Input number of devices
B37: Help values | E37: Interactive Selection
E38: Interactive
B39: Reference Name for calculation sheet | E39: Interactive Ex
B40: Interactive_Calc_Ref | E40: Interactive Ex
E41: 1
B43: Device Population | C43: =IF(E41=2,"Line card (Interactive Ex) FCL2007-A1","Line card (Interactive) FCL2006-A1") -> Line card (Interactive) FCL2006-A1
C45: =IF(E41=2,"Stub1","Loop1 / Stub1") -> Loop1 / Stub1 | G45: External supply
B46: Point detectors | G46: +24V output
B47: DO1151 - Smoke detector (OptoRex) | C47: 0 | D47: Stk. | G47: 0 | H47: A
B48: DO1151A - Smoke detector (OptoRex) | C48: 0 | D48: Stk.
B49: DOT1151 - Smoke detectors (PolyRex) | C49: 0 | D49: Stk.
B50: DOT1151A - Smoke detectors (PolyRex) | C50: 0 | D50: Stk.
B51: DOT1151A-Ex - Smoke detectors Ex (PolyRex) | C51: 0 | D51: Stk.
B52: DO1152 - Smoke detectors with line separator (OptoRex) | C52: 0 | D52: Stk.
B53: DO1152A - Smoke detectors with line separator (OptoRex) | C53: 0 | D53: Stk.
B54: DO1153 - Smoke detectors with line separator and high sensitivity (OptoRex) | C54: 0 | D54: Stk.
B55: DO1153A - Smoke detectors with line separator and high sensitivity (OptoRex) | C55: 0 | D55: Stk.
B56: DOT1152 - Smoke detectors with line separator (PolyRex) | C56: 0 | D56: Stk.
B57: DOT1152A - Smoke detectors with line separator (PolyRex) | C57: 0 | D57: Stk.
B58: DOTE1152A - Smoke detectors with line separator (PolyRex) | C58: 0 | D58: Stk.
B59: DT1152 - Heat detectors with line separator (ThermoRex) | C59: 0 | D59: Stk.
B60: DT1152A - Heat detectors with line separator (ThermoRex) | C60: 0 | D60: Stk.
B61: DT1151A-Ex - Heat detectors Ex (ThermoRex) | C61: 0 | D61: Stk.
C62: 0 | D62: Stk.
C63: 0 | D63: Stk.
B64: Special detectors
B65: DLO1191 - Linear smoke detector (BeamRex) | C65: 0 | D65: Stk.
B66: DLO1191A - Linear smoke detector (BeamRex) | C66: 0 | D66: Stk.
B67: DF1191 - Infrared flame detector (1 sensor) | C67: 0 | D67: Stk.
B68: DF1192 - Infrared flame detector (2 sensors/1 photo diode) | C68: 0 | D68: Stk.
B69: DF1191-Ex - Infrared flame detector Ex (WaveRex) | C69: 0 | D69: Stk.
C70: 0 | D70: Stk.
C71: 0 | D71: Stk.
B72: Manual call points
B73: DM115x - Manual call point | C73: 0 | D73: Stk.
B74: DM1153-Ex - Manual call point Ex | C74: 0 | D74: Stk.
B75: DMA1153x - Switching unit | C75: 0 | D75: Stk.
B76: DM1154-Ex - Manual call point Ex | C76: 0 | D76: Stk.
B77: DMA1154A - Switching unit | C77: 0 | D77: Stk.
B78: DMA1154B/C/D - Switching unit | C78: 0 | D78: Stk.
C79: 0 | D79: Stk.
B80: Line modules
B81: DCA1151(x) - Input Module (1 Collective Input) | C81: 0 | D81: Stk.
B82: DCA1154(x) - In/Output module (1I&1O) | C82: 0 | D82: Stk.
B83: DC1154-AA - In/Output module (1I&1O) | C83: 0 | D83: Stk.
B84: DC1156-AA - Output module (3O) | C84: 0 | D84: Stk.
B85: DCA1157(x) - Input module (3I) | C85: 0 | D85: Stk.
B86: DC1157-AA - Input module (3I) | C86: 0 | D86: Stk.
B87: DCA1192A - 1 Collective Input | C87: 0 | D87: Stk.
B88: DCA1192A - 1 Horn Output | C88: 0 | D88: Stk.
B89: CB320A - Input device for SinoLINE300 (collective) | C89: 0 | D89: Stk.
B90: DC1159A - Line isolator | C90: 0 | D90: Stk.
C91: 0 | D91: Stk.
B92: Radio devices
B93: DWA1151(x) - Radio gateway | C93: 0 | D93: Stk.
B94: DOW1171, DOW1191 - detectors | C94: 0 | D94: Stk.
B95: DWA1191 - Receiver Module | C95: 0 | D95: Stk.
C96: 0 | D96: Stk.
C97: 0 | D97: Stk.
C98: 0 | D98: Stk.
C99: 0 | D99: Stk.
C100: 0 | D100: Stk.
B102: Reserve for new devices
B103: !! Do not fill in new lines !!
B104: !! Problem with indirect links !!
B108: Help values
B109: Plausibility wireless device (FDCW221) | C109: =IF(OR(AND(C94>0,C93=0),IF(C93=0,0,IF(C94/C93>$C$112,1,0))),0,1) -> 1
B111: General characteristic values
B112: Max. numbers of wireless device per gateway | C112: 30 | D112: pcs
A115: Input cable characteristics
B117: Cable characteristics | C117: =C43 -> Line card (Interactive) FCL2006-A1
C118: =C$45 -> Loop1 / Stub1
B119: Length for line resistor | C119: 1 | D119: m
B120: Length for line capacity | C120: 1 | D120: m
B121: Resistance value R' of cable | C121: 50 | D121: Ohm/km
B122: Capacitance value Cs' of cable | C122: 70 | D122: nF/km
B124: Help values
B125: Resistor cabling check (0 < length < max. length) | C125: =IF(AND(C119>=0,C119<=$C$131),1,0) -> 1 | E125: Max. possible external supply current | H125: 0.5 | I125: A
B127: Cabling plausibility (length R < length C) | C127: =IF(C120>=C119,1,0) -> 1
B128: R' and Cs' plausibility (R' und Cs' > 0) | C128: =IF(AND(C121>0,C122>0),1,0) -> 1
B130: General characteristic values
B131: Maximum length for line resistor | C131: =MaxLengthR_AP -> 2000 | D131: m
C133: - Length for line resistor & definition R' see document 008843
C134: - Length for line capacity & definition Cs' see document 008843
A137: Analysis of configuration
B139: Device amount | C139: =C43 -> Line card (Interactive) FCL2006-A1
C140: =C$45 -> Loop1 / Stub1
B141: Adressindex (AK) per Loop / Stub | C141: =INDIRECT("'" & $B$40 & "'!F78") -> 0
B142: Trennerindex (TK) per Loop / Stub | C142: =INDIRECT("'" & $B$40 & "'!F77") -> 0
B144: Quietindex (RK) per Loop / Stub | C144: =INDIRECT("'" & $B$40 & "'!F75") -> 0
B147: Maximum Deviceindex per Loop/Stub | C147: =INDIRECT("'"&$B$40&"'!C144") -> 134
B149: Current consumption - Interactive detectors and ext. supply (at panel by 24V) | C149: =INDIRECT("'" & $B$40 & "'!C158") -> 0.063 A
B152: Help values
B153: Configuration value | C153: =IF(C$145>=1,1,"") -> 
B154: Leak current | C154: =IF(C153=1,Ileak_AP,"") -> 
B155: Stub / Loop configuration valid (AK) | C155: =IF(C141<=$C$162,1,0) -> 1
B156: Stub / Loop configuration valid (RK) | C156: =IF(C144<=$C$164,1,0) -> 1
B158: Resistor load check | C158: =IF(C171<=C170,1,0) -> 1
B159: Capacity load check | C159: =IF(C173<=C172,1,0) -> 1
B160: General characteristic values
B161: Maximum current at station | C161: =ImaxStation_AP -> 0.883 | D161: A
B162: Maximum Adressindex per Loop / Stub: | C162: =MaxAKLoop_AP -> 128 | D162: Devices
B163: MaximumTrennerindex per Loop / Stub: | C163: =MaxAKLoop_AP -> 128
B164: Deviceindex (MK) reserve per Line Card: | C164: =INDIRECT("'" & $B$40 & "'!C144") -> 134 | D164: Loadfact.
B166: Cabling | C166: =C43 -> Line card (Interactive) FCL2006-A1
C167: =C$45 -> Loop1 / Stub1
B168: Maximum length for line resistor | C168: =INDIRECT("'" & $B$40 & "'!C110") -> 2,000 | D168: m
B170: Maximum possible line resistor | C170: =INDIRECT("'" & $B$40 & "'!C107") -> 120.0 | D170: Ohm
B171: Resistor load of configuration | C171: =INDIRECT("'" & $B$40 & "'!C111") -> 0.1 | D171: Ohm
B172: Maximum possible line capacity | C172: =INDIRECT("'" & $B$40 & "'!I104") -> 800 | D172: nF
B173: Capacity load of configuration | C173: =INDIRECT("'" & $B$40 & "'!I111") -> 0.07 | D173: nF
I179: =IF(I180="JC","Configuration ok","Configuration false") -> Configuration ok
I180: =IF(AND(C155,C141<=C162,C158,C159,C125,C127,C128,G47<=H125,C144<C147),"JC","LD") -> JC
I188: =IF(I180="JC","Configuration ok","Configuration false") -> Configuration ok

Sheet Interactive_Calc_Ref (hidden)
A1: Abbreviations
A2: IAK: Interactive Adresskennzahl; Number of by the deviced used bus-adresses (including sub-adresses)
A3: IRK: Interactive Ruhestromkennzahl; average current of the device in idle state (in loadfactors). Necessary to calculate the emergency power
A4: IMK: Interactive Connection Factor; maximal average current of the device, normally in alarm state (in loadfactors), without internal or external AI
A5: ITK: Interactive Line Separator Factor; separator connection factor: devices with separaor = 1, without separator = 0
A6: Loadfactor: 1 loadfactor equals 225uA
A8: changeable field
A9: data from input-output sheet
A10: calculation
F11: Loop1 | G11: Loop1
A12: Loop Device | B12: RK (= IMK) | C12: IMK | D12: ITK | E12: IAK | F12: # Devices line 1_1 | G12: RK line 1_1 | H12: MK line 1_1 | I12: TK line 1_1 | J12: AK line 1_1
A13: Point detectors
A14: DO1151 - Smoke detector (OptoRex) | B14: 1 | C14: 1 | D14: 0 | E14: 1 | F14: =INDIRECT("'" & $C$82 & "'!C47") -> 0 | G14: =$F14*B14 -> 0 | H14: =$F14*C14 -> 0 | I14: =$F14*D14 -> 0 | J14: =$F14*E14 -> 0
A15: DO1151A - Smoke detector (OptoRex) | B15: 1 | C15: 1 | D15: 0 | E15: 1 | F15: =INDIRECT("'" & $C$82 & "'!C48") -> 0 | G15: 0 | H15: 0 | I15: 0 | J15: 0
A16: DOT1151 - Smoke detectors (PolyRex) | B16: 1 | C16: 1 | D16: 0 | E16: 1 | F16: =INDIRECT("'" & $C$82 & "'!C49") -> 0 | G16: 0 | H16: 0 | I16: 0 | J16: 0
A17: DOT1151A - Smoke detectors (PolyRex) | B17: 1 | C17: 1 | D17: 0 | E17: 1 | F17: =INDIRECT("'" & $C$82 & "'!C50") -> 0 | G17: 0 | H17: 0 | I17: 0 | J17: 0
A18: DOT1151A-Ex - Smoke detectors Ex (PolyRex) | B18: 1 | C18: 1 | D18: 0 | E18: 1 | F18: =INDIRECT("'" & $C$82 & "'!C51") -> 0 | G18: 0 | H18: 0 | I18: 0 | J18: 0
A19: DO1152 - Smoke detectors with line separator (OptoRex) | B19: 1 | C19: 1 | D19: 1 | E19: 1 | F19: =INDIRECT("'" & $C$82 & "'!C52") -> 0 | G19: 0 | H19: 0 | I19: 0 | J19: 0
A20: DO1152A - Smoke detectors with line separator (OptoRex) | B20: 1 | C20: 1 | D20: 1 | E20: 1 | F20: =INDIRECT("'" & $C$82 & "'!C53") -> 0 | G20: 0 | H20: 0 | I20: 0 | J20: 0
A21: DO1153 - Smoke detectors with line separator and high sensitivity (OptoRex) | B21: 1 | C21: 1 | D21: 1 | E21: 1 | F21: =INDIRECT("'" & $C$82 & "'!C54") -> 0 | G21: 0 | H21: 0 | I21: 0 | J21: 0
A22: DO1153A - Smoke detectors with line separator and high sensitivity (OptoRex) | B22: 1 | C22: 1 | D22: 1 | E22: 1 | F22: =INDIRECT("'" & $C$82 & "'!C55") -> 0 | G22: 0 | H22: 0 | I22: 0 | J22: 0
A23: DOT1152 - Smoke detectors with line separator (PolyRex) | B23: 1 | C23: 1 | D23: 1 | E23: 1 | F23: =INDIRECT("'" & $C$82 & "'!C56") -> 0 | G23: 0 | H23: 0 | I23: 0 | J23: 0
A24: DOT1152A - Smoke detectors with line separator (PolyRex) | B24: 1 | C24: 1 | D24: 1 | E24: 1 | F24: =INDIRECT("'" & $C$82 & "'!C57") -> 0 | G24: 0 | H24: 0 | I24: 0 | J24: 0
A25: DOTE1152A - Smoke detectors with line separator (PolyRex) | B25: 1 | C25: 1 | D25: 1 | E25: 1 | F25: =INDIRECT("'" & $C$82 & "'!C58") -> 0 | G25: 0 | H25: 0 | I25: 0 | J25: 0
A26: DT1152 - Heat detectors with line separator (ThermoRex) | B26: 1 | C26: 1 | D26: 1 | E26: 1 | F26: =INDIRECT("'" & $C$82 & "'!C59") -> 0 | G26: 0 | H26: 0 | I26: 0 | J26: 0
A27: DT1152A - Heat detectors with line separator (ThermoRex) | B27: 1 | C27: 1 | D27: 1 | E27: 1 | F27: =INDIRECT("'" & $C$82 & "'!C60") -> 0 | G27: 0 | H27: 0 | I27: 0 | J27: 0
A28: DT1151A-Ex - Heat detectors Ex (ThermoRex) | B28: 1 | C28: 1 | D28: 0 | E28: 1 | F28: =INDIRECT("'" & $C$82 & "'!C61") -> 0 | G28: 0 | H28: 0 | I28: 0 | J28: 0
B29: 0 | C29: 0 | D29: 0 | E29: 0 | F29: =INDIRECT("'" & $C$82 & "'!C62") -> 0 | G29: 0 | H29: 0 | I29: 0 | J29: 0
B30: 0 | C30: 0 | D30: 0 | E30: 0 | F30: =INDIRECT("'" & $C$82 & "'!C63") -> 0 | G30: 0 | H30: 0 | I30: 0 | J30: 0
A31: Special detectors
A32: DLO1191 - Linear smoke detector (BeamRex) | B32: 10 | C32: 10 | D32: 1 | E32: 1 | F32: =INDIRECT("'" & $C$82 & "'!C65") -> 0 | G32: =$F32*B32 -> 0 | H32: 0 | I32: 0 | J32: 0
A33: DLO1191A - Linear smoke detector (BeamRex) | B33: 10 | C33: 10 | D33: 1 | E33: 1 | F33: =INDIRECT("'" & $C$82 & "'!C66") -> 0 | G33: 0 | H33: 0 | I33: 0 | J33: 0
A34: DF1191 - Infrared flame detector (1 sensor) | B34: 3 | C34: 3 | D34: 1 | E34: 1 | F34: =INDIRECT("'" & $C$82 & "'!C67") -> 0 | G34: 0 | H34: 0 | I34: 0 | J34: 0
A35: DF1192 - Infrared flame detector (2 sensors/1 photo diode) | B35: 3 | C35: 3 | D35: 1 | E35: 1 | F35: =INDIRECT("'" & $C$82 & "'!C68") -> 0 | G35: 0 | H35: 0 | I35: 0 | J35: 0
A36: DF1191-Ex - Infrared flame detector Ex (WaveRex) | B36: 3 | C36: 3 | D36: 1 | E36: 1 | F36: =INDIRECT("'" & $C$82 & "'!C69") -> 0 | G36: 0 | H36: 0 | I36: 0 | J36: 0
B37: 0 | C37: 0 | D37: 0 | E37: 0 | F37: =INDIRECT("'" & $C$82 & "'!C70") -> 0 | G37: =$F37*B37 -> 0 | H37: 0 | I37: 0 | J37: 0
B38: 0 | C38: 0 | D38: 0 | E38: 0 | F38: =INDIRECT("'" & $C$82 & "'!C71") -> 0 | G38: 0 | H38: 0 | I38: 0 | J38: 0
A39: Manual call points
A40: DM115x - Manual call point | B40: 1 | C40: 1 | D40: 1 | E40: 1 | F40: =INDIRECT("'" & $C$82 & "'!C73") -> 0 | G40: =$F40*B40 -> 0 | H40: =$F40*C40 -> 0 | I40: =$F40*D40 -> 0 | J40: =$F40*E40 -> 0
A41: DM1153-Ex - Manual call point Ex | B41: 1 | C41: 1 | D41: 0 | E41: 1 | F41: =INDIRECT("'" & $C$82 & "'!C74") -> 0 | G41: =$F41*B41 -> 0 | H41: 0 | I41: 0 | J41: 0
A42: DMA1153x - Switching unit | B42: 1 | C42: 1 | D42: 1 | E42: 1 | F42: =INDIRECT("'" & $C$82 & "'!C75") -> 0 | G42: 0 | H42: 0 | I42: 0 | J42: 0
A43: DM1154-Ex - Manual call point Ex | B43: 1 | C43: 1 | D43: 0 | E43: 1 | F43: =INDIRECT("'" & $C$82 & "'!C76") -> 0 | G43: 0 | H43: 0 | I43: 0 | J43: 0
A44: DMA1154A - Switching unit | B44: 1 | C44: 1 | D44: 0 | E44: 1 | F44: =INDIRECT("'" & $C$82 & "'!C77") -> 0 | G44: 0 | H44: 0 | I44: 0 | J44: 0
A45: DMA1154B/C/D - Switching unit | B45: 1 | C45: 1 | D45: 1 | E45: 1 | F45: =INDIRECT("'" & $C$82 & "'!C78") -> 0 | G45: 0 | H45: 0 | I45: 0 | J45: 0
B46: 0 | C46: 0 | D46: 0 | E46: 0 | F46: =INDIRECT("'" & $C$82 & "'!C79") -> 0 | G46: 0 | H46: 0 | I46: 0 | J46: 0
A47: Line modules
A48: DCA1151(x) - Input Module (1 Collective Input) | B48: 12 | C48: 12 | D48: 1 | E48: 1 | F48: =INDIRECT("'" & $C$82 & "'!C81") -> 0 | G48: =$F48*B48 -> 0 | H48: =$F48*C48 -> 0 | I48: =$F48*D48 -> 0 | J48: =$F48*E48 -> 0
A49: DCA1154(x) - In/Output module (1I&1O) | B49: 2 | C49: 2 | D49: 1 | E49: 1 | F49: =INDIRECT("'" & $C$82 & "'!C82") -> 0 | G49: 0 | H49: 0 | I49: 0 | J49: 0
A50: DC1154-AA - In/Output module (1I&1O) | B50: 2 | C50: 2 | D50: 1 | E50: 1 | F50: =INDIRECT("'" & $C$82 & "'!C83") -> 0 | G50: 0 | H50: 0 | I50: 0 | J50: 0
A51: DC1156-AA - Output module (3O) | B51: 3 | C51: 3 | D51: 1 | E51: 1 | F51: =INDIRECT("'" & $C$82 & "'!C84") -> 0 | G51: 0 | H51: 0 | I51: 0 | J51: 0
A52: DCA1157(x) - Input module (3I) | B52: 3 | C52: 3 | D52: 1 | E52: 1 | F52: =INDIRECT("'" & $C$82 & "'!C85") -> 0 | G52: 0 | H52: 0 | I52: 0 | J52: 0
A53: DC1157-AA - Input module (3I) | B53: 3 | C53: 3 | D53: 1 | E53: 1 | F53: =INDIRECT("'" & $C$82 & "'!C86") -> 0 | G53: 0 | H53: 0 | I53: 0 | J53: 0
A54: DCA1192A - 1 Collective Input | B54: 2 | C54: 2 | D54: 1 | E54: 1 | F54: =INDIRECT("'" & $C$82 & "'!C87") -> 0 | G54: 0 | H54: 0 | I54: 0 | J54: 0
A55: DCA1192A - 1 Horn Output | B55: 2 | C55: 2 | D55: 1 | E55: 1 | F55: =INDIRECT("'" & $C$82 & "'!C88") -> 0 | G55: 0 | H55: 0 | I55: 0 | J55: 0
A56: CB320A - Input device for SinoLINE300 (collective) | B56: 2 | C56: 2 | D56: 1 | E56: 1 | F56: =INDIRECT("'" & $C$82 & "'!C89") -> 0 | G56: 0 | H56: 0 | I56: 0 | J56: 0
A57: DC1159A - Line isolator | B57: 1 | C57: 1 | D57: 1 | E57: 0 | F57: =INDIRECT("'" & $C$82 & "'!C90") -> 0 | G57: 0 | H57: 0 | I57: 0 | J57: 0
B58: 0 | C58: 0 | D58: 0 | E58: 0 | F58: =INDIRECT("'" & $C$82 & "'!C91") -> 0 | G58: 0 | H58: 0 | I58: 0 | J58: 0
A59: Radio devices
A60: DWA11512(x) - Radio gateway | B60: 8 | C60: 8 | D60: 1 | E60: 1 | F60: =INDIRECT("'" & $C$82 & "'!C93") -> 0 | G60: =IF($F60>0,$F60*($B60+($F61/$F60)*$B61),0) -> 0 | H60: =IF($F60>0,$F60*($C60+($F61/$F60)*$C61),0) -> 0 | I60: =IF($F60>0,$F60*($D60+($F61/$F60)*$D61),0) -> 0 | J60: =IF($F60>0,$F60*($E60+($F61/$F60)*$E61),0) -> 0
A61: DOW1171, DOW1191 - detectors | B61: 0 | C61: 0 | D61: 0 | E61: 1 | F61: =INDIRECT("'" & $C$82 & "'!C94") -> 0 | G61: =0 -> 0 | H61: =0 -> 0 | I61: =0 -> 0 | J61: =0 -> 0
A62: DWA1191 - Receiver Module | B62: 2 | C62: 2 | D62: 0 | E62: 0 | F62: =INDIRECT("'" & $C$82 & "'!C95") -> 0 | G62: =$F62*B62 -> 0 | H62: 0 | I62: 0 | J62: 0
B63: 0 | C63: 0 | D63: 0 | E63: 0 | F63: =INDIRECT("'" & $C$82 & "'!C96") -> 0 | G63: 0 | H63: 0 | I63: 0 | J63: 0
B64: 0 | C64: 0 | D64: 0 | E64: 0 | F64: =INDIRECT("'" & $C$82 & "'!C97") -> 0 | G64: 0 | H64: 0 | I64: 0 | J64: 0
B65: 0 | C65: 0 | D65: 0 | E65: 0 | F65: =INDIRECT("'" & $C$82 & "'!C98") -> 0 | G65: 0 | H65: 0 | I65: 0 | J65: 0
B66: 0 | C66: 0 | D66: 0 | E66: 0 | F66: =INDIRECT("'" & $C$82 & "'!C99") -> 0 | G66: 0 | H66: 0 | I66: 0 | J66: 0
B67: 0 | C67: 0 | D67: 0 | E67: 0 | F67: =INDIRECT("'" & $C$82 & "'!C100") -> 0 | G67: 0 | H67: 0 | I67: 0 | J67: 0
A70: Reserve for new devices
A71: !! Do not fill in new lines !!
A72: !! Problem with indirect links !!
A75: Total Quietindex (RK) per Loop/Stub | F75: =SUM(G14:G67) -> 0
A76: Total Deviceindex (MK) per Loop/Stub | F76: =SUM(H14:H67) -> 0
A77: Total Devideindex (TK) per Loop/Stub | F77: =SUM(I14:I67) -> 0
A78: Total Adressindex (AK) per Loop/Stub | F78: =SUM(J14:J67) -> 0
A80: General characteristic values
A82: Reference Name for calculation sheet | C82: Interactive_Ref
A83: Max. Adressindex per Loop/Stub | C83: =IF(C84=1,MaxAKLoop_I,MaxAKLoopEx_I) -> 128 | D83: Device | E83: (restriction trough startup time)
A84: Interactive (1) / Interactive Ex (2) | C84: =INDIRECT("'"&$C$82&"'!E41") -> 1
A87: Calculation of cable characteristics
A89: Loop1 - Stub1_1
A91: length for cable resistor | C91: =INDIRECT("'"&$C$82&"'!C119") -> 1 | D91: m | F91: length for cable capacity | I91: =INDIRECT("'" & $C$82 & "'!C120") -> 1 | J91: m
A92: see chapter 6.1.6 , document 008843 | F92: see chapter 6.1.6 , document 008843
A94: Find resistor and capacity value according to graph at 001508
B95: MK (out of line) | C95: Condition | E95: Zone1 | H95: Zone2 | K95: Zone3 | N95: Zone4
A96: Zone1 | B96: =-72/146*F$76+72 -> 72.00 | C96: =B96>=$F$77 -> TRUE | E96: Res. [Ω] | F96: Cap. [nF] | H96: Res. [Ω] | I96: Cap. [nF] | K96: Res. [Ω] | L96: Cap. [nF] | N96: Res. [Ω] | O96: Cap. [nF]
A97: Zone2 | B97: =-216/128*$F$76+216 -> 216.00 | C97: =B97>=$F$77 -> TRUE | E97: 0 | F97: 800 | H97: 0 | I97: 600 | K97: 0 | L97: 600 | N97: 0 | O97: 600
A98: Zone3 | B98: =-53/128*$F$76+113 -> 113.00 | C98: =B98>=$F$77 -> TRUE | E98: 50.001 | F98: 400 | H98: 50.001 | I98: 400 | K98: 50.001 | L98: 400 | N98: 35.001 | O98: 400
E99: 120.001 | F99: 400 | H99: 100.001 | I99: 300 | K99: 75.001 | L99: 300 | N99: 75.001 | O99: 400
H100: 120.001 | I100: 300 | K100: 90.001 | L100: 300
A104: Maximum possible cable resistor | B104: --> formula 1 (Sheet: Interactive_Constants) | C104: =IF(C84=1,(Vline_min_I-Vdet_min_I-(($F$77*Idet_I*Rdet_I*$F$77)/(2*DC_I))-(($F$76-$F$77)*Idet_I/DC_I+Ileak_I*Vdet_min_I/((Vans_nom_I/Ileak_I-Rcbl_I)*Ileak_I))*Rdet_I*$F$77)/($F$76*Idet_I/DC_I+Ileak_I*Vdet_min_I/((Vans_nom_I/Ileak_I-Rcbl_I)*Ileak_I)),(Vline_min_Ex_I-Vdet_min_I-(($F$77*Idet_I*Rdet_I*$F$77)/(2*DC_I))-(($F$76-$F$77)*Idet_I/DC_I+Ileak_I*Vdet_min_I/((Vans_nom_I/Ileak_I-Rcbl_I)*Ileak_I))*Rdet_I*$F$77)/($F$76*Idet_I/DC_I+Ileak_I*Vdet_min_I/((Vans_nom_I/Ileak_I-Rcbl_I)*Ileak_I))) -> 388.8 | D104: Ohm | F104: Maximum possible line capacity | I104: =IF($C$96=TRUE,VLOOKUP($C$111,$E$97:$F$99,2,TRUE),IF($C$97=TRUE,VLOOKUP($C$111,$H$97:$I$100,2,TRUE),IF($C$98=TRUE,VLOOKUP($C$111,$K$97:$L$100,2,TRUE),VLOOKUP($C$111,$N$97:$O$99,2,TRUE)))) -> 800 | J104: nF | K104: according graph at 001508
A105: Restriction answer current | C105: =IF(C104>Rans_I-($F$77*Rdet_I),Rans_I-($F$77*Rdet_I),C104) -> 290.0 | D105: Ohm
A106: Maximum possible cable resistor | C106: =IF($C$96=TRUE,MAX(E97:E99),IF($C$97=TRUE,MAX(H97:H100),IF($C$98=TRUE,MAX(K97:K100),MAX(N97:N99)))) -> 120.0 | D106: Ohm | E106: according graph at 001508
A107: Restriction cable resistor (value for calculation) | C107: =IF(C105>C106,C106,C105) -> 120.0 | D107: Ohm
A109: Resistor R' cable | C109: =INDIRECT("'" & $C$82 & "'!C121") -> 50 | D109: Ohm/km | F109: Capacity Cs' cable | I109: =INDIRECT("'" & $C$82 & "'!C122") -> 70 | J109: nF/km
A110: Maximum length R | C110: =IF(C109=0,MaxLengthR_I,IF(C104<=0,0,IF((C104/C109*1000)>MaxLengthR_I,MaxLengthR_I,(C104/C109*1000)))) -> 2000 | D110: m
A111: Cable total | C111: =IF(C110<=0,0,C91/1000*C109) -> 0.05 | D111: Ohm | E111: =IF(C105>=C111,"--> Configuration OK","--> Configuration not allowed") -> --> Configuration OK | I111: =I91/1000*I109 -> 0.07 | J111: nF | K111: =IF(I104>=I111,"--> Configuration OK","--> Configuration not allowed") -> --> Configuration OK
A119: Current consumption by external supply
A121: Current consumption by external supply | C121: =INDIRECT("'"&$C$82&"'!G47")+I123 -> 0.00 | D121: A | F121: Eingangsspg. [V] | H121: =AVERAGE(F123:F131) -> 35.37
F122: Uin [V] | G122: Iin [A] | H122: Uout [V] | I122: Iout [A] | J122: n
F123: 35.60 | G123: 0.012 | H123: 24.40 | I123: 0.000 | J123: =((H123*I123)/(F123*G123)) -> 0.00
A124: Lower values from table (current and efficiency) | C124: =VLOOKUP($C$121,$I$123:$I$131,1,TRUE) -> 0.000 | D124: A | E124: =VLOOKUP($C$124,$I$123:$J$131,2,TRUE) -> 0.00 | F124: 35.56 | G124: 0.048 | H124: 24.31 | I124: 0.048 | J124: 0.68
A125: Higher values from table (current and efficiency) | C125: =INDIRECT("I"&(123+MATCH($C$124,$I$123:$I$131))) -> 0.048 | D125: A | E125: =INDIRECT("J"&(123+MATCH($C$124,$I$123:$I$131))) -> 0.68 | F125: 35.55 | G125: 0.084 | H125: 24.28 | I125: 0.099 | J125: 0.81
A126: Calculatet Efficency | C126: =IF($C$125<$C$124,$E$124,$E$124+($C$121-$C$124)/($C$125-$C$124)*($E$125-$E$124)) -> 0.00 | F126: 35.53 | G126: 0.152 | H126: 24.22 | I126: 0.197 | J126: 0.88
A127: Power consumption by external supply | C127: =(H132*C121/H121)/C126 -> 0.012 | D127: A | F127: 35.00 | G127: 0.298 | H127: 24.11 | I127: 0.398 | J127: 0.92
F128: 35.12 | G128: 0.361 | H128: 24.00 | I128: 0.493 | J128: 0.93
F129: 35.28 | G129: 0.339 | H129: 17.90 | I129: 0.610 | J129: 0.91
F130: 35.31 | G130: 0.207 | H130: 7.73 | I130: 0.796 | J130: 0.84
F131: 35.34 | G131: 0.049 | H131: 0.50 | I131: 0.937 | J131: 0.27
F132: Output voltage [V] | H132: =AVERAGE(H123:H128) -> 24.22
A141: Power consumption calculatin
A143: Total leakcurrent | C143: =Ileak_I -> 0.01 | D143: A | F143: Eingangsspg. [V] | H143: 24
A144: Deviceindex (MK) reserve | B144: --> formula 2 (Sheet: Interactive_Constants) | C144: =IF(C84=1,(Imax_I-$C$143*Vline_nom_I/Vans_nom_I)*(DC_I/Idet_I),(ImaxEx_I-$C$143*Vline_nom_Ex_I/Vans_nom_I)*(DC_I/Idet_I)) -> 134 | F144: Uin [V] | G144: Iin [A] | H144: Uout [V] | I144: Iout [A] | J144: n
F145: =$H$143 -> 24 | G145: 0.039 | H145: 35.69 | I145: 0.008 | J145: =((H145*I145)/(F145*G145)) -> 0.32
F146: 24 | G146: 0.063 | H146: 35.61 | I146: 0.020 | J146: 0.47
F147: 24 | G147: 0.081 | H147: 35.61 | I147: 0.030 | J147: 0.55
F148: 24 | G148: 0.098 | H148: 35.61 | I148: 0.040 | J148: 0.61
F149: 24 | G149: 0.115 | H149: 35.62 | I149: 0.051 | J149: 0.65
F150: 24 | G150: 0.156 | H150: 35.62 | I150: 0.076 | J150: 0.72
F151: 24 | G151: 0.199 | H151: 35.63 | I151: 0.102 | J151: 0.76
F152: 24 | G152: 0.284 | H152: 35.65 | I152: 0.152 | J152: 0.80
A153: Quietindex (RK) actual | C153: =SUM(INDIRECT("'" & $C$82 & "'!C144"):INDIRECT("'" & $C$82 & "'!R144")) -> 0 | F153: 24 | G153: 0.375 | H153: 35.66 | I153: 0.206 | J153: 0.82
A154: Current consumption by Interactive and external supply (quiet) | C154: =I145+($C$153*Idet_I/DC_I)+C127 -> 0.020 | D154: A | F154: 24 | G154: 0.449 | H154: 35.67 | I154: 0.251 | J154: 0.83
A155: Lower values from table (current and efficiency) | C155: =VLOOKUP($C$154,$I$145:$I$161,1,TRUE) -> 0.020 | D155: A | E155: =VLOOKUP($C$155,$I$145:$J$161,2,TRUE) -> 0.47 | F155: 24 | G155: 0.534 | H155: 35.69 | I155: 0.301 | J155: 0.84
A156: Higher values from table (current and efficiency) | C156: =INDIRECT("I"&(145+MATCH($C$155,$I$145:$I$161))) -> 0.030 | D156: A | E156: =INDIRECT("J"&(145+MATCH($C$155,$I$145:$I$161))) -> 0.55 | F156: 24 | G156: 0.619 | H156: 35.70 | I156: 0.351 | J156: 0.84
A157: Calculatet Efficency | C157: =IF($C$156<$C$155,$E$155,$E$155+($C$154-$C$155)/($C$156-$C$155)*($E$156-$E$155)) -> 0.48 | F157: 24 | G157: 0.711 | H157: 35.72 | I157: 0.404 | J157: 0.85
A158: Power consumption by panel | C158: =(H162*C154/H143)/C157 -> 0.063 | D158: A | F158: 24 | G158: 0.788 | H158: 35.73 | I158: 0.450 | J158: 0.85
F159: 24 | G159: 0.883 | H159: 35.75 | I159: 0.506 | J159: 0.85
F160: 24 | G160: 1.053 | H160: 35.77 | I160: 0.602 | J160: 0.85
F161: 24 | G161: 1.237 | H161: 35.80 | I161: 0.705 | J161: 0.85
F162: Output voltage [V] | H162: =AVERAGE(H145:H161) -> 35.68

Sheet Interactive_Constants (hidden)
A1: General characteristic values
A3: Max. cablelength resistor | B3: maxLengthR_I | C3: 2000 | D3: m
A4: Max. Adressindex per Loop/Stub | B4: MaxAKLoop_I | C4: 128 | D4: Device
A5: Max. Adressindex Ex per Stub | B5: MaxAKLoopEx_I | C5: 32 | D5: Device | E5: only stub allowed
A6: Max. current per Module | B6: Imax_I | C6: 0.11 | D6: A
A7: Max. current Ex per Module | B7: ImaxEx_I | C7: 0.054 | D7: A
A8: Max. current per Module | B8: ImaxStation_I | C8: 0.883 | D8: A | E8: (@ 24V, inkl. Wirkungsgrad DC/DC)
A9: Max. leakcurrent per Loop/Stub | B9: Ileak_I | C9: 0.01 | D9: A | E9: Warnlevel firmware at 10mA, no reserve - but reserve at detector current
A10: Nom. line voltage | B10: Vline_nom_I | C10: 32 | D10: V
A11: Nom. line voltage Ex | B11: Vline_nom_Ex_I | C11: 25 | D11: V
A12: Min. line voltage | B12: Vline_min_I | C12: 31 | D12: V | E12: from 700-001-011, page 31
A13: Min. line voltage | B13: Vline_min_Ex_I | C13: 24 | D13: V
A14: Min. detector voltage | B14: Vdet_min_I | C14: 21.5 | D14: V | E14: from 700-001-011, page 31
A15: Nom. answer voltage | B15: Vans_nom_I | C15: 10 | D15: V | E15: from 700-001-011, page 30
A16: Detector Current | B16: Idet_I | C16: 0.00035 | D16: A | E16: from 700-001-011, page 31 (max. value)
A17: Duty Cycle | B17: DC_I | C17: 0.6 | E17: from 700-001-011, page 6 - Ladephase 60% (Ex 80%), Kommunikationszyklen 40% (Ex 20%)
A18: Max. answer current resistor | B18: Rans_I | C18: 290 | D18: Ohm | E18: 290 Ohm = (9.6V / 16.8mA) - 280 Ohm / Detector has 280R resistor
A19: Max. cable resistor | B19: Rcbl_I | C19: 120 | D19: Ohm
A20: Max. FET resistor | B20: Rdet_I | C20: 0.55 | D20: Ohm | E20: from 700-001-011, page 31
A25: Formula 1:
A36: Formula 2:

Sheet Testing_Translation (hidden)
A1: Testing Quantities Tool
A3: TC1: Open File
B4: - Cursor at correct sheet "cover"
B5: - Correct sheet visible: "cover, instruction, Fx72x_Panel"
B6: - Every inputs at correct initialiaze value (values set to 0,...)
A8: TC2: Switch station type
B9: - All station type could be choosed
B10: - Switching from every station type to each other station type possible
A12: TC3: Display correct station type
B13: - Correct display of station type at "Fx72x_Panel" and correct additional sheet
B14: - All add ons could be choosed
B15: - Check if different linecards could be choosed on CC2 and CC5. Switching between linecard,…
B16: - Check if power and batterie calculation shows correct values, change standby time, loads,…
A18: TC4: Maximum configuration
B19: - Maximum configuration with each station type possible
B20: - Check that QT has no failure if wrong input is used, e.g. character instead of number, …
A22: TC5: Linecard calculation
B23: - Check correct calculation compared to older linecards if possible
B24: - Check new function
A27: TC6: Power calculation
B28: - Test if power calculation works correct, entrys from different sheets are summariesed correct
B29: - Correct failure message handling
B30: - Check power calculation compared to older quantities tools
A32: TC7: Data and Naming
B33: - Correct names and value used
B34: - Data from Quantities Tool are identical to documentation
A36: TC8: System
B37: - Test quantitites tool with different systems (Windows7, Windows10, ...) and with different office version (2003, 2007, 2010,...)
A40: Translation Quantities Tool
A42: Attention: | B42: After translation, no more further support/update is possible!
A44: Step1: | B44: Open a original "…A6V10211118_.._en_--_FX7210-QuantitiesTool.xls"
A45: Step2: | B45: Translate text on the sheet "Cover" and "Instructions"
A46: Step3: | B46: Change to Developement view under "View/Custom_Views..", choose "Developement" and push "Show"
A47: Step4: | B47: Translate text in the sheet "Fx720x_Panel" (do nothing change in fields with blue, green and red background!)
A48: Step5: | B48: Translate text in the sheet "FDnet_Ref" (do nothing change in fields with blue, green and red background!)
A49: Step6: | B49: Translate text in the sheet "CardCage5_Ref" (do nothing change in fields with blue, green and red background!)
A50: Step7: | B50: Translate text in the sheet "CardCage2_Ref" (do nothing change in fields with blue, green and red background!)
A51: Step8: | B51: Translate text in the sheet "CardCageCPU_Ref" (do nothing change in fields with blue, green and red background!)
A52: Step9: | B52: Translate text in the sheet "MS9i_Ref" (do nothing change in fields with blue, green and red background!)
A53: Step10: | B53: Translate text in the sheet "Collective_Ref" (do nothing change in fields with blue, green and red background!)
A54: Step11: | B54: Translate text in the sheet "AnalogPlus_Ref" (do nothing change in fields with blue, green and red background!)
A55: Step12: | B55: Translate text in the sheet "Interactive_Ref" (do nothing change in fields with blue, green and red background!)
A56: Step13: | B56: Change to EndUser view under "View/Custom_Views..", choose "EndUser" and push "Show"
A57: Step14: | B57: Open Visual Basic Editor under "Developer/Visual Basic"
A58: Step15: | B58: Be sure that in Visual Basic Editor "Modul1" is active
A59: Step16: | B59: Change strings at top chapter "Text strings which can be changed to country language", all strings inside " "
A60: Step17: | B60: Close Visual Basic Editor
A61: Step18: | B61: Safe File
